Local authority department which incurred the expenditure,Service Division,Cost Centre,Summary of the Purpose of Expenditure,Expense Type,Expense Code,Detailed Expense Type,Date of Transaction,Transaction Number,Beneficiary,Merchant Category Number,Merchant Category,Gross Amount,VAT,Net Amount
Regeneration and Local Services,Business Durham CL0850,030689,Inward Investment and Aftercare,Supplies and Services,342222,Computers and Communications,01-Mar-2020,000008990739727,FASTHOSTS INTERNET,4816,Comp hardware purch-network servers,12.59,2.10,10.49
Adult and Health Services,Head of Adults,055302,Durham Pathways,Supplies and Services,304403,Equipment and Materials,01-Mar-2020,000008990739991,AMZNMktplace,5999,Other consumables,7.98,1.33,6.65
Children and Young Peoples Services,Head of Childrens Social Care,085333,Coxhoe Satelite Home,Supplies and Services,384999,Miscellaneous Expenses,01-Mar-2020,000008990740225,Amazon.co.uk GK9RN71T5,5969,Other expenses,8.00,1.34,6.66
Children and Young Peoples Services,Head of Education and Skills,071732,Dean Bank Childcare,Supplies and Services,304403,Equipment and Materials,01-Mar-2020,000008990740601,AMZNMktplace,5999,Other consumables,11.15,0.00,11.15
Children and Young Peoples Services,Head of Education and Skills,071732,Dean Bank Childcare,Supplies and Services,304403,Equipment and Materials,01-Mar-2020,000008990740607,AMZNMktplace,5999,Other consumables,19.08,3.18,15.90
Children and Young Peoples Services,Head of Education and Skills,071732,Dean Bank Childcare,Supplies and Services,304403,Equipment and Materials,01-Mar-2020,000008990740607 - 1,AMZNMktplace,5999,Other consumables,34.22,,34.22
Children and Young Peoples Services,Head of Childrens Social Care,085334,West Rainton Satelite Home,Supplies and Services,304259,Equipment and Materials,01-Mar-2020,000008990740697,SPENNYMOOR LEISURE,9399,Equipment-purchase and rental,8.40,0.00,8.40
Regeneration and Local Services,Development and Housing,031622,Rapid Rehousing,Transport,235073,Public Transport,01-Mar-2020,000008990740859,Trainline,4112,Travel-clients/students/children,43.80,7.30,36.50
Regeneration and Local Services,Development and Housing,030771,Durham Advance Flexible Fund,Supplies and Services,304999,Equipment and Materials,01-Mar-2020,000008990740869,HIGHSPEEDTRAINING.CO.U,8244,Misc equipment tools and materials,24.00,4.00,20.00
Children and Young Peoples Services,Head of Childrens Social Care,085551,Short Break Services-Park Hse Sher,Supplies and Services,324117,Provisions E324,01-Mar-2020,000008990741189,ALDI 12 774,5411,Catering costs - provisions,80.46,13.41,67.05
Children and Young Peoples Services,Head of Childrens Social Care,085551,Short Break Services-Park Hse Sher,Supplies and Services,324117,Provisions E324,01-Mar-2020,000008990741189 - 1,ALDI 12 774,5411,Catering costs - provisions,5.94,,5.94
Children and Young Peoples Services,Head of Early Help Inclusion & Vulnerable Children.,088109,Spennymoor & Shildon 0-19 Community Family Hub,Supplies and Services,304259,Equipment and Materials,01-Mar-2020,000008990741263,Amazon.co.uk BA7W28BI5,5969,Equipment-purchase and rental,12.53,0.00,12.53
Regeneration and Local Services,Business Durham CL0850,030717,Business Services,Supplies and Services,304403,Equipment and Materials,01-Mar-2020,000008990741421,AMZNMktplace,5999,Other consumables,149.94,24.99,124.95
Regeneration and Local Services,Business Durham CL0850,030717,Business Services,Supplies and Services,304403,Equipment and Materials,01-Mar-2020,000008990741421 - 1,AMZNMktplace,5999,Other consumables,0.03,,0.03
Children and Young Peoples Services,Head of Early Help Inclusion & Vulnerable Children.,085957,Secure Management,Supplies and Services,324117,Provisions E324,01-Mar-2020,000008990741671,TESCO STORES 6329,5411,Catering costs - provisions,103.85,0.00,103.85
Children and Young Peoples Services,Head of Early Help Inclusion & Vulnerable Children.,085957,Secure Management,Supplies and Services,384999,Miscellaneous Expenses,01-Mar-2020,000008990741945,Amazon.co.uk D241U9DV5,5969,Other expenses,5.81,0.97,4.84
Children and Young Peoples Services,Head of Early Help Inclusion & Vulnerable Children.,085957,Secure Management,Supplies and Services,384999,Miscellaneous Expenses,01-Mar-2020,000008990741947,Amazon.co.uk N95DG3P75,5969,Other expenses,7.79,0.00,7.79
Children and Young Peoples Services,Head of Early Help Inclusion & Vulnerable Children.,085957,Secure Management,Supplies and Services,384999,Miscellaneous Expenses,01-Mar-2020,000008990741953,Amazon.co.uk 007ZH4F75,5969,Other expenses,29.88,4.98,24.90
Children and Young Peoples Services,Head of Early Help Inclusion & Vulnerable Children.,085957,Secure Management,Supplies and Services,384999,Miscellaneous Expenses,01-Mar-2020,000008990741953 - 1,Amazon.co.uk 007ZH4F75,5969,Other expenses,0.06,,0.06
Children and Young Peoples Services,Head of Early Help Inclusion & Vulnerable Children.,085957,Secure Management,Supplies and Services,384999,Miscellaneous Expenses,01-Mar-2020,000008990741961,Amazon.co.uk 1A7PQ8IS5,5969,Other expenses,74.70,12.45,62.25
Children and Young Peoples Services,Head of Early Help Inclusion & Vulnerable Children.,085957,Secure Management,Supplies and Services,384999,Miscellaneous Expenses,01-Mar-2020,000008990741961 - 1,Amazon.co.uk 1A7PQ8IS5,5969,Other expenses,0.15,,0.15
Children and Young Peoples Services,Head of Childrens Social Care,085352,Tow Law CU,Supplies and Services,348037,Subsistence E348,01-Mar-2020,000008990742113,STARBUCKS,5814,Subsistence,7.35,0.00,7.35
Children and Young Peoples Services,Head of Childrens Social Care,085352,Tow Law CU,Supplies and Services,328041,Clothing uniforms and laundry E328,01-Mar-2020,000008990742117,DP/BURTON,5691,Clothing uniforms and laundry,24.00,0.00,24.00
Children and Young Peoples Services,Head of Childrens Social Care,085352,Tow Law CU,Supplies and Services,304999,Equipment and Materials,01-Mar-2020,000008990742121,SUPERDRUG STORES PLC,5912,Misc equipment tools and materials,14.05,0.00,14.05
Children and Young Peoples Services,Head of Childrens Social Care,085352,Tow Law CU,Supplies and Services,304259,Equipment and Materials,01-Mar-2020,000008990742125,JD SPORTS 193,5941,Equipment-purchase and rental,45.10,0.00,45.10
Children and Young Peoples Services,Head of Childrens Social Care,085332,Middlestone Moor CU,Supplies and Services,304403,Equipment and Materials,01-Mar-2020,000008990742629,AMZNMktplace,5999,Other consumables,12.99,0.00,12.99
Adult and Health Services,Head of Adults,055643,Hawthorn House LD Respite Unit,Supplies and Services,328041,Clothing uniforms and laundry E328,01-Mar-2020,000008999078433,ARGOS LTD,5310,Clothing uniforms and laundry,-28.00,0.00,-28.00
Children and Young Peoples Services,Head of Childrens Social Care,085352,Tow Law CU,Supplies and Services,328041,Clothing uniforms and laundry E328,01-Mar-2020,000008999078719,PRIMARK 670 GATESHEAD,5651,Clothing uniforms and laundry,6.00,0.00,6.00
Transformation and Partnerships,Communications Management,060270,Communications and Marketing,Supplies and Services,304999,Equipment and Materials,02-Mar-2020,000008990742413,GOOGLE ADS8772529636,5817,Misc equipment tools and materials,75.04,0.00,75.04
Children and Young Peoples Services,Head of Childrens Social Care,085341,High Etherley Satelite Home,Supplies and Services,324117,Provisions E324,02-Mar-2020,000008999077313,TESCO STORES 6329,5411,Catering costs - provisions,19.96,0.00,19.96
Children and Young Peoples Services,Head of Childrens Social Care,085341,High Etherley Satelite Home,Supplies and Services,324117,Provisions E324,02-Mar-2020,000008999077317,WILKO RETAIL LIMITED,5399,Catering costs - provisions,2.00,0.00,2.00
Regeneration and Local Services,Business Durham CL0850,030689,Inward Investment and Aftercare,Supplies and Services,304403,Equipment and Materials,02-Mar-2020,000008999077333,ADOBE CREATIVE CLOUD,5734,Other consumables,49.94,8.32,41.62
Regeneration and Local Services,Business Durham CL0850,030689,Inward Investment and Aftercare,Supplies and Services,342222,Computers and Communications,02-Mar-2020,000008999077337,FASTHOSTS INTERNET,4816,Comp hardware purch-network servers,72.66,12.11,60.55
Regeneration and Local Services,Business Durham CL0850,030689,Inward Investment and Aftercare,Supplies and Services,342222,Computers and Communications,02-Mar-2020,000008999077339,FASTHOSTS INTERNET,4816,Comp hardware purch-network servers,67.20,0.00,67.20
Children and Young Peoples Services,Head of Education and Skills,071801,Selby Cottage Childcare Centre,Supplies and Services,324117,Provisions E324,02-Mar-2020,000008999077341,TESCO STORES 2278,5411,Catering costs - provisions,54.45,0.00,54.45
Children and Young Peoples Services,Head of Education and Skills,071801,Selby Cottage Childcare Centre,Supplies and Services,324117,Provisions E324,02-Mar-2020,000008999077347,WILKO RETAIL LIMITED,5399,Catering costs - provisions,21.90,0.00,21.90
Children and Young Peoples Services,Head of Education and Skills,071801,Selby Cottage Childcare Centre,Supplies and Services,324117,Provisions E324,02-Mar-2020,000008999077349,WILKO RETAIL LIMITED,5399,Catering costs - provisions,2.50,0.00,2.50
Children and Young Peoples Services,Head of Childrens Social Care,085501,Child Care Cases Legal Expenses,Supplies and Services,304403,Equipment and Materials,02-Mar-2020,000008999077393,GATESHEAD COUNCIL MOTO,9399,Other consumables,35.00,0.00,35.00
Children and Young Peoples Services,Head of Childrens Social Care,085501,Child Care Cases Legal Expenses,Supplies and Services,304403,Equipment and Materials,02-Mar-2020,000008999077397,SUNDERLAND CC,9399,Other consumables,35.00,0.00,35.00
Adult and Health Services,Head of Adults,055302,Durham Pathways,Supplies and Services,304259,Equipment and Materials,02-Mar-2020,000008999077415,CURRYS ONLINE,5732,Equipment-purchase and rental,264.99,44.17,220.82
Regeneration and Local Services,Culture Sport and Tourism,030708,VCD - Marketing & Information,Supplies and Services,384199,Miscellaneous Expenses,02-Mar-2020,000008999077443,MAILCHIMP MONTHLY,5968,Other hired and contracted services,284.12,47.35,236.77
Children and Young Peoples Services,Head of Childrens Social Care,085332,Middlestone Moor CU,Supplies and Services,324117,Provisions E324,02-Mar-2020,000008999077483,ALDI 74 774,5411,Catering costs - provisions,9.53,0.00,9.53
Regeneration and Local Services,Environmental Services,010367,C&G - South Grounds Maintenance,Supplies and Services,304221,Equipment and Materials,02-Mar-2020,000008999077579,SCREWFIX PETERLEE,5211,Direct materials,16.27,2.71,13.56
Children and Young Peoples Services,Head of Early Help Inclusion & Vulnerable Children.,071670,Willington Childrens Centre,Premises,145023,Cleaning and Domestic Supplies,02-Mar-2020,000008999077619,HOME BARGAINS,5251,Cleaning and domestic materials,9.90,0.00,9.90
Children and Young Peoples Services,Head of Early Help Inclusion & Vulnerable Children.,071670,Willington Childrens Centre,Supplies and Services,304083,Equipment and Materials,02-Mar-2020,000008999077623,TESCO STORES 6329,5411,Catering equipment,12.00,0.00,12.00
Transformation and Partnerships,Business Support,052986,CYPS - Locality and Operational Support,Supplies and Services,304259,Equipment and Materials,02-Mar-2020,000008999077629,AMZNMktplace,5999,Equipment-purchase and rental,25.98,4.34,21.64
Children and Young Peoples Services,Head of Early Help Inclusion & Vulnerable Children.,088105,BA/BC/Crook 0-19 Community Family Hub,Supplies and Services,312009,Newspapers books and periodicals E312,02-Mar-2020,000008999077631,WWW.THEWORKS.CO.UK,5310,Newspapers books and periodicals,78.00,0.00,78.00
Regeneration and Local Services,Corporate Property and Land,021242,Catering - County Hall,Supplies and Services,324117,Provisions E324,02-Mar-2020,000008999077649,WWW.ADELIEFOODS.CO.UK,5499,Catering costs - provisions,49.66,0.00,49.66
Regeneration and Local Services,Corporate Property and Land,021242,Catering - County Hall,Supplies and Services,324117,Provisions E324,02-Mar-2020,000008999077653,WWW.ADELIEFOODS.CO.UK,5499,Catering costs - provisions,46.24,0.00,46.24
Regeneration and Local Services,Corporate Property and Land,021242,Catering - County Hall,Supplies and Services,324117,Provisions E324,02-Mar-2020,000008999077659,WWW.ADELIEFOODS.CO.UK,5499,Catering costs - provisions,49.34,0.00,49.34
Regeneration and Local Services,Corporate Property and Land,021242,Catering - County Hall,Supplies and Services,324117,Provisions E324,02-Mar-2020,000008999077661,WWW.ADELIEFOODS.CO.UK,5499,Catering costs - provisions,49.40,0.00,49.40
Regeneration and Local Services,Corporate Property and Land,021242,Catering - County Hall,Supplies and Services,324117,Provisions E324,02-Mar-2020,000008999077665,WWW.ADELIEFOODS.CO.UK,5499,Catering costs - provisions,155.80,0.00,155.80
Regeneration and Local Services,Corporate Property and Land,021242,Catering - County Hall,Supplies and Services,324117,Provisions E324,02-Mar-2020,000008999077667,WWW.ADELIEFOODS.CO.UK,5499,Catering costs - provisions,110.85,0.00,110.85
Regeneration and Local Services,Corporate Property and Land,021242,Catering - County Hall,Supplies and Services,324117,Provisions E324,02-Mar-2020,000008999077673,WWW.ADELIEFOODS.CO.UK,5499,Catering costs - provisions,49.34,0.00,49.34
Regeneration and Local Services,Corporate Property and Land,021242,Catering - County Hall,Supplies and Services,324117,Provisions E324,02-Mar-2020,000008999077679,WWW.ADELIEFOODS.CO.UK,5499,Catering costs - provisions,46.24,0.00,46.24
Regeneration and Local Services,Corporate Property and Land,021242,Catering - County Hall,Supplies and Services,324117,Provisions E324,02-Mar-2020,000008999077683,WWW.ADELIEFOODS.CO.UK,5499,Catering costs - provisions,46.24,0.00,46.24
Regeneration and Local Services,Corporate Property and Land,021242,Catering - County Hall,Supplies and Services,324117,Provisions E324,02-Mar-2020,000008999077689,WWW.ADELIEFOODS.CO.UK,5499,Catering costs - provisions,94.54,0.00,94.54
Regeneration and Local Services,Corporate Property and Land,021242,Catering - County Hall,Supplies and Services,324117,Provisions E324,02-Mar-2020,000008999077693,WWW.ADELIEFOODS.CO.UK,5499,Catering costs - provisions,46.24,0.00,46.24
Regeneration and Local Services,Corporate Property and Land,021242,Catering - County Hall,Supplies and Services,324117,Provisions E324,02-Mar-2020,000008999077697,WWW.ADELIEFOODS.CO.UK,5499,Catering costs - provisions,23.94,0.00,23.94
Regeneration and Local Services,Corporate Property and Land,021242,Catering - County Hall,Supplies and Services,324117,Provisions E324,02-Mar-2020,000008999077703,WWW.ADELIEFOODS.CO.UK,5499,Catering costs - provisions,124.12,0.00,124.12
Regeneration and Local Services,Corporate Property and Land,021242,Catering - County Hall,Supplies and Services,324117,Provisions E324,02-Mar-2020,000008999077705,WWW.ADELIEFOODS.CO.UK,5499,Catering costs - provisions,11.97,0.00,11.97
Regeneration and Local Services,Corporate Property and Land,021242,Catering - County Hall,Supplies and Services,324117,Provisions E324,02-Mar-2020,000008999077711,WWW.ADELIEFOODS.CO.UK,5499,Catering costs - provisions,13.55,0.00,13.55
Regeneration and Local Services,Corporate Property and Land,021242,Catering - County Hall,Supplies and Services,324117,Provisions E324,02-Mar-2020,000008999077715,WWW.ADELIEFOODS.CO.UK,5499,Catering costs - provisions,108.68,0.00,108.68
Regeneration and Local Services,Corporate Property and Land,021242,Catering - County Hall,Supplies and Services,324117,Provisions E324,02-Mar-2020,000008999077719,WWW.ADELIEFOODS.CO.UK,5499,Catering costs - provisions,52.76,0.00,52.76
Regeneration and Local Services,Corporate Property and Land,021242,Catering - County Hall,Supplies and Services,324117,Provisions E324,02-Mar-2020,000008999077723,WWW.ADELIEFOODS.CO.UK,5499,Catering costs - provisions,15.07,0.00,15.07
Regeneration and Local Services,Corporate Property and Land,021242,Catering - County Hall,Supplies and Services,324117,Provisions E324,02-Mar-2020,000008999077727,WWW.ADELIEFOODS.CO.UK,5499,Catering costs - provisions,74.94,0.00,74.94
Children and Young Peoples Services,Head of Childrens Social Care,085332,Middlestone Moor CU,Supplies and Services,304999,Equipment and Materials,02-Mar-2020,000008999077745,PLANET LEISURE,7933,Misc equipment tools and materials,17.50,0.00,17.50
Children and Young Peoples Services,Head of Childrens Social Care,085332,Middlestone Moor CU,Supplies and Services,348037,Subsistence E348,02-Mar-2020,000008999077751,PIZZA HUT 956,5812,Subsistence,2.99,0.00,2.99
Resources BK0010,Digital and Customer Services,070204,School Services - Systems,Supplies and Services,372009,Subscriptions E372,02-Mar-2020,000008999077759,WEB NETWORKSOLUTIONS,5968,Subscriptions 372009,70.64,0.00,70.64
Regeneration and Local Services,Development and Housing,030772,CLLD South,Supplies and Services,332047,Printing Stationery and Gen Off Exps,02-Mar-2020,000008999077829,CRE8IVE GRAPHICS LTD,5111,Stationery,18.70,3.12,15.58
Regeneration and Local Services,Development and Housing,030772,CLLD South,Supplies and Services,304259,Equipment and Materials,02-Mar-2020,000008999077833,HALFORDS 0526,5940,Equipment-purchase and rental,25.00,4.17,20.83
Children and Young Peoples Services,Head of Childrens Social Care,085361,LAC & Permanence Team 1,Supplies and Services,304403,Equipment and Materials,02-Mar-2020,000008999077839,HM PASSPORT OFFICE,9399,Other consumables,49.00,0.00,49.00
Regeneration and Local Services,Culture Sport and Tourism,011217,Commercial Management 011217,Supplies and Services,332047,Printing Stationery and Gen Off Exps,02-Mar-2020,000008999077859,WWW.OFFICENEEDSDIRECT.,5943,Stationery,247.16,41.19,205.97
Regeneration and Local Services,Culture Sport and Tourism,054233,Bishop Auckland Town Hall Library,Supplies and Services,328041,Clothing uniforms and laundry E328,02-Mar-2020,000008999077863,ETSY.COM - GALLEKSA,5699,Clothing uniforms and laundry,14.99,0.00,14.99
Regeneration and Local Services,Culture Sport and Tourism,054233,Bishop Auckland Town Hall Library,Supplies and Services,304221,Equipment and Materials,02-Mar-2020,000008999077867,SCREWFIX DIRECT,5211,Direct materials,45.30,7.55,37.75
Children and Young Peoples Services,Head of Early Help Inclusion & Vulnerable Children.,073998,TTF-Co-ordinator Grant,Supplies and Services,324117,Provisions E324,02-Mar-2020,000008999077883,ASDA GEORGE COM LEEDS,5411,Catering costs - provisions,136.95,0.00,136.95
Regeneration and Local Services,Development and Housing,031576,B& B - Temp Accom,Supplies and Services,364320,Grants to Voluntary Organisations,02-Mar-2020,000008999077959,HOTEL 52,7011,Accommodation assistance,66.99,0.00,66.99
Regeneration and Local Services,Development and Housing,031576,B& B - Temp Accom,Transport,235073,Public Transport,02-Mar-2020,000008999077961,STANLEY TRAVEL (NORTH,4121,Travel-clients/students/children,35.00,0.00,35.00
Regeneration and Local Services,Culture Sport and Tourism,010664,Freemans Quay Leisure Centre,Supplies and Services,328041,Clothing uniforms and laundry E328,02-Mar-2020,000008999077975,ARGOS LTD,5310,Clothing uniforms and laundry,25.99,0.00,25.99
Children and Young Peoples Services,Head of Education and Skills,071732,Dean Bank Childcare,Supplies and Services,304403,Equipment and Materials,02-Mar-2020,000008999077999,AMZNMktplace,5999,Other consumables,26.85,4.48,22.37
Children and Young Peoples Services,Head of Education and Skills,071732,Dean Bank Childcare,Supplies and Services,324117,Provisions E324,02-Mar-2020,000008999078005,SAINSBURYS SACAT (2303,5411,Catering costs - provisions,11.15,0.00,11.15
Children and Young Peoples Services,Head of Education and Skills,071732,Dean Bank Childcare,Supplies and Services,324117,Provisions E324,02-Mar-2020,000008999078009,ASDA GROCERIES ONLINE,5411,Catering costs - provisions,51.99,0.00,51.99
Children and Young Peoples Services,Head of Education and Skills,071732,Dean Bank Childcare,Supplies and Services,324117,Provisions E324,02-Mar-2020,000008999078011,ASDA GROCERIES ONLINE,5411,Catering costs - provisions,50.35,0.00,50.35
Children and Young Peoples Services,Head of Education and Skills,071732,Dean Bank Childcare,Supplies and Services,328041,Clothing uniforms and laundry E328,02-Mar-2020,000008999078015,ARGOS SEDGEFIELD,5310,Clothing uniforms and laundry,384.00,0.00,384.00
Children and Young Peoples Services,Head of Education and Skills,071732,Dean Bank Childcare,Supplies and Services,324117,Provisions E324,02-Mar-2020,000008999078019,ASDA GROCERIES ONLINE,5411,Catering costs - provisions,-1.50,0.00,-1.50
Resources BK0010,Legal & Democratic Services,067910,Democratic Representation 067910,Supplies and Services,384965,Miscellaneous Expenses,02-Mar-2020,000008999078029,TESCO STORES 6329,5411,Civic Functions,4.00,0.00,4.00
Children and Young Peoples Services,Head of Childrens Social Care,085334,West Rainton Satelite Home,Supplies and Services,308011,Furniture,02-Mar-2020,000008999078033,HOUGHTON CARPET CENTRE,5713,Furniture repair and replacement,180.00,0.00,180.00
Children and Young Peoples Services,Head of Childrens Social Care,085334,West Rainton Satelite Home,Supplies and Services,384999,Miscellaneous Expenses,02-Mar-2020,000008999078035,SumUp Cutting Edge 2,7230,Other expenses,7.00,0.00,7.00
Children and Young Peoples Services,Head of Childrens Social Care,085334,West Rainton Satelite Home,Supplies and Services,304259,Equipment and Materials,02-Mar-2020,000008999078043,SPORTSDIRECT 264,5941,Equipment-purchase and rental,43.99,0.00,43.99
Regeneration and Local Services,Environmental Services,010314,Nei.Prot - Bereavement Services,Supplies and Services,304259,Equipment and Materials,02-Mar-2020,000008999078045,Durham County CNCL,9399,Equipment-purchase and rental,11.00,0.00,11.00
Regeneration and Local Services,Corporate Property and Land,021234,Catering - Locomotion,Supplies and Services,324117,Provisions E324,02-Mar-2020,000008999078165,WWW.ADELIEFOODS.CO.UK,5499,Catering costs - provisions,140.52,0.00,140.52
Regeneration and Local Services,Corporate Property and Land,021234,Catering - Locomotion,Supplies and Services,324117,Provisions E324,02-Mar-2020,000008999078169,WWW.ADELIEFOODS.CO.UK,5499,Catering costs - provisions,30.21,0.00,30.21
Regeneration and Local Services,Corporate Property and Land,021234,Catering - Locomotion,Supplies and Services,324117,Provisions E324,02-Mar-2020,000008999078175,WWW.ADELIEFOODS.CO.UK,5499,Catering costs - provisions,94.42,0.00,94.42
Regeneration and Local Services,Corporate Property and Land,021234,Catering - Locomotion,Supplies and Services,324117,Provisions E324,02-Mar-2020,000008999078179,WWW.ADELIEFOODS.CO.UK,5499,Catering costs - provisions,90.19,0.00,90.19
Regeneration and Local Services,Corporate Property and Land,021234,Catering - Locomotion,Supplies and Services,324117,Provisions E324,02-Mar-2020,000008999078181,WWW.ADELIEFOODS.CO.UK,5499,Catering costs - provisions,128.65,0.00,128.65
Regeneration and Local Services,Corporate Property and Land,021234,Catering - Locomotion,Supplies and Services,324117,Provisions E324,02-Mar-2020,000008999078187,WWW.ADELIEFOODS.CO.UK,5499,Catering costs - provisions,122.11,0.00,122.11
Regeneration and Local Services,Corporate Property and Land,021234,Catering - Locomotion,Supplies and Services,324117,Provisions E324,02-Mar-2020,000008999078191,WWW.ADELIEFOODS.CO.UK,5499,Catering costs - provisions,48.94,0.00,48.94
Regeneration and Local Services,Corporate Property and Land,021234,Catering - Locomotion,Supplies and Services,324117,Provisions E324,02-Mar-2020,000008999078197,WWW.ADELIEFOODS.CO.UK,5499,Catering costs - provisions,93.84,0.00,93.84
Regeneration and Local Services,Corporate Property and Land,021234,Catering - Locomotion,Supplies and Services,324117,Provisions E324,02-Mar-2020,000008999078201,WWW.ADELIEFOODS.CO.UK,5499,Catering costs - provisions,58.47,0.00,58.47
Regeneration and Local Services,Corporate Property and Land,021234,Catering - Locomotion,Supplies and Services,324117,Provisions E324,02-Mar-2020,000008999078207,WWW.ADELIEFOODS.CO.UK,5499,Catering costs - provisions,80.55,0.00,80.55
Regeneration and Local Services,Corporate Property and Land,010525,Catering - Green Lane,Supplies and Services,324117,Provisions E324,02-Mar-2020,000008999078259,WWW.ADELIEFOODS.CO.UK,5499,Catering costs - provisions,52.02,0.00,52.02
Regeneration and Local Services,Corporate Property and Land,010525,Catering - Green Lane,Supplies and Services,324117,Provisions E324,02-Mar-2020,000008999078265,WWW.ADELIEFOODS.CO.UK,5499,Catering costs - provisions,54.24,0.00,54.24
Regeneration and Local Services,Corporate Property and Land,010525,Catering - Green Lane,Supplies and Services,324117,Provisions E324,02-Mar-2020,000008999078269,WWW.ADELIEFOODS.CO.UK,5499,Catering costs - provisions,46.68,0.00,46.68
Regeneration and Local Services,Corporate Property and Land,010525,Catering - Green Lane,Supplies and Services,324117,Provisions E324,02-Mar-2020,000008999078273,WWW.ADELIEFOODS.CO.UK,5499,Catering costs - provisions,60.24,0.00,60.24
Children and Young Peoples Services,Head of Childrens Social Care,085551,Short Break Services-Park Hse Sher,Supplies and Services,324117,Provisions E324,02-Mar-2020,000008999078287,TOTAL PRODUCE GATESHEA,5411,Catering costs - provisions,332.16,0.00,332.16
Children and Young Peoples Services,Head of Early Help Inclusion & Vulnerable Children.,071441,Bishop Auckland One Point Hub,Supplies and Services,304259,Equipment and Materials,02-Mar-2020,000008999078303,TESCO STORES 6329,5411,Equipment-purchase and rental,26.00,0.00,26.00
Children and Young Peoples Services,Head of Early Help Inclusion & Vulnerable Children.,088116,South Area - Teenage Parent Programme,Supplies and Services,324117,Provisions E324,02-Mar-2020,000008999078309,SumUp The Hut Bishop,5814,Catering costs - provisions,73.00,0.00,73.00
Regeneration and Local Services,Corporate Property and Land,021234,Catering - Locomotion,Supplies and Services,304999,Equipment and Materials,02-Mar-2020,000008999078315,HOME BARGAINS SPENNYMO,5251,Misc equipment tools and materials,9.00,0.00,9.00
Regeneration and Local Services,Development and Housing,031500,Housing Solutions - Core Team,Supplies and Services,352001,Conference Expenses,02-Mar-2020,000008999078349,BUDGET EXPRESS HOTEL,7011,Conferencesseminars fees etc,267.00,0.00,267.00
Regeneration and Local Services,Environmental Services,010367,C&G - South Grounds Maintenance,Supplies and Services,304221,Equipment and Materials,02-Mar-2020,000008999078389,CARRS BILLINGTON SPENN,5599,Direct materials,410.16,68.36,341.80
Children and Young Peoples Services,Head of Education and Skills,071802,Louisa Cent Nursery,Supplies and Services,304999,Equipment and Materials,02-Mar-2020,000008999078447,HOME BARGAINS,5251,Misc equipment tools and materials,22.92,0.00,22.92
Regeneration and Local Services,Corporate Property and Land,020073,Bldg Serv - R&M Div 73 - Gas Servicing,Supplies and Services,312009,Newspapers books and periodicals E312,02-Mar-2020,000008999078455,WWW.BSIGROUP.COM,7399,Newspapers books and periodicals,218.40,36.40,182.00
Children and Young Peoples Services,Head of Childrens Social Care,085333,Coxhoe Satelite Home,Supplies and Services,324117,Provisions E324,02-Mar-2020,000008999078469,ALDI 12 774,5411,Catering costs - provisions,80.51,0.00,80.51
Children and Young Peoples Services,Head of Childrens Social Care,085333,Coxhoe Satelite Home,Supplies and Services,324117,Provisions E324,02-Mar-2020,000008999078473,CO-OP GROUP 310016,5411,Catering costs - provisions,3.30,0.00,3.30
Adult and Health Services,Head of Adults,055301,Stanley Pathways,Supplies and Services,304403,Equipment and Materials,02-Mar-2020,000008999078503,AMZNMKTPLACE AMAZON.CO,5999,Other consumables,299.98,50.00,249.98
Children and Young Peoples Services,Head of Childrens Social Care,085342,9 Cedar Drive Aycliffe,Supplies and Services,348037,Subsistence E348,02-Mar-2020,000008999078513,FOX CUB,5813,Subsistence,16.98,2.83,14.15
Children and Young Peoples Services,Head of Childrens Social Care,085342,9 Cedar Drive Aycliffe,Supplies and Services,348037,Subsistence E348,02-Mar-2020,000008999078517,FOX CUB,5813,Subsistence,8.28,0.00,8.28
Children and Young Peoples Services,Head of Early Help Inclusion & Vulnerable Children.,071616,Seaham Childrens Centre,Supplies and Services,328041,Clothing uniforms and laundry E328,02-Mar-2020,000008999078533,ARGOS LTD,5310,Clothing uniforms and laundry,39.99,0.00,39.99
Children and Young Peoples Services,Head of Education and Skills,078554,Adult Skills-Main,Supplies and Services,352001,Conference Expenses,02-Mar-2020,000008999078545,HTTP://ACE.APPRENTICES,7392,Conferencesseminars fees etc,440.00,0.00,440.00
Children and Young Peoples Services,Head of Childrens Social Care,085352,Tow Law CU,Supplies and Services,324117,Provisions E324,02-Mar-2020,000008999078551,ASDA SUPERSTORE 4987,5411,Catering costs - provisions,21.50,0.00,21.50
Children and Young Peoples Services,Head of Childrens Social Care,085352,Tow Law CU,Supplies and Services,324117,Provisions E324,02-Mar-2020,000008999078557,ASDA SUPERSTORE 4987,5411,Catering costs - provisions,8.00,0.00,8.00
Children and Young Peoples Services,Head of Early Help Inclusion & Vulnerable Children.,085957,Secure Management,Supplies and Services,324117,Provisions E324,02-Mar-2020,000008999078657,TESCO STORES 6329,5411,Catering costs - provisions,113.57,0.00,113.57
Regeneration and Local Services,Technical Services CM0300,024610,Traffic & Street Works,Supplies and Services,336005,Advertising E336,02-Mar-2020,000008999078669,EAST DURHAM LIFE LTD,7311,Advertising other than for staff,75.60,12.60,63.00
Regeneration and Local Services,Technical Services CM0300,011036,Highway Capitalised Maint - Carriageway A Class Roads,Construction work A908,908109,Capital - Resurfacing,02-Mar-2020,000008999078675,Community newspaper Su,5192,Capital - Resurfacing,99.00,16.50,82.50
Regeneration and Local Services,Transport and Contracted Services,032253,Public Right of Way 032253,Supplies and Services,336005,Advertising E336,02-Mar-2020,000008999078679,Community newspaper Su,5192,Advertising other than for staff,130.50,21.75,108.75
Regeneration and Local Services,Corporate Property and Land,010902,Building Design - Project Works,Supplies and Services,384199,Miscellaneous Expenses,02-Mar-2020,000008999078685,NEWSQUEST MEDIA,2741,Other hired and contracted services,357.62,59.60,298.02
Regeneration and Local Services,Technical Services CM0300,024610,Traffic & Street Works,Supplies and Services,372009,Subscriptions E372,02-Mar-2020,000008999078691,NEWSQUEST MEDIA,2741,Subscriptions 372009,486.16,81.03,405.13
Transformation and Partnerships,Business Support,052986,CYPS - Locality and Operational Support,Transport,235057,Public Transport,02-Mar-2020,000008999078703,GO NORTH EAST LIMITED,4131,Staff travelling,25.00,0.00,25.00
Children and Young Peoples Services,Head of Childrens Social Care,085352,Tow Law CU,Supplies and Services,304403,Equipment and Materials,02-Mar-2020,000008999078723,AMZNMktplace,5999,Other consumables,10.98,1.84,9.14
Children and Young Peoples Services,Head of Childrens Social Care,085342,9 Cedar Drive Aycliffe,Supplies and Services,324117,Provisions E324,02-Mar-2020,000008999078727,TESCO STORES 2916,5411,Catering costs - provisions,96.55,0.00,96.55
Children and Young Peoples Services,Head of Childrens Social Care,085342,9 Cedar Drive Aycliffe,Supplies and Services,324117,Provisions E324,02-Mar-2020,000008999078731,TESCO STORES 2916,5411,Catering costs - provisions,29.41,0.00,29.41
Children and Young Peoples Services,Head of Education and Skills,071802,Louisa Cent Nursery,Supplies and Services,304999,Equipment and Materials,02-Mar-2020,000008999078739,HOME BARGAINS,5251,Misc equipment tools and materials,10.29,0.00,10.29
Children and Young Peoples Services,Head of Education and Skills,071802,Louisa Cent Nursery,Supplies and Services,324117,Provisions E324,02-Mar-2020,000008999078745,ASDA SUPERSTORE,5411,Catering costs - provisions,59.82,0.00,59.82
Children and Young Peoples Services,Head of Education and Skills,071802,Louisa Cent Nursery,Supplies and Services,324117,Provisions E324,02-Mar-2020,000008999078749,ASDA SUPERSTORE,5411,Catering costs - provisions,10.30,0.00,10.30
Children and Young Peoples Services,Head of Education and Skills,071802,Louisa Cent Nursery,Supplies and Services,324117,Provisions E324,02-Mar-2020,000008999078751,ASDA SUPERSTORE,5411,Catering costs - provisions,7.32,0.00,7.32
Children and Young Peoples Services,Head of Education and Skills,071802,Louisa Cent Nursery,Supplies and Services,324117,Provisions E324,02-Mar-2020,000008999078757,ALDI STORES,5411,Catering costs - provisions,4.20,0.00,4.20
Children and Young Peoples Services,Head of Education and Skills,070169,Durham SSP,Supplies and Services,384199,Miscellaneous Expenses,02-Mar-2020,000008999078773,SOCCER DESK- SOCCARENA,7991,Other hired and contracted services,288.00,48.00,240.00
Children and Young Peoples Services,Head of Childrens Social Care,085613,Families First Durham Central,Transport,235073,Public Transport,02-Mar-2020,000008999078791,PHOENIX TAXIS AND COAC,4121,Travel-clients/students/children,26.00,0.00,26.00
Regeneration and Local Services,Culture Sport and Tourism,011263,Louisa Centre 011263,Supplies and Services,304999,Equipment and Materials,02-Mar-2020,000008999078805,HOME BARGAINS,5251,Misc equipment tools and materials,3.98,0.00,3.98
Regeneration and Local Services,Culture Sport and Tourism,011263,Louisa Centre 011263,Supplies and Services,324117,Provisions E324,02-Mar-2020,000008999078813,ASDA SUPERSTORE,5411,Catering costs - provisions,6.00,0.00,6.00
Regeneration and Local Services,Development and Housing,030776,LINKCD Flexible Fund,Supplies and Services,348037,Subsistence E348,02-Mar-2020,000008999078839,GREGGS PLC,5812,Subsistence,2.90,0.00,2.90
Adult and Health Services,Head of Adults,055310,Positive Journeys (Tudhoe),Supplies and Services,324117,Provisions E324,02-Mar-2020,000008999078863,ASDA SUPERSTORE 4987,5411,Catering costs - provisions,21.35,0.00,21.35
Adult and Health Services,Head of Adults,055310,Positive Journeys (Tudhoe),Supplies and Services,324117,Provisions E324,02-Mar-2020,000008999078867,ASDA SUPERSTORE 4987,5411,Catering costs - provisions,1.10,0.00,1.10
Adult and Health Services,Head of Adults,055309,Peterlee Pathways,Supplies and Services,324117,Provisions E324,02-Mar-2020,000008999078877,LIDL GB PETERLEE,5411,Catering costs - provisions,3.90,0.00,3.90
Resources BK0010,Finance & Transactional Services,065180,Collections,Supplies and Services,338064,Services,02-Mar-2020,000008999078977,DISCLOSURE SCOTLAND,9399,Disclosure & Barring (DBS) Fees,25.00,0.00,25.00
Regeneration and Local Services,Corporate Property and Land,021242,Catering - County Hall,Supplies and Services,324117,Provisions E324,02-Mar-2020,000009003323739,BATLEYS PERTH,5300,Catering costs - provisions,-20.11,-3.35,-16.76
Regeneration and Local Services,Culture Sport and Tourism,054812,Gala Theatre - Catering etc,Supplies and Services,324117,Provisions E324,02-Mar-2020,000009003323759,BATLEYS PERTH,5300,Catering costs - provisions,316.98,52.83,264.15
Regeneration and Local Services,Culture Sport and Tourism,054812,Gala Theatre - Catering etc,Supplies and Services,324117,Provisions E324,02-Mar-2020,000009003323759 - 1,BATLEYS PERTH,5300,Catering costs - provisions,66.71,,66.71
Regeneration and Local Services,Corporate Property and Land,010525,Catering - Green Lane,Supplies and Services,324117,Provisions E324,02-Mar-2020,000009003324039,BATLEYS PERTH,5300,Catering costs - provisions,-13.53,-1.56,-11.97
Regeneration and Local Services,Corporate Property and Land,030691,Catering - Durham Dales Centre,Supplies and Services,324117,Provisions E324,02-Mar-2020,000009003324227,BATLEYS PERTH,5300,Catering costs - provisions,36.12,6.02,30.10
Regeneration and Local Services,Corporate Property and Land,030691,Catering - Durham Dales Centre,Supplies and Services,324117,Provisions E324,02-Mar-2020,000009003324227 - 1,BATLEYS PERTH,5300,Catering costs - provisions,108.46,,108.46
Resources BK0010,Legal & Democratic Services,067910,Democratic Representation 067910,Transport,235057,Public Transport,02-Mar-2020,000009003324373,EUROWINGS 104SY8UKV_1860,4511,Staff travelling,839.92,0.00,839.92
Regeneration and Local Services,Technical Services CM0300,024610,Traffic & Street Works,Supplies and Services,336005,Advertising E336,02-Mar-2020,000009008388353,NEWTON PRESS,7338,Advertising other than for staff,54.00,9.00,45.00
Resources BK0010,Digital and Customer Services,070204,School Services - Systems,Supplies and Services,372009,Subscriptions E372,03-Mar-2020,000008999077765,WEB NETWORKSOLUTIONS,5968,Subscriptions 372009,1.94,0.00,1.94
Regeneration and Local Services,Business Durham CL0850,030689,Inward Investment and Aftercare,Supplies and Services,304259,Equipment and Materials,03-Mar-2020,000009003323517,CANVA 02618-13701424,7221,Equipment-purchase and rental,0.99,0.00,0.99
Children and Young Peoples Services,Head of Education and Skills,071801,Selby Cottage Childcare Centre,Supplies and Services,324117,Provisions E324,03-Mar-2020,000009003323535,JR HOLLAND FOODSERVICE,5499,Catering costs - provisions,55.18,0.00,55.18
Children and Young Peoples Services,Head of Education and Skills,054640,Durham Learning Resources 054640,Supplies and Services,304245,Equipment and Materials,03-Mar-2020,000009003323543,Amazon.co.uk O08P73HJ5,5969,Materials,32.91,5.49,27.42
Transformation and Partnerships,Communications Management,060270,Communications and Marketing,Supplies and Services,304335,Equipment and Materials,03-Mar-2020,000009003323561,photospecialist.de,5946,ICT supplies etc,52.33,0.00,52.33
Transformation and Partnerships,Communications Management,060270,Communications and Marketing,Supplies and Services,304259,Equipment and Materials,03-Mar-2020,000009003323563,EC M Ostrowski Sp,5733,Equipment-purchase and rental,422.00,0.00,422.00
Regeneration and Local Services,Culture Sport and Tourism,054819,Gala Theatre - Received Productions,Supplies and Services,304403,Equipment and Materials,03-Mar-2020,000009003323567,AMZNMktplace,5999,Other consumables,7.99,1.33,6.66
Transformation and Partnerships,Communications Management,060700,Civil Contingencies Unit 060700,Supplies and Services,304403,Equipment and Materials,03-Mar-2020,000009003323571,AMZNMktplace,5999,Other consumables,9.99,1.67,8.32
Regeneration and Local Services,Culture Sport and Tourism,011219,Office Services 011219,Supplies and Services,304403,Equipment and Materials,03-Mar-2020,000009003323595,AMZNMktplace,5999,Other consumables,21.97,3.68,18.29
Children and Young Peoples Services,Head of Childrens Social Care,085332,Middlestone Moor CU,Supplies and Services,324117,Provisions E324,03-Mar-2020,000009003323615,TESCO STORES 2371,5411,Catering costs - provisions,77.88,0.00,77.88
Children and Young Peoples Services,Head of Childrens Social Care,085332,Middlestone Moor CU,Supplies and Services,304403,Equipment and Materials,03-Mar-2020,000009003323619,AMZNMKTPLACE AMAZON.CO,5999,Other consumables,35.99,6.00,29.99
Children and Young Peoples Services,Head of Childrens Social Care,085332,Middlestone Moor CU,Supplies and Services,324117,Provisions E324,03-Mar-2020,000009003323623,WILKO RETAIL LIMITED,5399,Catering costs - provisions,16.30,0.00,16.30
Regeneration and Local Services,Culture Sport and Tourism,011263,Louisa Centre 011263,Supplies and Services,324117,Provisions E324,03-Mar-2020,000009003323631,JR HOLLAND FOODSERVICE,5499,Catering costs - provisions,30.03,0.00,30.03
Children and Young Peoples Services,Head of Childrens Social Care,085341,High Etherley Satelite Home,Supplies and Services,324117,Provisions E324,03-Mar-2020,000009003323641,TESCO STORES 6329,5411,Catering costs - provisions,67.39,0.00,67.39
Children and Young Peoples Services,Head of Childrens Social Care,085333,Coxhoe Satelite Home,Employees,040149,Recruitment Instruction and Training,03-Mar-2020,000009003323673,PARENTPAY E-COM R,8220,Training-all costs,20.00,0.00,20.00
Children and Young Peoples Services,Head of Childrens Social Care,085333,Coxhoe Satelite Home,Supplies and Services,384999,Miscellaneous Expenses,03-Mar-2020,000009003323677,Amazon.co.uk YV1IR9YR5,5969,Other expenses,79.99,13.33,66.66
Regeneration and Local Services,Development and Housing,030544,Rural Employability - Client Engagement,Supplies and Services,348037,Subsistence E348,03-Mar-2020,000009003323719,COSTA COFFEE,5814,Subsistence,8.55,0.00,8.55
Regeneration and Local Services,Corporate Property and Land,021242,Catering - County Hall,Supplies and Services,324117,Provisions E324,03-Mar-2020,000009003323727,JR HOLLAND FOODSERVICE,5499,Catering costs - provisions,160.22,0.00,160.22
Regeneration and Local Services,Corporate Property and Land,021242,Catering - County Hall,Supplies and Services,324117,Provisions E324,03-Mar-2020,000009003323731,JR HOLLAND FOODSERVICE,5499,Catering costs - provisions,12.60,0.00,12.60
Regeneration and Local Services,Corporate Property and Land,021242,Catering - County Hall,Supplies and Services,324117,Provisions E324,03-Mar-2020,000009003323733,WWW.ADELIEFOODS.CO.UK,5499,Catering costs - provisions,46.69,0.00,46.69
Regeneration and Local Services,Corporate Property and Land,021242,Catering - County Hall,Supplies and Services,324117,Provisions E324,03-Mar-2020,000009003323737,WWW.ADELIEFOODS.CO.UK,5499,Catering costs - provisions,51.04,0.00,51.04
Regeneration and Local Services,Culture Sport and Tourism,054233,Bishop Auckland Town Hall Library,Supplies and Services,304403,Equipment and Materials,03-Mar-2020,000009003323743,AMZNMktplace,5999,Other consumables,32.90,5.48,27.42
Regeneration and Local Services,Development and Housing,030772,CLLD South,Supplies and Services,340001,Postages E340,03-Mar-2020,000009003323767,POST OFFICE COUNTER,9402,Postages,315.00,0.00,315.00
Regeneration and Local Services,Culture Sport and Tourism,054233,Bishop Auckland Town Hall Library,Supplies and Services,304221,Equipment and Materials,03-Mar-2020,000009003323787,vidaXL UK,5099,Direct materials,299.96,49.99,249.97
Regeneration and Local Services,Development and Housing,031576,B& B - Temp Accom,Supplies and Services,364320,Grants to Voluntary Organisations,03-Mar-2020,000009003323805,HOTEL 52,7011,Accommodation assistance,66.99,0.00,66.99
Regeneration and Local Services,Development and Housing,031576,B& B - Temp Accom,Supplies and Services,364320,Grants to Voluntary Organisations,03-Mar-2020,000009003323807,HOTEL 52,7011,Accommodation assistance,68.98,0.00,68.98
Children and Young Peoples Services,Head of Childrens Social Care,085352,Tow Law CU,Supplies and Services,348037,Subsistence E348,03-Mar-2020,000009003323833,BIG LUKES WORLD BUFFET,5812,Subsistence,27.88,0.00,27.88
Children and Young Peoples Services,Head of Childrens Social Care,085352,Tow Law CU,Supplies and Services,348037,Subsistence E348,03-Mar-2020,000009003323837,MCDONALDS,5814,Subsistence,13.96,2.33,11.63
Children and Young Peoples Services,Head of Childrens Social Care,085352,Tow Law CU,Supplies and Services,304259,Equipment and Materials,03-Mar-2020,000009003323839,FOOTASYLUM,5941,Equipment-purchase and rental,112.48,0.00,112.48
Children and Young Peoples Services,Head of Early Help Inclusion & Vulnerable Children.,088109,Spennymoor & Shildon 0-19 Community Family Hub,Supplies and Services,324117,Provisions E324,03-Mar-2020,000009003323853,TESCO STORES 6329,5411,Catering costs - provisions,53.15,0.00,53.15
Children and Young Peoples Services,Head of Early Help Inclusion & Vulnerable Children.,088109,Spennymoor & Shildon 0-19 Community Family Hub,Supplies and Services,304245,Equipment and Materials,03-Mar-2020,000009003323855,HOME BARGAINS,5251,Materials,60.41,0.00,60.41
Children and Young Peoples Services,Head of Childrens Social Care,085342,9 Cedar Drive Aycliffe,Supplies and Services,324117,Provisions E324,03-Mar-2020,000009003323865,TESCO STORES 2916,5411,Catering costs - provisions,17.00,0.00,17.00
Children and Young Peoples Services,Head of Childrens Social Care,085342,9 Cedar Drive Aycliffe,Supplies and Services,324117,Provisions E324,03-Mar-2020,000009003323867,TESCO STORES 2916,5411,Catering costs - provisions,15.58,0.00,15.58
Children and Young Peoples Services,Head of Education and Skills,071732,Dean Bank Childcare,Supplies and Services,304403,Equipment and Materials,03-Mar-2020,000009003323879,AMZNMKTPLACE AMAZON.CO,5999,Other consumables,149.00,24.83,124.17
Children and Young Peoples Services,Head of Education and Skills,071732,Dean Bank Childcare,Supplies and Services,304403,Equipment and Materials,03-Mar-2020,000009003323881,AMZNMktplace,5999,Other consumables,297.96,49.66,248.30
Children and Young Peoples Services,Head of Education and Skills,071732,Dean Bank Childcare,Supplies and Services,304403,Equipment and Materials,03-Mar-2020,000009003323881 - 1,AMZNMktplace,5999,Other consumables,0.04,,0.04
Children and Young Peoples Services,Head of Education and Skills,071732,Dean Bank Childcare,Supplies and Services,328041,Clothing uniforms and laundry E328,03-Mar-2020,000009003323885,B & M RETAIL,5310,Clothing uniforms and laundry,28.29,0.00,28.29
Regeneration and Local Services,Development and Housing,030771,Durham Advance Flexible Fund,Supplies and Services,328041,Clothing uniforms and laundry E328,03-Mar-2020,000009003323915,WORKWEAR EXPRESS LIMIT,5137,Clothing uniforms and laundry,93.12,15.52,77.60
Regeneration and Local Services,Development and Housing,030771,Durham Advance Flexible Fund,Supplies and Services,328041,Clothing uniforms and laundry E328,03-Mar-2020,000009003323919,VISTAPRINT,2741,Clothing uniforms and laundry,160.46,26.74,133.72
Regeneration and Local Services,Development and Housing,030771,Durham Advance Flexible Fund,Supplies and Services,384700,Miscellaneous Expenses,03-Mar-2020,000009003323921,ARRIVA NORTH EAST,4131,Miscellaneous grants,4.50,0.00,4.50
Regeneration and Local Services,Development and Housing,030771,Durham Advance Flexible Fund,Supplies and Services,304259,Equipment and Materials,03-Mar-2020,000009003323925,GEN REGISTER OFFICE,9399,Equipment-purchase and rental,14.00,0.00,14.00
Children and Young Peoples Services,Head of Early Help Inclusion & Vulnerable Children.,085957,Secure Management,Supplies and Services,328041,Clothing uniforms and laundry E328,03-Mar-2020,000009003323939,FOOTASYLUM PLC,5691,Clothing uniforms and laundry,-44.99,0.00,-44.99
Regeneration and Local Services,Environmental Services,010367,C&G - South Grounds Maintenance,Supplies and Services,304221,Equipment and Materials,03-Mar-2020,000009003323961,SCREWFIX PETERLEE,5211,Direct materials,19.37,3.23,16.14
Regeneration and Local Services,Environmental Services,011060,C&G - Hardwick Park Catering,Supplies and Services,324117,Provisions E324,03-Mar-2020,000009003323971,JR HOLLAND FOODSERVICE,5499,Catering costs - provisions,11.59,0.00,11.59
Regeneration and Local Services,Environmental Services,011058,C&G - Wharton Park,Supplies and Services,304259,Equipment and Materials,03-Mar-2020,000009003323991,AMZNMktplace,5999,Equipment-purchase and rental,7.99,1.33,6.66
Regeneration and Local Services,Corporate Property and Land,021234,Catering - Locomotion,Supplies and Services,324117,Provisions E324,03-Mar-2020,000009003323995,WWW.ADELIEFOODS.CO.UK,5499,Catering costs - provisions,138.63,0.00,138.63
Regeneration and Local Services,Corporate Property and Land,021234,Catering - Locomotion,Supplies and Services,324117,Provisions E324,03-Mar-2020,000009003323997,WWW.ADELIEFOODS.CO.UK,5499,Catering costs - provisions,25.10,0.00,25.10
Regeneration and Local Services,Corporate Property and Land,021234,Catering - Locomotion,Supplies and Services,324117,Provisions E324,03-Mar-2020,000009003324001,WWW.ADELIEFOODS.CO.UK,5499,Catering costs - provisions,36.80,0.00,36.80
Regeneration and Local Services,Development and Housing,031576,B& B - Temp Accom,Supplies and Services,364320,Grants to Voluntary Organisations,03-Mar-2020,000009003324005,AYCLIFFE BIZ,7011,Accommodation assistance,152.00,0.00,152.00
Regeneration and Local Services,Corporate Property and Land,010525,Catering - Green Lane,Premises,145009,Cleaning and Domestic Supplies,03-Mar-2020,000009003324035,ALLIANCE DISPOSABLES L,2842,Other cleaning and domestic costs,21.77,3.63,18.14
Regeneration and Local Services,Development and Housing,030771,Durham Advance Flexible Fund,Supplies and Services,304259,Equipment and Materials,03-Mar-2020,000009003324043,DURHAM TEA ROOM,9399,Equipment-purchase and rental,2.50,0.00,2.50
Children and Young Peoples Services,Head of Early Help Inclusion & Vulnerable Children.,088105,BA/BC/Crook 0-19 Community Family Hub,Supplies and Services,304259,Equipment and Materials,03-Mar-2020,000009003324067,WILKO RETAIL LIMITED,5399,Equipment-purchase and rental,4.00,0.00,4.00
Children and Young Peoples Services,Head of Early Help Inclusion & Vulnerable Children.,088105,BA/BC/Crook 0-19 Community Family Hub,Supplies and Services,304259,Equipment and Materials,03-Mar-2020,000009003324069,W BOYES & CO LTD BISHO,5310,Equipment-purchase and rental,5.00,0.00,5.00
Children and Young Peoples Services,Head of Early Help Inclusion & Vulnerable Children.,088105,BA/BC/Crook 0-19 Community Family Hub,Supplies and Services,304259,Equipment and Materials,03-Mar-2020,000009003324073,HOME BARGAINS,5251,Equipment-purchase and rental,101.42,0.00,101.42
Children and Young Peoples Services,Head of Early Help Inclusion & Vulnerable Children.,088105,BA/BC/Crook 0-19 Community Family Hub,Supplies and Services,304259,Equipment and Materials,03-Mar-2020,000009003324075,SUPERDRUG STORES PLC,5912,Equipment-purchase and rental,5.94,0.00,5.94
Children and Young Peoples Services,Head of Early Help Inclusion & Vulnerable Children.,088105,BA/BC/Crook 0-19 Community Family Hub,Supplies and Services,304259,Equipment and Materials,03-Mar-2020,000009003324077,POUNDLAND LTD 1554,5310,Equipment-purchase and rental,15.00,0.00,15.00
Children and Young Peoples Services,Head of Childrens Social Care,085334,West Rainton Satelite Home,Supplies and Services,324117,Provisions E324,03-Mar-2020,000009003324129,TESCO STORES 2371,5411,Catering costs - provisions,111.91,0.00,111.91
Children and Young Peoples Services,Head of Childrens Social Care,085334,West Rainton Satelite Home,Supplies and Services,324117,Provisions E324,03-Mar-2020,000009003324131,TESCO STORES 2371,5411,Catering costs - provisions,1.00,0.00,1.00
Children and Young Peoples Services,Head of Childrens Social Care,085342,9 Cedar Drive Aycliffe,Premises,145009,Cleaning and Domestic Supplies,03-Mar-2020,000009003324161,MALCOLMS CLEANING,7349,Other cleaning and domestic costs,26.00,0.00,26.00
Children and Young Peoples Services,Head of Childrens Social Care,085352,Tow Law CU,Supplies and Services,324117,Provisions E324,03-Mar-2020,000009003324185,SAINSBURYS 0776,5411,Catering costs - provisions,164.10,0.00,164.10
Children and Young Peoples Services,Head of Childrens Social Care,085352,Tow Law CU,Supplies and Services,324117,Provisions E324,03-Mar-2020,000009003324187,SAINSBURYS 0776,5411,Catering costs - provisions,19.00,0.00,19.00
Children and Young Peoples Services,Head of Early Help Inclusion & Vulnerable Children.,085957,Secure Management,Supplies and Services,304403,Equipment and Materials,03-Mar-2020,000009003324191,AMZNMKTPLACE AMAZON.CO,5999,Other consumables,12.99,0.00,12.99
Children and Young Peoples Services,Head of Early Help Inclusion & Vulnerable Children.,085957,Secure Management,Supplies and Services,328041,Clothing uniforms and laundry E328,03-Mar-2020,000009003324193,FOOTASYLUM PLC,5691,Clothing uniforms and laundry,33.94,0.00,33.94
Children and Young Peoples Services,Head of Early Help Inclusion & Vulnerable Children.,085957,Secure Management,Supplies and Services,328041,Clothing uniforms and laundry E328,03-Mar-2020,000009003324197,FOOTASYLUM PLC,5691,Clothing uniforms and laundry,38.94,0.00,38.94
Children and Young Peoples Services,Head of Early Help Inclusion & Vulnerable Children.,085957,Secure Management,Supplies and Services,328041,Clothing uniforms and laundry E328,03-Mar-2020,000009003324199,FOOTASYLUM PLC,5691,Clothing uniforms and laundry,61.98,0.00,61.98
Children and Young Peoples Services,Head of Early Help Inclusion & Vulnerable Children.,085957,Secure Management,Supplies and Services,328041,Clothing uniforms and laundry E328,03-Mar-2020,000009003324203,FOOTASYLUM PLC,5691,Clothing uniforms and laundry,59.98,0.00,59.98
Children and Young Peoples Services,Head of Early Help Inclusion & Vulnerable Children.,085957,Secure Management,Supplies and Services,304259,Equipment and Materials,03-Mar-2020,000009003324205,SPORTS DIRECTORY,5941,Equipment-purchase and rental,146.10,0.00,146.10
Children and Young Peoples Services,Head of Early Help Inclusion & Vulnerable Children.,085957,Secure Management,Supplies and Services,304403,Equipment and Materials,03-Mar-2020,000009003324209,AMZNMktplace,5999,Other consumables,60.82,10.14,50.68
Children and Young Peoples Services,Head of Early Help Inclusion & Vulnerable Children.,085957,Secure Management,Supplies and Services,304403,Equipment and Materials,03-Mar-2020,000009003324211,AMZNMktplace,5999,Other consumables,5.69,0.95,4.74
Children and Young Peoples Services,Head of Early Help Inclusion & Vulnerable Children.,085957,Secure Management,Supplies and Services,324117,Provisions E324,03-Mar-2020,000009003324215,ASDA GEORGE COM LEEDS,5411,Catering costs - provisions,11.95,0.00,11.95
Children and Young Peoples Services,Head of Early Help Inclusion & Vulnerable Children.,085957,Secure Management,Supplies and Services,304403,Equipment and Materials,03-Mar-2020,000009003324217,AMZNMktplace,5999,Other consumables,3.99,0.00,3.99
Children and Young Peoples Services,Head of Early Help Inclusion & Vulnerable Children.,085957,Secure Management,Supplies and Services,304221,Equipment and Materials,03-Mar-2020,000009003324221,SCREWFIX DIRECT,5200,Direct materials,44.86,0.00,44.86
Children and Young Peoples Services,Head of Early Help Inclusion & Vulnerable Children.,085957,Secure Management,Supplies and Services,304259,Equipment and Materials,03-Mar-2020,000009003324223,SPORTSDIRECT.COM,5941,Equipment-purchase and rental,18.98,0.00,18.98
Children and Young Peoples Services,Head of Childrens Social Care,085332,Middlestone Moor CU,Supplies and Services,348037,Subsistence E348,03-Mar-2020,000009003324231,COSTA @ NEXT 43043325,5814,Subsistence,11.20,0.00,11.20
Children and Young Peoples Services,Head of Childrens Social Care,085332,Middlestone Moor CU,Supplies and Services,348037,Subsistence E348,03-Mar-2020,000009003324235,COSTA @ NEXT 43043325,5814,Subsistence,2.10,0.00,2.10
Children and Young Peoples Services,Head of Childrens Social Care,085332,Middlestone Moor CU,Supplies and Services,384999,Miscellaneous Expenses,03-Mar-2020,000009003324239,BODYCARE,5977,Other expenses,5.90,0.00,5.90
Adult and Health Services,Head of Adults,055306,Spennymoor Pathways,Third Party Payments,474101,Purchase of Care,03-Mar-2020,000009003324241,PIONEERING CARE PARTNE,8050,Nursing care payments,48.00,0.00,48.00
Regeneration and Local Services,Environmental Services,010367,C&G - South Grounds Maintenance,Supplies and Services,304221,Equipment and Materials,03-Mar-2020,000009003324245,SCREWFIX DIRECT LT,5211,Direct materials,99.91,0.00,99.91
Regeneration and Local Services,Environmental Services,031235,North Pennines - INTERREG - Atlantic Geoparcs,Supplies and Services,348037,Subsistence E348,03-Mar-2020,000009003324249,LANCASTER S/W COSTA,5812,Subsistence,5.53,0.92,4.61
Children and Young Peoples Services,Head of Childrens Social Care,085334,West Rainton Satelite Home,Supplies and Services,324117,Provisions E324,03-Mar-2020,000009003324253,TESCO STORES 2371,5411,Catering costs - provisions,30.60,0.00,30.60
Children and Young Peoples Services,Head of Childrens Social Care,085334,West Rainton Satelite Home,Supplies and Services,324117,Provisions E324,03-Mar-2020,000009003324257,TESCO STORES 2371,5411,Catering costs - provisions,3.40,0.00,3.40
Children and Young Peoples Services,Head of Early Help Inclusion & Vulnerable Children.,071445,Chester le Street One Point Hub,Supplies and Services,304403,Equipment and Materials,03-Mar-2020,000009003324265,AMZNMktplace,5999,Other consumables,206.80,34.56,172.24
Children and Young Peoples Services,Head of Early Help Inclusion & Vulnerable Children.,071445,Chester le Street One Point Hub,Supplies and Services,304403,Equipment and Materials,03-Mar-2020,000009003324269,AMZNMktplace,5999,Other consumables,9.99,1.67,8.32
Children and Young Peoples Services,Head of Early Help Inclusion & Vulnerable Children.,071445,Chester le Street One Point Hub,Supplies and Services,324117,Provisions E324,03-Mar-2020,000009003324271,ASDA GEORGE COM LEEDS,5411,Catering costs - provisions,464.80,0.00,464.80
Resources BK0010,Digital and Customer Services,065335,School Services - Implementations,Supplies and Services,304259,Equipment and Materials,03-Mar-2020,000009003324275,Sortimo International,5072,Equipment-purchase and rental,27.50,4.58,22.92
Resources BK0010,Digital and Customer Services,065335,School Services - Implementations,Supplies and Services,304639,Equipment and Materials,03-Mar-2020,000009003324277,REPLACEBASE,5732,Technicians-supplies,362.98,60.50,302.48
Regeneration and Local Services,Development and Housing,030771,Durham Advance Flexible Fund,Supplies and Services,348037,Subsistence E348,03-Mar-2020,000009003324293,COSTA COFFEE,5814,Subsistence,2.55,0.00,2.55
Transformation and Partnerships,Strategy,060220,Corporate Policy 060220,Supplies and Services,384199,Miscellaneous Expenses,03-Mar-2020,000009003324297,Photobox Limited,2741,Other hired and contracted services,42.49,0.00,42.49
Transformation and Partnerships,Business Support,052986,CYPS - Locality and Operational Support,Supplies and Services,304259,Equipment and Materials,03-Mar-2020,000009003324299,ROTHERHAM MBC,9399,Equipment-purchase and rental,35.00,0.00,35.00
Transformation and Partnerships,Business Support,052986,CYPS - Locality and Operational Support,Transport,235057,Public Transport,03-Mar-2020,000009003324305,SUNDERLAND CC,7523,Staff travelling,11.00,0.00,11.00
Transformation and Partnerships,Business Support,052986,CYPS - Locality and Operational Support,Supplies and Services,328041,Clothing uniforms and laundry E328,03-Mar-2020,000009003324307,ARGOS LTD,5310,Clothing uniforms and laundry,50.00,0.00,50.00
Children and Young Peoples Services,Head of Childrens Social Care,085332,Middlestone Moor CU,Supplies and Services,324117,Provisions E324,03-Mar-2020,000009003324325,ASDA SUPERSTORE 4987,5411,Catering costs - provisions,7.00,0.00,7.00
Children and Young Peoples Services,Head of Childrens Social Care,085352,Tow Law CU,Supplies and Services,324117,Provisions E324,03-Mar-2020,000009003324347,TESCO STORES 2916,5411,Catering costs - provisions,25.00,0.00,25.00
Children and Young Peoples Services,Head of Education and Skills,071802,Louisa Cent Nursery,Supplies and Services,324117,Provisions E324,03-Mar-2020,000009003324351,ASDA SUPERSTORE,5411,Catering costs - provisions,68.81,0.00,68.81
Children and Young Peoples Services,Head of Education and Skills,070169,Durham SSP,Supplies and Services,384199,Miscellaneous Expenses,03-Mar-2020,000009003324359,SPORTSWORLD,5941,Other hired and contracted services,114.60,19.10,95.50
Children and Young Peoples Services,Head of Education and Skills,070169,Durham SSP,Supplies and Services,384199,Miscellaneous Expenses,03-Mar-2020,000009003324361,SPORTSWORLD,5941,Other hired and contracted services,477.00,79.50,397.50
Adult and Health Services,Head of Adults,055309,Peterlee Pathways,Supplies and Services,304259,Equipment and Materials,03-Mar-2020,000009003324393,CURRYS ONLINE,5732,Equipment-purchase and rental,49.00,0.00,49.00
Resources BK0010,Finance & Transactional Services,065180,Collections,Supplies and Services,338064,Services,03-Mar-2020,000009003324447,DISCLOSURE SCOTLAND,9399,Disclosure & Barring (DBS) Fees,25.00,0.00,25.00
Transformation and Partnerships,Business Support,052986,CYPS - Locality and Operational Support,Supplies and Services,328041,Clothing uniforms and laundry E328,03-Mar-2020,000009003324453,ARGOS LTD,5310,Clothing uniforms and laundry,50.00,0.00,50.00
Transformation and Partnerships,Business Support,052986,CYPS - Locality and Operational Support,Supplies and Services,328041,Clothing uniforms and laundry E328,03-Mar-2020,000009003324457,ARGOS LTD,5310,Clothing uniforms and laundry,45.00,0.00,45.00
Regeneration and Local Services,Environmental Services,011060,C&G - Hardwick Park Catering,Supplies and Services,324117,Provisions E324,03-Mar-2020,000009008387681,BATLEYS PERTH,5300,Catering costs - provisions,47.82,7.97,39.85
Regeneration and Local Services,Environmental Services,011060,C&G - Hardwick Park Catering,Supplies and Services,324117,Provisions E324,03-Mar-2020,000009008387681 - 1,BATLEYS PERTH,5300,Catering costs - provisions,169.35,,169.35
Regeneration and Local Services,Corporate Property and Land,021234,Catering - Locomotion,Supplies and Services,324117,Provisions E324,03-Mar-2020,000009008387759,BATLEYS PERTH,5300,Catering costs - provisions,326.40,54.40,272.00
Regeneration and Local Services,Corporate Property and Land,021234,Catering - Locomotion,Supplies and Services,324117,Provisions E324,03-Mar-2020,000009008387759 - 1,BATLEYS PERTH,5300,Catering costs - provisions,51.34,,51.34
Regeneration and Local Services,Corporate Property and Land,010525,Catering - Green Lane,Supplies and Services,324117,Provisions E324,03-Mar-2020,000009008387821,BATLEYS PERTH,5300,Catering costs - provisions,36.54,6.09,30.45
Regeneration and Local Services,Corporate Property and Land,010525,Catering - Green Lane,Supplies and Services,324117,Provisions E324,03-Mar-2020,000009008387821 - 1,BATLEYS PERTH,5300,Catering costs - provisions,9.06,,9.06
Children and Young Peoples Services,Head of Early Help Inclusion & Vulnerable Children.,085957,Secure Management,Supplies and Services,312009,Newspapers books and periodicals E312,03-Mar-2020,000009008388163,AMZN MKTP UK 2U5509TO5,5942,Newspapers books and periodicals,10.89,0.00,10.89
Children and Young Peoples Services,Head of Childrens Social Care,085332,Middlestone Moor CU,Supplies and Services,328041,Clothing uniforms and laundry E328,03-Mar-2020,000009008388203,PRIMARK 670 GATESHEAD,5651,Clothing uniforms and laundry,22.50,0.00,22.50
Regeneration and Local Services,Corporate Property and Land,021324,Catering - Meadowfield,Supplies and Services,324117,Provisions E324,03-Mar-2020,000009008388407,BATLEYS PERTH,5300,Catering costs - provisions,120.66,20.11,100.55
Regeneration and Local Services,Corporate Property and Land,021324,Catering - Meadowfield,Supplies and Services,324117,Provisions E324,03-Mar-2020,000009008388407 - 1,BATLEYS PERTH,5300,Catering costs - provisions,121.08,,121.08
Children and Young Peoples Services,Head of Childrens Social Care,085352,Tow Law CU,Supplies and Services,308011,Furniture,03-Mar-2020,000009008388499,IKEA LTD 143 GATESHEAD,5712,Furniture repair and replacement,119.75,0.00,119.75
Children and Young Peoples Services,Head of Childrens Social Care,085352,Tow Law CU,Supplies and Services,308011,Furniture,03-Mar-2020,000009008388505,IKEA LTD 143 GATESHEAD,5712,Furniture repair and replacement,4.00,0.00,4.00
Transformation and Partnerships,Communications Management,060270,Communications and Marketing,Supplies and Services,304335,Equipment and Materials,04-Mar-2020,000009003323573,photospecialist.de,5946,ICT supplies etc,1.44,0.00,1.44
Regeneration and Local Services,Business Durham CL0850,030689,Inward Investment and Aftercare,Supplies and Services,342033,Computers and Communications,04-Mar-2020,000009008386897,STK Shutterstock,7333,Computer hardware,19.00,0.00,19.00
Regeneration and Local Services,Business Durham CL0850,030689,Inward Investment and Aftercare,Supplies and Services,342222,Computers and Communications,04-Mar-2020,000009008386905,FASTHOSTS INTERNET,4816,Comp hardware purch-network servers,6.34,1.06,5.28
Resources BK0010,Digital and Customer Services,065445,HPAC,Supplies and Services,342053,Computers and Communications,04-Mar-2020,000009008386949,WEB SECURE INSTANTSSL,7372,Computer software,266.38,0.00,266.38
Children and Young Peoples Services,Head of Education and Skills,070264,EDC Premises,Premises,145009,Cleaning and Domestic Supplies,04-Mar-2020,000009008386977,ALLIANCE DISPOSABLES L,2842,Other cleaning and domestic costs,57.30,9.55,47.75
Adult and Health Services,Head of Adults,055302,Durham Pathways,Supplies and Services,324117,Provisions E324,04-Mar-2020,000009008387029,SAINSBURYS SACAT 0776,5411,Catering costs - provisions,15.40,0.00,15.40
Children and Young Peoples Services,Head of Childrens Social Care,085332,Middlestone Moor CU,Supplies and Services,324117,Provisions E324,04-Mar-2020,000009008387057,ASDA SUPERSTORE 4987,5411,Catering costs - provisions,41.47,0.00,41.47
Children and Young Peoples Services,Head of Childrens Social Care,085332,Middlestone Moor CU,Supplies and Services,324117,Provisions E324,04-Mar-2020,000009008387063,ASDA SUPERSTORE 4987,5411,Catering costs - provisions,14.00,0.00,14.00
Children and Young Peoples Services,Head of Childrens Social Care,085341,High Etherley Satelite Home,Supplies and Services,324117,Provisions E324,04-Mar-2020,000009008387111,TESCO STORES 6329,5411,Catering costs - provisions,25.63,0.00,25.63
Children and Young Peoples Services,Head of Early Help Inclusion & Vulnerable Children.,071670,Willington Childrens Centre,Supplies and Services,324117,Provisions E324,04-Mar-2020,000009008387225,BESTWAY WHOLESALE,5451,Catering costs - provisions,32.55,0.00,32.55
Children and Young Peoples Services,Head of Early Help Inclusion & Vulnerable Children.,071670,Willington Childrens Centre,Supplies and Services,332047,Printing Stationery and Gen Off Exps,04-Mar-2020,000009008387231,AMZNMKTPLACE AMAZON.CO,5999,Stationery,29.98,5.00,24.98
Children and Young Peoples Services,Head of Childrens Social Care,085517,Supporting Solutions Service (Edge of Care),Supplies and Services,332047,Printing Stationery and Gen Off Exps,04-Mar-2020,000009008387235,AMZNMKTPLACE AMAZON.CO,5999,Stationery,24.95,4.16,20.79
Children and Young Peoples Services,Head of Childrens Social Care,085517,Supporting Solutions Service (Edge of Care),Supplies and Services,304083,Equipment and Materials,04-Mar-2020,000009008387241,WWW.POLICE-SUPPLIES.CO,5964,Catering equipment,22.40,0.00,22.40
Children and Young Peoples Services,Head of Early Help Inclusion & Vulnerable Children.,088105,BA/BC/Crook 0-19 Community Family Hub,Supplies and Services,304259,Equipment and Materials,04-Mar-2020,000009008387247,VUE BSL LTD,7832,Equipment-purchase and rental,151.50,0.00,151.50
Children and Young Peoples Services,Head of Early Help Inclusion & Vulnerable Children.,088105,BA/BC/Crook 0-19 Community Family Hub,Supplies and Services,312009,Newspapers books and periodicals E312,04-Mar-2020,000009008387251,WWW.THEWORKS.CO.UK,5310,Newspapers books and periodicals,60.00,0.00,60.00
Regeneration and Local Services,Corporate Property and Land,021242,Catering - County Hall,Premises,145009,Cleaning and Domestic Supplies,04-Mar-2020,000009008387259,ALLIANCE DISPOSABLES L,2842,Other cleaning and domestic costs,492.48,82.08,410.40
Regeneration and Local Services,Corporate Property and Land,021242,Catering - County Hall,Premises,145009,Cleaning and Domestic Supplies,04-Mar-2020,000009008387259 - 1,ALLIANCE DISPOSABLES L,2842,Other cleaning and domestic costs,0.03,,0.03
Regeneration and Local Services,Corporate Property and Land,021242,Catering - County Hall,Supplies and Services,324117,Provisions E324,04-Mar-2020,000009008387267,JR HOLLAND FOODSERVICE,5499,Catering costs - provisions,116.69,0.00,116.69
Regeneration and Local Services,Environmental Services,010367,C&G - South Grounds Maintenance,Supplies and Services,304221,Equipment and Materials,04-Mar-2020,000009008387303,SCREWFIX DIRECT LT,5211,Direct materials,239.99,40.00,199.99
Regeneration and Local Services,Culture Sport and Tourism,054812,Gala Theatre - Catering etc,Supplies and Services,324117,Provisions E324,04-Mar-2020,000009008387313,JR HOLLAND FOODSERVICE,5499,Catering costs - provisions,27.27,0.00,27.27
Regeneration and Local Services,Culture Sport and Tourism,054812,Gala Theatre - Catering etc,Supplies and Services,324117,Provisions E324,04-Mar-2020,000009008387319,JR HOLLAND FOODSERVICE,5499,Catering costs - provisions,31.51,0.00,31.51
Regeneration and Local Services,Culture Sport and Tourism,054812,Gala Theatre - Catering etc,Supplies and Services,324117,Provisions E324,04-Mar-2020,000009008387327,JR HOLLAND FOODSERVICE,5499,Catering costs - provisions,-31.51,0.00,-31.51
Regeneration and Local Services,Corporate Property and Land,021242,Catering - County Hall,Supplies and Services,324117,Provisions E324,04-Mar-2020,000009008387361,MA BROTHERS,5411,Catering costs - provisions,6.75,0.00,6.75
Children and Young Peoples Services,Head of Early Help Inclusion & Vulnerable Children.,088109,Spennymoor & Shildon 0-19 Community Family Hub,Supplies and Services,324117,Provisions E324,04-Mar-2020,000009008387447,WM MORRISONS STORE,5411,Catering costs - provisions,11.75,0.00,11.75
Regeneration and Local Services,Culture Sport and Tourism,054813,Gala Theatre - Technical,Supplies and Services,304259,Equipment and Materials,04-Mar-2020,000009008387489,WWW.THOMANN.DE,5733,Equipment-purchase and rental,115.00,0.00,115.00
Regeneration and Local Services,Development and Housing,030776,LINKCD Flexible Fund,Transport,235057,Public Transport,04-Mar-2020,000009008387601,ARRIVA NORTH EAST,4131,Staff travelling,7.50,0.00,7.50
Children and Young Peoples Services,Head of Early Help Inclusion & Vulnerable Children.,071445,Chester le Street One Point Hub,Supplies and Services,304259,Equipment and Materials,04-Mar-2020,000009008387607,Durham County CNCL,9399,Equipment-purchase and rental,11.00,0.00,11.00
Regeneration and Local Services,Environmental Services,011060,C&G - Hardwick Park Catering,Third Party Payments,430100,Rendered by Private Contractors,04-Mar-2020,000009008387659,MARCHWOOD ENGINEERING,7629,Payments to sub-contractors,79.20,13.20,66.00
Regeneration and Local Services,Environmental Services,011060,C&G - Hardwick Park Catering,Premises,145009,Cleaning and Domestic Supplies,04-Mar-2020,000009008387691,ALLIANCE DISPOSABLES L,2842,Other cleaning and domestic costs,146.72,24.45,122.27
Regeneration and Local Services,Environmental Services,011060,C&G - Hardwick Park Catering,Supplies and Services,324117,Provisions E324,04-Mar-2020,000009008387699,JR HOLLAND FOODSERVICE,5499,Catering costs - provisions,24.79,0.00,24.79
Regeneration and Local Services,Corporate Property and Land,021234,Catering - Locomotion,Supplies and Services,324117,Provisions E324,04-Mar-2020,000009008387779,JR HOLLAND FOODSERVICE,5499,Catering costs - provisions,81.09,0.00,81.09
Children and Young Peoples Services,Head of Childrens Social Care,085331,New Lea Childrens Home,Supplies and Services,328041,Clothing uniforms and laundry E328,04-Mar-2020,000009008387785,W BOYES & CO LTD CONSE,5310,Clothing uniforms and laundry,7.40,0.00,7.40
Regeneration and Local Services,Corporate Property and Land,010525,Catering - Green Lane,Premises,145009,Cleaning and Domestic Supplies,04-Mar-2020,000009008387827,ALLIANCE DISPOSABLES L,2842,Other cleaning and domestic costs,154.13,25.69,128.44
Regeneration and Local Services,Development and Housing,030771,Durham Advance Flexible Fund,Supplies and Services,324117,Provisions E324,04-Mar-2020,000009008387865,BRADLEY BURN FARM SHOP,5411,Catering costs - provisions,4.95,0.00,4.95
Regeneration and Local Services,Development and Housing,030554,International Relations 030554,Transport,235057,Public Transport,04-Mar-2020,000009008387907,PRINCE BISHOP SHOPPING,7523,Staff travelling,1.00,0.00,1.00
Adult and Health Services,Head of Adults,055643,Hawthorn House LD Respite Unit,Supplies and Services,304403,Equipment and Materials,04-Mar-2020,000009008387997,AMZNMktplace,5999,Other consumables,18.99,0.00,18.99
Adult and Health Services,Head of Adults,055643,Hawthorn House LD Respite Unit,Supplies and Services,328041,Clothing uniforms and laundry E328,04-Mar-2020,000009008388003,ARGOS LTD,5310,Clothing uniforms and laundry,26.66,0.00,26.66
Adult and Health Services,Head of Adults,055643,Hawthorn House LD Respite Unit,Supplies and Services,328041,Clothing uniforms and laundry E328,04-Mar-2020,000009008388011,B&M RETAIL,5310,Clothing uniforms and laundry,28.87,0.00,28.87
Children and Young Peoples Services,Head of Education and Skills,071802,Louisa Cent Nursery,Supplies and Services,304999,Equipment and Materials,04-Mar-2020,000009008388037,Amazon Prime FD8FY5DD5,5968,Misc equipment tools and materials,7.99,0.00,7.99
Regeneration and Local Services,Development and Housing,030771,Durham Advance Flexible Fund,Transport,235057,Public Transport,04-Mar-2020,000009008388045,WALKERGATE CAR PAR,7523,Staff travelling,5.00,0.83,4.17
Children and Young Peoples Services,Head of Childrens Social Care,085333,Coxhoe Satelite Home,Supplies and Services,324117,Provisions E324,04-Mar-2020,000009008388055,TESCO STORES 5457,5411,Catering costs - provisions,1.90,0.00,1.90
Children and Young Peoples Services,Head of Childrens Social Care,085333,Coxhoe Satelite Home,Transport,235057,Public Transport,04-Mar-2020,000009008388063,ARRIVA NORTH EAST,4131,Staff travelling,29.70,0.00,29.70
Children and Young Peoples Services,Head of Childrens Social Care,085333,Coxhoe Satelite Home,Supplies and Services,348037,Subsistence E348,04-Mar-2020,000009008388069,MCDONALDS,5812,Subsistence,11.96,1.99,9.97
Children and Young Peoples Services,Head of Childrens Social Care,085352,Tow Law CU,Supplies and Services,324117,Provisions E324,04-Mar-2020,000009008388149,CO-OP GROUP 010989,5411,Catering costs - provisions,10.28,0.00,10.28
Children and Young Peoples Services,Head of Early Help Inclusion & Vulnerable Children.,085957,Secure Management,Supplies and Services,324117,Provisions E324,04-Mar-2020,000009008388155,TESCO STORES 6329,5411,Catering costs - provisions,49.40,0.00,49.40
Children and Young Peoples Services,Head of Early Help Inclusion & Vulnerable Children.,085957,Secure Management,Supplies and Services,328041,Clothing uniforms and laundry E328,04-Mar-2020,000009008388169,FOOTASYLUM PLC,5691,Clothing uniforms and laundry,79.99,0.00,79.99
Children and Young Peoples Services,Head of Early Help Inclusion & Vulnerable Children.,085957,Secure Management,Supplies and Services,328041,Clothing uniforms and laundry E328,04-Mar-2020,000009008388175,FOOTASYLUM PLC,5691,Clothing uniforms and laundry,21.93,0.00,21.93
Children and Young Peoples Services,Head of Early Help Inclusion & Vulnerable Children.,085957,Secure Management,Supplies and Services,384999,Miscellaneous Expenses,04-Mar-2020,000009008388179,Amazon.co.uk SH9NA9J05,5969,Other expenses,12.99,0.00,12.99
Children and Young Peoples Services,Head of Early Help Inclusion & Vulnerable Children.,085957,Secure Management,Supplies and Services,324117,Provisions E324,04-Mar-2020,000009008388187,WILKO.COM,5399,Catering costs - provisions,37.00,0.00,37.00
Regeneration and Local Services,Corporate Property and Land,030691,Catering - Durham Dales Centre,Supplies and Services,324117,Provisions E324,04-Mar-2020,000009008388191,JR HOLLAND FOODSERVICE,5499,Catering costs - provisions,11.73,0.00,11.73
Regeneration and Local Services,Corporate Property and Land,030691,Catering - Durham Dales Centre,Supplies and Services,324117,Provisions E324,04-Mar-2020,000009008388195,JR HOLLAND FOODSERVICE,5499,Catering costs - provisions,108.67,0.00,108.67
Adult and Health Services,Head of Adults,055306,Spennymoor Pathways,Supplies and Services,324117,Provisions E324,04-Mar-2020,000009008388209,LIDL GB SPENNYMOOR,5411,Catering costs - provisions,3.57,0.00,3.57
Adult and Health Services,Head of Adults,055643,Hawthorn House LD Respite Unit,Supplies and Services,324117,Provisions E324,04-Mar-2020,000009008388235,JR HOLLAND FOODSERVICE,5499,Catering costs - provisions,28.01,0.00,28.01
Adult and Health Services,Head of Adults,055643,Hawthorn House LD Respite Unit,Supplies and Services,324117,Provisions E324,04-Mar-2020,000009008388245,JR HOLLAND FOODSERVICE,5499,Catering costs - provisions,24.80,0.00,24.80
Regeneration and Local Services,Environmental Services,010301,C&G - North Grounds Maintenance,Third Party Payments,430100,Rendered by Private Contractors,04-Mar-2020,000009008388261,JOHN WARREN (ANIMAL BY,7399,Payments to sub-contractors,12.00,0.00,12.00
Children and Young Peoples Services,Head of Early Help Inclusion & Vulnerable Children.,071445,Chester le Street One Point Hub,Supplies and Services,304999,Equipment and Materials,04-Mar-2020,000009008388271,WWW.INFINITEAIR.CO.UK,7991,Misc equipment tools and materials,15.90,0.00,15.90
Resources BK0010,Digital and Customer Services,065335,School Services - Implementations,Supplies and Services,304639,Equipment and Materials,04-Mar-2020,000009008388299,REPLACEBASE,5732,Technicians-supplies,24.10,4.02,20.08
Regeneration and Local Services,Development and Housing,030771,Durham Advance Flexible Fund,Supplies and Services,348037,Subsistence E348,04-Mar-2020,000009008388315,COSTA COFFEE,5814,Subsistence,4.35,0.00,4.35
Regeneration and Local Services,Development and Housing,030771,Durham Advance Flexible Fund,Supplies and Services,348037,Subsistence E348,04-Mar-2020,000009008388321,COSTA COFFEE,5814,Subsistence,2.10,0.00,2.10
Regeneration and Local Services,Development and Housing,030771,Durham Advance Flexible Fund,Supplies and Services,348037,Subsistence E348,04-Mar-2020,000009008388329,COSTA COFFEE,5814,Subsistence,4.00,0.00,4.00
Regeneration and Local Services,Development and Housing,030676,Business Development - Durham City Promotions,Supplies and Services,384199,Miscellaneous Expenses,04-Mar-2020,000009008388347,LOW FELL REMOVALS,4214,Other hired and contracted services,96.00,16.00,80.00
Children and Young Peoples Services,Head of Early Help Inclusion & Vulnerable Children.,079027,Behaviour Intervention Team,Supplies and Services,384999,Miscellaneous Expenses,04-Mar-2020,000009008388371,Amazon.co.uk 2H0BS13K5,5969,Other expenses,22.44,3.74,18.70
Children and Young Peoples Services,Head of Early Help Inclusion & Vulnerable Children.,079027,Behaviour Intervention Team,Supplies and Services,384999,Miscellaneous Expenses,04-Mar-2020,000009008388371 - 1,Amazon.co.uk 2H0BS13K5,5969,Other expenses,16.95,,16.95
Dedicated Schools Grant BG0015,DSG High Needs Block,079072,English addl lang,Supplies and Services,304403,Equipment and Materials,04-Mar-2020,000009008388379,AMZNMktplace,5999,Other consumables,4.17,0.70,3.47
Transformation and Partnerships,Business Support,052986,CYPS - Locality and Operational Support,Supplies and Services,304403,Equipment and Materials,04-Mar-2020,000009008388385,CITY TAXIS,5734,Other consumables,25.00,0.00,25.00
Children and Young Peoples Services,Head of Childrens Social Care,085352,Tow Law CU,Supplies and Services,324117,Provisions E324,04-Mar-2020,000009008388509,SAINSBURYS LOC4634,5411,Catering costs - provisions,6.91,0.00,6.91
Children and Young Peoples Services,Head of Childrens Social Care,085333,Coxhoe Satelite Home,Supplies and Services,324117,Provisions E324,04-Mar-2020,000009008388517,TESCO STORES 2916,5411,Catering costs - provisions,74.01,0.00,74.01
Children and Young Peoples Services,Head of Childrens Social Care,085342,9 Cedar Drive Aycliffe,Supplies and Services,324117,Provisions E324,04-Mar-2020,000009008388523,TESCO STORES 2916,5411,Catering costs - provisions,41.50,0.00,41.50
Children and Young Peoples Services,Head of Childrens Social Care,085333,Coxhoe Satelite Home,Supplies and Services,324117,Provisions E324,04-Mar-2020,000009008388529,WILKO RETAIL LIMITED,5399,Catering costs - provisions,42.90,0.00,42.90
Children and Young Peoples Services,Head of Childrens Social Care,085332,Middlestone Moor CU,Supplies and Services,348037,Subsistence E348,04-Mar-2020,000009008388589,R.O.F. 59,5812,Subsistence,3.60,0.00,3.60
Children and Young Peoples Services,Head of Early Help Inclusion & Vulnerable Children.,088107,Ferryhill & Newton Aycliffe 0-19 Community Family Hub,Supplies and Services,304403,Equipment and Materials,04-Mar-2020,000009008388601,AMZNMktplace,5999,Other consumables,19.99,3.33,16.66
Children and Young Peoples Services,Head of Early Help Inclusion & Vulnerable Children.,088107,Ferryhill & Newton Aycliffe 0-19 Community Family Hub,Supplies and Services,304403,Equipment and Materials,04-Mar-2020,000009008388609,AMZNMktplace,5999,Other consumables,17.40,2.90,14.50
Children and Young Peoples Services,Head of Early Help Inclusion & Vulnerable Children.,088107,Ferryhill & Newton Aycliffe 0-19 Community Family Hub,Supplies and Services,304403,Equipment and Materials,04-Mar-2020,000009008388609 - 1,AMZNMktplace,5999,Other consumables,0.10,,0.10
Children and Young Peoples Services,Head of Early Help Inclusion & Vulnerable Children.,088107,Ferryhill & Newton Aycliffe 0-19 Community Family Hub,Supplies and Services,304403,Equipment and Materials,04-Mar-2020,000009008388613,AMZNMktplace,5999,Other consumables,7.43,1.24,6.19
Regeneration and Local Services,Development and Housing,031500,Housing Solutions - Core Team,Supplies and Services,352001,Conference Expenses,04-Mar-2020,000009008388629,HOTEL 52,7011,Conferencesseminars fees etc,340.00,0.00,340.00
Regeneration and Local Services,Development and Housing,031500,Housing Solutions - Core Team,Supplies and Services,352001,Conference Expenses,04-Mar-2020,000009008388639,HOTEL 52,7011,Conferencesseminars fees etc,418.88,0.00,418.88
Adult and Health Services,Commissioning inc Supporting People,052100,Supporting the Provider Market,Supplies and Services,338057,Services,04-Mar-2020,000009008388715,PAYPAL WESSEX MED,5047,Medical fees 338057,482.22,0.00,482.22
Adult and Health Services,Commissioning inc Supporting People,052100,Supporting the Provider Market,Supplies and Services,338057,Services,04-Mar-2020,000009008388725,PAYPAL WESSEX MED,5047,Medical fees 338057,467.22,0.00,467.22
Adult and Health Services,Commissioning inc Supporting People,052100,Supporting the Provider Market,Supplies and Services,338057,Services,04-Mar-2020,000009008388729,PAYPAL WESSEX MED,5047,Medical fees 338057,467.22,0.00,467.22
Adult and Health Services,Commissioning inc Supporting People,052100,Supporting the Provider Market,Supplies and Services,338057,Services,04-Mar-2020,000009008388733,PAYPAL WESSEX MED,5047,Medical fees 338057,475.20,0.00,475.20
Adult and Health Services,Commissioning inc Supporting People,052100,Supporting the Provider Market,Supplies and Services,338057,Services,04-Mar-2020,000009008388737,PAYPAL WESSEX MED,5047,Medical fees 338057,415.80,0.00,415.80
Adult and Health Services,Commissioning inc Supporting People,052100,Supporting the Provider Market,Supplies and Services,338057,Services,04-Mar-2020,000009008388743,PAYPAL WESSEX MED,5047,Medical fees 338057,485.40,0.00,485.40
Adult and Health Services,Commissioning inc Supporting People,052100,Supporting the Provider Market,Supplies and Services,338057,Services,04-Mar-2020,000009008388749,PAYPAL WESSEX MED,5047,Medical fees 338057,475.20,0.00,475.20
Adult and Health Services,Commissioning inc Supporting People,052100,Supporting the Provider Market,Supplies and Services,338057,Services,04-Mar-2020,000009008388755,PAYPAL WESSEX MED,5047,Medical fees 338057,457.14,0.00,457.14
Adult and Health Services,Commissioning inc Supporting People,052100,Supporting the Provider Market,Supplies and Services,338057,Services,04-Mar-2020,000009008388757,PAYPAL WESSEX MED,5047,Medical fees 338057,487.20,0.00,487.20
Adult and Health Services,Commissioning inc Supporting People,052100,Supporting the Provider Market,Supplies and Services,338057,Services,04-Mar-2020,000009008388763,PAYPAL WESSEX MED,5047,Medical fees 338057,499.80,0.00,499.80
Adult and Health Services,Commissioning inc Supporting People,052100,Supporting the Provider Market,Supplies and Services,338057,Services,04-Mar-2020,000009008388767,PAYPAL WESSEX MED,5047,Medical fees 338057,487.20,0.00,487.20
Adult and Health Services,Commissioning inc Supporting People,052100,Supporting the Provider Market,Supplies and Services,338057,Services,04-Mar-2020,000009008388775,PAYPAL WESSEX MED,5047,Medical fees 338057,468.00,0.00,468.00
Adult and Health Services,Head of Adults,055310,Positive Journeys (Tudhoe),Supplies and Services,324117,Provisions E324,04-Mar-2020,000009008388783,ASDA SUPERSTORE 4987,5411,Catering costs - provisions,2.61,0.00,2.61
Regeneration and Local Services,Development and Housing,030771,Durham Advance Flexible Fund,Transport,235057,Public Transport,04-Mar-2020,000009008388939,GO NORTH EAST LIMITED,4131,Staff travelling,5.30,0.00,5.30
Regeneration and Local Services,Development and Housing,030771,Durham Advance Flexible Fund,Transport,235057,Public Transport,04-Mar-2020,000009008388947,GO NORTH EAST LIMITED,4131,Staff travelling,7.00,0.00,7.00
Regeneration and Local Services,Development and Housing,030771,Durham Advance Flexible Fund,Employees,040149,Recruitment Instruction and Training,04-Mar-2020,000009008388953,TEACHERACTIVE LTD,8299,Training-all costs,48.00,0.00,48.00
Regeneration and Local Services,Development and Housing,030770,Durham Advance,Supplies and Services,340001,Postages E340,04-Mar-2020,000009008388993,THE POST OFFICE,9402,Postages,210.00,0.00,210.00
Regeneration and Local Services,Environmental Services,031221,North Pennines - Bowlees,Supplies and Services,304221,Equipment and Materials,04-Mar-2020,000009019434011,GRAHAMS LOGS & TIMBER,5211,Direct materials,140.00,0.00,140.00
Resources BK0010,Legal & Democratic Services,067910,Democratic Representation 067910,Transport,235057,Public Transport,04-Mar-2020,000009019434515,EUROWINGS 104MG3M7A_1862,4511,Staff travelling,215.98,0.00,215.98
Children and Young Peoples Services,Head of Childrens Social Care,085342,9 Cedar Drive Aycliffe,Supplies and Services,328041,Clothing uniforms and laundry E328,04-Mar-2020,000009019967397,NEW LOOK INTERNET,5621,Clothing uniforms and laundry,23.99,0.00,23.99
Resources BK0010,Digital and Customer Services,065445,HPAC,Supplies and Services,342053,Computers and Communications,05-Mar-2020,000009008386953,WEB SECURE INSTANTSSL,7372,Computer software,7.33,0.00,7.33
Resources BK0010,People & Talent Management,010984,Training and Development,Supplies and Services,304403,Equipment and Materials,05-Mar-2020,000009008387753,AMZ Amazon.co.uk,5999,Other consumables,-45.37,0.00,-45.37
Children and Young Peoples Services,Head of Education and Skills,071801,Selby Cottage Childcare Centre,Supplies and Services,324117,Provisions E324,05-Mar-2020,000009019433659,TESCO STORES 2278,5411,Catering costs - provisions,50.74,0.00,50.74
Children and Young Peoples Services,Head of Education and Skills,071801,Selby Cottage Childcare Centre,Supplies and Services,324117,Provisions E324,05-Mar-2020,000009019433667,WILKO RETAIL LIMITED,5399,Catering costs - provisions,49.70,0.00,49.70
Children and Young Peoples Services,Head of Education and Skills,054640,Durham Learning Resources 054640,Supplies and Services,324117,Provisions E324,05-Mar-2020,000009019433683,ASDA SUPERSTORE 4987,5411,Catering costs - provisions,3.50,0.00,3.50
Regeneration and Local Services,Transport and Contracted Services,032155,Public Transport Information 032155,Supplies and Services,342053,Computers and Communications,05-Mar-2020,000009019433691,PAYPAL 3QD RISCOS,5734,Computer software,102.50,0.00,102.50
Resources BK0010,Digital and Customer Services,011103,Service Improvement 011103,Supplies and Services,342053,Computers and Communications,05-Mar-2020,000009019433697,FONT AWESOME STANDARD,7372,Computer software,77.15,0.00,77.15
Resources BK0010,Digital and Customer Services,065432,Web Development Group,Supplies and Services,342053,Computers and Communications,05-Mar-2020,000009019433701,UKFAST.NET LTD,4816,Computer software,63.01,10.50,52.51
Resources BK0010,Digital and Customer Services,065432,Web Development Group,Supplies and Services,342053,Computers and Communications,05-Mar-2020,000009019433707,UKFAST.NET LTD,4816,Computer software,500.00,83.33,416.67
Regeneration and Local Services,Culture Sport and Tourism,011204,Festival and Events,Supplies and Services,312009,Newspapers books and periodicals E312,05-Mar-2020,000009019433711,Amazon.co.uk J47448DY5,5969,Newspapers books and periodicals,13.64,0.00,13.64
Regeneration and Local Services,Culture Sport and Tourism,011204,Festival and Events,Supplies and Services,312009,Newspapers books and periodicals E312,05-Mar-2020,000009019433713,Amazon.co.uk 167TA0NT5,5969,Newspapers books and periodicals,12.98,0.00,12.98
Resources BK0010,Digital and Customer Services,065487,ICT Telephony Recharges,Supplies and Services,344033,Telephones,05-Mar-2020,000009019433715,AMZNMktplace,5999,Telephones general-all costs,294.00,49.00,245.00
Resources BK0010,Digital and Customer Services,065487,ICT Telephony Recharges,Supplies and Services,344033,Telephones,05-Mar-2020,000009019433715 - 1,AMZNMktplace,5999,Telephones general-all costs,1.00,,1.00
Regeneration and Local Services,Development and Housing,030773,CLLD North,Transport,235057,Public Transport,05-Mar-2020,000009019433741,GO NORTH EAST LIMITED,4131,Staff travelling,7.00,0.00,7.00
Regeneration and Local Services,Development and Housing,030773,CLLD North,Supplies and Services,348037,Subsistence E348,05-Mar-2020,000009019433743,COSTA COFFEE,5814,Subsistence,6.00,0.00,6.00
Regeneration and Local Services,Development and Housing,030773,CLLD North,Supplies and Services,328041,Clothing uniforms and laundry E328,05-Mar-2020,000009019433747,PEACOCK STORES LTD,5331,Clothing uniforms and laundry,53.00,0.00,53.00
Regeneration and Local Services,Development and Housing,030773,CLLD North,Supplies and Services,304221,Equipment and Materials,05-Mar-2020,000009019433753,SCREWFIX DIRECT,5200,Direct materials,64.98,0.00,64.98
Children and Young Peoples Services,Head of Education and Skills,075021,Youth Employment Initiative,Supplies and Services,384199,Miscellaneous Expenses,05-Mar-2020,000009019433759,MY.NORFOLK.GOV.UK,9399,Other hired and contracted services,11.00,0.00,11.00
Children and Young Peoples Services,Head of Education and Skills,075021,Youth Employment Initiative,Supplies and Services,384199,Miscellaneous Expenses,05-Mar-2020,000009019433761,WWW.DURHAM.GOV.UK,9399,Other hired and contracted services,22.00,0.00,22.00
Regeneration and Local Services,Environmental Services,010383,C&G - South Street Cleansing,Supplies and Services,304221,Equipment and Materials,05-Mar-2020,000009019433767,AZTEC CHEMICALS LTD,5169,Direct materials,410.40,68.40,342.00
Children and Young Peoples Services,Head of Childrens Social Care,085341,High Etherley Satelite Home,Supplies and Services,348037,Subsistence E348,05-Mar-2020,000009019433807,THE KINGS HEAD,5812,Subsistence,22.80,0.00,22.80
Children and Young Peoples Services,Head of Early Help Inclusion & Vulnerable Children.,088105,BA/BC/Crook 0-19 Community Family Hub,Supplies and Services,304259,Equipment and Materials,05-Mar-2020,000009019433873,AMZNMktplace,5999,Equipment-purchase and rental,38.99,6.50,32.49
Children and Young Peoples Services,Head of Early Help Inclusion & Vulnerable Children.,088105,BA/BC/Crook 0-19 Community Family Hub,Supplies and Services,304259,Equipment and Materials,05-Mar-2020,000009019433879,WWW.HOBBYCRAFT.CO.UK,5970,Equipment-purchase and rental,91.50,0.00,91.50
Children and Young Peoples Services,Head of Childrens Social Care,085513,Supporting Family Time Team,Supplies and Services,304259,Equipment and Materials,05-Mar-2020,000009019433883,AMZNMktplace,5999,Equipment-purchase and rental,26.98,4.50,22.48
Children and Young Peoples Services,Head of Childrens Social Care,085380,Operations Manager LAC Resources,Supplies and Services,328041,Clothing uniforms and laundry E328,05-Mar-2020,000009019433885,ARGOS LTD,5310,Clothing uniforms and laundry,99.99,0.00,99.99
Children and Young Peoples Services,Head of Childrens Social Care,085380,Operations Manager LAC Resources,Supplies and Services,328041,Clothing uniforms and laundry E328,05-Mar-2020,000009019433889,ARGOS LTD,5310,Clothing uniforms and laundry,95.91,0.00,95.91
Children and Young Peoples Services,Head of Early Help Inclusion & Vulnerable Children.,071449,Ferryhill One Point Hub,Supplies and Services,384999,Miscellaneous Expenses,05-Mar-2020,000009019433899,Amazon.co.uk CX85D1WT5,5969,Other expenses,16.50,2.75,13.75
Children and Young Peoples Services,Head of Early Help Inclusion & Vulnerable Children.,071449,Ferryhill One Point Hub,Supplies and Services,384999,Miscellaneous Expenses,05-Mar-2020,000009019433899 - 1,Amazon.co.uk CX85D1WT5,5969,Other expenses,20.30,,20.30
Children and Young Peoples Services,Head of Early Help Inclusion & Vulnerable Children.,071449,Ferryhill One Point Hub,Supplies and Services,384999,Miscellaneous Expenses,05-Mar-2020,000009019433905,Amazon.co.uk 144Y79KW5,5969,Other expenses,16.50,2.75,13.75
Children and Young Peoples Services,Head of Early Help Inclusion & Vulnerable Children.,071449,Ferryhill One Point Hub,Supplies and Services,384999,Miscellaneous Expenses,05-Mar-2020,000009019433905 - 1,Amazon.co.uk 144Y79KW5,5969,Other expenses,20.30,,20.30
Resources BK0010,Digital and Customer Services,070204,School Services - Systems,Supplies and Services,372009,Subscriptions E372,05-Mar-2020,000009019433915,WEB NETWORKSOLUTIONS,5968,Subscriptions 372009,70.14,0.00,70.14
Resources BK0010,Digital and Customer Services,065481,Technical Services 065481,Supplies and Services,372009,Subscriptions E372,05-Mar-2020,000009019433921,WEB NETWORKSOLUTIONS,5968,Subscriptions 372009,182.31,0.00,182.31
Regeneration and Local Services,Development and Housing,030544,Rural Employability - Client Engagement,Supplies and Services,304259,Equipment and Materials,05-Mar-2020,000009019433935,GEN REGISTER OFFICE,9399,Equipment-purchase and rental,14.00,0.00,14.00
Children and Young Peoples Services,Head of Early Help Inclusion & Vulnerable Children.,085952,Secure Education,Supplies and Services,384999,Miscellaneous Expenses,05-Mar-2020,000009019433961,Amazon.co.uk Y48VN19S5,5969,Other expenses,114.00,0.00,114.00
Children and Young Peoples Services,Head of Childrens Social Care,085362,LAC & Permanence Team 2,Supplies and Services,304403,Equipment and Materials,05-Mar-2020,000009019433967,HM PASSPORT OFFICE,9399,Other consumables,75.50,0.00,75.50
Children and Young Peoples Services,Head of Childrens Social Care,085362,LAC & Permanence Team 2,Supplies and Services,304403,Equipment and Materials,05-Mar-2020,000009019433973,WWW.DURHAM.GOV.UK,9399,Other consumables,11.00,0.00,11.00
Children and Young Peoples Services,Head of Early Help Inclusion & Vulnerable Children.,073998,TTF-Co-ordinator Grant,Supplies and Services,308011,Furniture,05-Mar-2020,000009019433985,FRANKS THE FLOORING ST,5713,Furniture repair and replacement,149.00,0.00,149.00
Children and Young Peoples Services,Head of Education and Skills,071732,Dean Bank Childcare,Supplies and Services,328041,Clothing uniforms and laundry E328,05-Mar-2020,000009019434001,B & M RETAIL,5310,Clothing uniforms and laundry,67.87,0.00,67.87
Regeneration and Local Services,Environmental Services,031221,North Pennines - Bowlees,Supplies and Services,324117,Provisions E324,05-Mar-2020,000009019434009,TESCO STORES 4358,5411,Catering costs - provisions,16.68,0.00,16.68
Children and Young Peoples Services,Head of Childrens Social Care,085334,West Rainton Satelite Home,Supplies and Services,304259,Equipment and Materials,05-Mar-2020,000009019434013,CURRYS,5732,Equipment-purchase and rental,319.00,53.17,265.83
Children and Young Peoples Services,Head of Childrens Social Care,085334,West Rainton Satelite Home,Supplies and Services,304221,Equipment and Materials,05-Mar-2020,000009019434015,B & Q 1343,5200,Direct materials,40.75,0.00,40.75
Regeneration and Local Services,Development and Housing,030771,Durham Advance Flexible Fund,Transport,235057,Public Transport,05-Mar-2020,000009019434043,PRINCE BISHOP SHOPPING,7523,Staff travelling,2.00,0.00,2.00
Regeneration and Local Services,Development and Housing,030771,Durham Advance Flexible Fund,Supplies and Services,324117,Provisions E324,05-Mar-2020,000009019434045,COSTA COFFEE 43038640,5814,Catering costs - provisions,5.00,0.83,4.17
Regeneration and Local Services,Development and Housing,031622,Rapid Rehousing,Payments In advance A932,932001,Payments in advance,05-Mar-2020,000009019434047,SAFE AND SECURE PROPER,8999,Payments in advance,395.00,0.00,395.00
Regeneration and Local Services,Business Durham CL0850,030674,Business Services General,Supplies and Services,352001,Conference Expenses,05-Mar-2020,000009019434049,Hotel on Booking.com 3,7011,Conferencesseminars fees etc,-93.38,0.00,-93.38
Regeneration and Local Services,Environmental Services,011058,C&G - Wharton Park,Supplies and Services,332047,Printing Stationery and Gen Off Exps,05-Mar-2020,000009019434061,WILKO.COM,5399,Stationery,15.00,2.50,12.50
Regeneration and Local Services,Environmental Services,031228,North Pennines - Fellfoot Forward,Supplies and Services,328041,Clothing uniforms and laundry E328,05-Mar-2020,000009019434065,DEBENHAMS PLC,5311,Clothing uniforms and laundry,20.00,0.00,20.00
Regeneration and Local Services,Environmental Services,031228,North Pennines - Fellfoot Forward,Supplies and Services,328041,Clothing uniforms and laundry E328,05-Mar-2020,000009019434067,T K MAXX,5331,Clothing uniforms and laundry,7.77,0.00,7.77
Regeneration and Local Services,Environmental Services,011060,C&G - Hardwick Park Catering,Supplies and Services,324117,Provisions E324,05-Mar-2020,000009019434069,JR HOLLAND FOODSERVICE,5499,Catering costs - provisions,7.65,0.00,7.65
Regeneration and Local Services,Environmental Services,011060,C&G - Hardwick Park Catering,Supplies and Services,324117,Provisions E324,05-Mar-2020,000009019434071,JR HOLLAND FOODSERVICE,5499,Catering costs - provisions,43.59,0.00,43.59
Regeneration and Local Services,Environmental Services,011058,C&G - Wharton Park,Supplies and Services,304259,Equipment and Materials,05-Mar-2020,000009019434083,SCREWFIX DIRECT,5200,Equipment-purchase and rental,2.69,0.45,2.24
Regeneration and Local Services,Development and Housing,031576,B& B - Temp Accom,Supplies and Services,364320,Grants to Voluntary Organisations,05-Mar-2020,000009019434091,AYCLIFFE BIZ,7011,Accommodation assistance,152.00,0.00,152.00
Children and Young Peoples Services,Head of Early Help Inclusion & Vulnerable Children.,088119,Durham 0-19 Community Family Hub,Supplies and Services,324117,Provisions E324,05-Mar-2020,000009019434099,TESCO STORES 5970,5411,Catering costs - provisions,10.00,0.00,10.00
Children and Young Peoples Services,Head of Childrens Social Care,085331,New Lea Childrens Home,Supplies and Services,324117,Provisions E324,05-Mar-2020,000009019434103,ASDA GROCERIES ONLINE,5411,Catering costs - provisions,130.01,0.00,130.01
Children and Young Peoples Services,Head of Childrens Social Care,085551,Short Break Services-Park Hse Sher,Supplies and Services,324117,Provisions E324,05-Mar-2020,000009019434133,ALDI 15 774,5411,Catering costs - provisions,20.60,3.43,17.17
Children and Young Peoples Services,Head of Childrens Social Care,085612,Families First Consett,Supplies and Services,338045,Services,05-Mar-2020,000009019434141,IPS DURHAM CONTACT CTR,9399,Legal expenses 338045,63.50,0.00,63.50
Regeneration and Local Services,Development and Housing,031500,Housing Solutions - Core Team,Supplies and Services,352001,Conference Expenses,05-Mar-2020,000009019434151,BUDGET EXPRESS HOTEL,7011,Conferencesseminars fees etc,356.00,59.33,296.67
Children and Young Peoples Services,Head of Childrens Social Care,085334,West Rainton Satelite Home,Supplies and Services,384237,Miscellaneous Expenses,05-Mar-2020,000009019434169,RUFF `N` TUMBLE ADVENT,7999,Recreational exps outings parties,6.25,0.00,6.25
Children and Young Peoples Services,Head of Childrens Social Care,085334,West Rainton Satelite Home,Supplies and Services,384237,Miscellaneous Expenses,05-Mar-2020,000009019434175,RUFF `N` TUMBLE ADVENT,7999,Recreational exps outings parties,5.45,0.00,5.45
Adult and Health Services,Head of Adults,055643,Hawthorn House LD Respite Unit,Supplies and Services,328041,Clothing uniforms and laundry E328,05-Mar-2020,000009019434211,ARGOS LTD,5310,Clothing uniforms and laundry,15.00,0.00,15.00
Children and Young Peoples Services,Head of Childrens Social Care,085333,Coxhoe Satelite Home,Supplies and Services,324117,Provisions E324,05-Mar-2020,000009019434215,TESCO STORES 2371,5411,Catering costs - provisions,110.89,0.00,110.89
Children and Young Peoples Services,Head of Childrens Social Care,085333,Coxhoe Satelite Home,Supplies and Services,324117,Provisions E324,05-Mar-2020,000009019434219,ASDA STORES LTD 4313,5411,Catering costs - provisions,33.00,0.00,33.00
Children and Young Peoples Services,Head of Childrens Social Care,085342,9 Cedar Drive Aycliffe,Vehicles Equipment Furniture and Fittings,912701,Computer equipment,05-Mar-2020,000009019434231,PP 5953CODE,8999,Computer equipment,-1.00,0.00,-1.00
Children and Young Peoples Services,Head of Childrens Social Care,085342,9 Cedar Drive Aycliffe,Supplies and Services,304403,Equipment and Materials,05-Mar-2020,000009019434235,AMZNMKTPLACE AMAZON.CO,5999,Other consumables,15.98,0.00,15.98
Children and Young Peoples Services,Head of Education and Skills,078554,Adult Skills-Main,Premises,145023,Cleaning and Domestic Supplies,05-Mar-2020,000009019434265,PAYPAL BUTTERCREAM EB,5719,Cleaning and domestic materials,99.72,0.00,99.72
Children and Young Peoples Services,Head of Childrens Social Care,085352,Tow Law CU,Supplies and Services,304999,Equipment and Materials,05-Mar-2020,000009019434271,HOME BARGAINS,5251,Misc equipment tools and materials,10.97,0.00,10.97
Children and Young Peoples Services,Head of Childrens Social Care,085352,Tow Law CU,Supplies and Services,328041,Clothing uniforms and laundry E328,05-Mar-2020,000009019434277,Argos Durham Arnis,5310,Clothing uniforms and laundry,26.00,0.00,26.00
Children and Young Peoples Services,Head of Childrens Social Care,085352,Tow Law CU,Supplies and Services,328041,Clothing uniforms and laundry E328,05-Mar-2020,000009019434281,CLEARANCE BARGAINS,5310,Clothing uniforms and laundry,199.99,0.00,199.99
Children and Young Peoples Services,Head of Early Help Inclusion & Vulnerable Children.,085957,Secure Management,Supplies and Services,304403,Equipment and Materials,05-Mar-2020,000009019434289,AMZNMktplace,5999,Other consumables,16.95,0.00,16.95
Children and Young Peoples Services,Head of Early Help Inclusion & Vulnerable Children.,085957,Secure Management,Supplies and Services,324117,Provisions E324,05-Mar-2020,000009019434293,TESCO STORES 6329,5411,Catering costs - provisions,132.49,0.00,132.49
Children and Young Peoples Services,Head of Childrens Social Care,085332,Middlestone Moor CU,Supplies and Services,348037,Subsistence E348,05-Mar-2020,000009019434295,COSTA @ NEXT 43043325,5814,Subsistence,11.10,0.00,11.10
Regeneration and Local Services,Environmental Services,031235,North Pennines - INTERREG - Atlantic Geoparcs,Supplies and Services,348037,Subsistence E348,05-Mar-2020,000009019434299,BRECON N HAY TAP LTD,5812,Subsistence,31.65,5.28,26.37
Transformation and Partnerships,Business Support,052986,CYPS - Locality and Operational Support,Supplies and Services,308011,Furniture,05-Mar-2020,000009019434309,WWW.IKEA.COM,5712,Furniture repair and replacement,190.00,31.67,158.33
Transformation and Partnerships,Business Support,052986,CYPS - Locality and Operational Support,Supplies and Services,328041,Clothing uniforms and laundry E328,05-Mar-2020,000009019434313,ARGOS LTD,5310,Clothing uniforms and laundry,148.95,0.00,148.95
Regeneration and Local Services,Development and Housing,030771,Durham Advance Flexible Fund,Supplies and Services,348037,Subsistence E348,05-Mar-2020,000009019434319,COSTA COFFEE,5814,Subsistence,2.70,0.00,2.70
Regeneration and Local Services,Development and Housing,030771,Durham Advance Flexible Fund,Supplies and Services,348037,Subsistence E348,05-Mar-2020,000009019434321,COSTA COFFEE,5814,Subsistence,2.20,0.00,2.20
Regeneration and Local Services,Development and Housing,030771,Durham Advance Flexible Fund,Supplies and Services,304221,Equipment and Materials,05-Mar-2020,000009019434325,SCREWFIX DIRECT,5200,Direct materials,49.99,0.00,49.99
Regeneration and Local Services,Business Durham CL0850,030671,Business Space 030671,Supplies and Services,364320,Grants to Voluntary Organisations,05-Mar-2020,000009019434327,IBIS STYLES LEEDS CITY,7011,Accommodation assistance,207.00,0.00,207.00
Children and Young Peoples Services,Head of Early Help Inclusion & Vulnerable Children.,079033,SEND LOOKED AFTER AND VULNERABLE MGT,Supplies and Services,324117,Provisions E324,05-Mar-2020,000009019434333,TESCO STORES 2371,5411,Catering costs - provisions,24.12,0.00,24.12
Transformation and Partnerships,Business Support,052986,CYPS - Locality and Operational Support,Supplies and Services,384999,Miscellaneous Expenses,05-Mar-2020,000009019434337,PETERLEE LEISURE C,7997,Other expenses,15.00,0.00,15.00
Children and Young Peoples Services,Head of Childrens Social Care,085333,Coxhoe Satelite Home,Supplies and Services,304999,Equipment and Materials,05-Mar-2020,000009019434353,BOOTS THE,5912,Misc equipment tools and materials,36.00,0.00,36.00
Children and Young Peoples Services,Head of Childrens Social Care,085333,Coxhoe Satelite Home,Supplies and Services,384999,Miscellaneous Expenses,05-Mar-2020,000009019434355,HOBBYCRAFT,5970,Other expenses,182.07,0.00,182.07
Regeneration and Local Services,Environmental Services,010301,C&G - North Grounds Maintenance,Supplies and Services,304999,Equipment and Materials,05-Mar-2020,000009019434357,GUSTHARTS,5072,Misc equipment tools and materials,494.31,0.00,494.31
Regeneration and Local Services,Environmental Services,010301,C&G - North Grounds Maintenance,Supplies and Services,304221,Equipment and Materials,05-Mar-2020,000009019434359,ARCO LTD,5085,Direct materials,214.40,0.00,214.40
Children and Young Peoples Services,Head of Early Help Inclusion & Vulnerable Children.,088107,Ferryhill & Newton Aycliffe 0-19 Community Family Hub,Supplies and Services,304403,Equipment and Materials,05-Mar-2020,000009019434379,AMZNMktplace,5999,Other consumables,13.98,2.34,11.64
Children and Young Peoples Services,Head of Early Help Inclusion & Vulnerable Children.,088107,Ferryhill & Newton Aycliffe 0-19 Community Family Hub,Supplies and Services,324117,Provisions E324,05-Mar-2020,000009019434383,ASDA GROCERIES ONLINE,5411,Catering costs - provisions,78.57,0.00,78.57
Regeneration and Local Services,Development and Housing,031500,Housing Solutions - Core Team,Supplies and Services,352001,Conference Expenses,05-Mar-2020,000009019434395,HOTEL 52,7011,Conferencesseminars fees etc,106.99,0.00,106.99
Regeneration and Local Services,Development and Housing,031500,Housing Solutions - Core Team,Supplies and Services,352001,Conference Expenses,05-Mar-2020,000009019434401,Park Head Hotel,7011,Conferencesseminars fees etc,308.00,0.00,308.00
Children and Young Peoples Services,Head of Childrens Social Care,085333,Coxhoe Satelite Home,Supplies and Services,304221,Equipment and Materials,05-Mar-2020,000009019434409,TOOLSTATION LTD,5211,Direct materials,20.41,0.00,20.41
Adult and Health Services,Head of Adults,055310,Positive Journeys (Tudhoe),Supplies and Services,304999,Equipment and Materials,05-Mar-2020,000009019434419,HOME BARGAINS SPENNYMO,5251,Misc equipment tools and materials,0.69,0.00,0.69
Adult and Health Services,Head of Adults,055310,Positive Journeys (Tudhoe),Supplies and Services,324117,Provisions E324,05-Mar-2020,000009019434423,ASDA SUPERSTORE 4987,5411,Catering costs - provisions,1.10,0.00,1.10
Regeneration and Local Services,Development and Housing,030771,Durham Advance Flexible Fund,Supplies and Services,328041,Clothing uniforms and laundry E328,05-Mar-2020,000009019434477,MATALAN,5691,Clothing uniforms and laundry,52.00,0.00,52.00
Regeneration and Local Services,Development and Housing,030771,Durham Advance Flexible Fund,Transport,235057,Public Transport,05-Mar-2020,000009019434481,GO NORTH EAST LIMITED,4131,Staff travelling,5.30,0.00,5.30
Regeneration and Local Services,Development and Housing,030771,Durham Advance Flexible Fund,Transport,235057,Public Transport,05-Mar-2020,000009019434485,GO NORTH EAST LIMITED,4131,Staff travelling,7.00,0.00,7.00
Regeneration and Local Services,Development and Housing,030770,Durham Advance,Supplies and Services,340001,Postages E340,05-Mar-2020,000009019434497,POST OFFICE COUNTER,9402,Postages,210.00,0.00,210.00
Resources BK0010,Finance & Transactional Services,065180,Collections,Supplies and Services,338064,Services,05-Mar-2020,000009019434519,DISCLOSURE SCOTLAND,9399,Disclosure & Barring (DBS) Fees,25.00,0.00,25.00
Regeneration and Local Services,Culture Sport and Tourism,054812,Gala Theatre - Catering etc,Supplies and Services,324117,Provisions E324,05-Mar-2020,000009019967101,BATLEYS PERTH,5300,Catering costs - provisions,-9.36,-1.56,-7.80
Regeneration and Local Services,Environmental Services,011060,C&G - Hardwick Park Catering,Supplies and Services,324117,Provisions E324,05-Mar-2020,000009019967233,BATLEYS PERTH,5300,Catering costs - provisions,178.02,29.67,148.35
Regeneration and Local Services,Environmental Services,011060,C&G - Hardwick Park Catering,Supplies and Services,324117,Provisions E324,05-Mar-2020,000009019967233 - 1,BATLEYS PERTH,5300,Catering costs - provisions,224.40,,224.40
Regeneration and Local Services,Environmental Services,011060,C&G - Hardwick Park Catering,Supplies and Services,324117,Provisions E324,05-Mar-2020,000009019967235,BATLEYS PERTH,5300,Catering costs - provisions,4.38,0.00,4.38
Regeneration and Local Services,Environmental Services,011060,C&G - Hardwick Park Catering,Supplies and Services,324117,Provisions E324,05-Mar-2020,000009019967245,BATLEYS PERTH,5300,Catering costs - provisions,-5.48,0.00,-5.48
Children and Young Peoples Services,Head of Childrens Social Care,085332,Middlestone Moor CU,Supplies and Services,328041,Clothing uniforms and laundry E328,05-Mar-2020,000009019967445,PRIMARK 670 GATESHEAD,5651,Clothing uniforms and laundry,3.00,0.00,3.00
Resources BK0010,Digital and Customer Services,011103,Service Improvement 011103,Supplies and Services,342053,Computers and Communications,06-Mar-2020,000009019433719,FONT AWESOME STANDARD,7372,Computer software,2.12,0.00,2.12
Resources BK0010,Digital and Customer Services,070204,School Services - Systems,Supplies and Services,372009,Subscriptions E372,06-Mar-2020,000009019433927,WEB NETWORKSOLUTIONS,5968,Subscriptions 372009,1.93,0.00,1.93
Resources BK0010,Digital and Customer Services,065481,Technical Services 065481,Supplies and Services,372009,Subscriptions E372,06-Mar-2020,000009019433929,WEB NETWORKSOLUTIONS,5968,Subscriptions 372009,5.01,0.00,5.01
Regeneration and Local Services,Business Durham CL0850,030674,Business Services General,Supplies and Services,352001,Conference Expenses,06-Mar-2020,000009019434051,Hotel on Booking.com 3,7011,Conferencesseminars fees etc,-2.57,0.00,-2.57
Children and Young Peoples Services,Head of Childrens Social Care,085341,High Etherley Satelite Home,Supplies and Services,384999,Miscellaneous Expenses,06-Mar-2020,000009019966941,MUSKAAN BROW BAR,7230,Other expenses,40.00,0.00,40.00
Children and Young Peoples Services,Head of Education and Skills,054640,Durham Learning Resources 054640,Supplies and Services,304245,Equipment and Materials,06-Mar-2020,000009019966979,RINGTONS TEA,5999,Materials,59.90,0.00,59.90
Regeneration and Local Services,Development and Housing,031576,B& B - Temp Accom,Supplies and Services,352001,Conference Expenses,06-Mar-2020,000009019966981,THE HONEST LAWYER,7011,Conferencesseminars fees etc,26.85,0.00,26.85
Regeneration and Local Services,Development and Housing,031576,B& B - Temp Accom,Supplies and Services,352001,Conference Expenses,06-Mar-2020,000009019966983,THE HONEST LAWYER,7011,Conferencesseminars fees etc,187.00,0.00,187.00
Regeneration and Local Services,Environmental Services,022903,Strategic Waste - WEE Project,Supplies and Services,304403,Equipment and Materials,06-Mar-2020,000009019966985,AMZNMKTPLACE AMAZON.CO,5999,Other consumables,49.99,8.33,41.66
Regeneration and Local Services,Development and Housing,031576,B& B - Temp Accom,Supplies and Services,364320,Grants to Voluntary Organisations,06-Mar-2020,000009019966995,BUDGET EXPRESS HOTEL,7011,Accommodation assistance,400.00,0.00,400.00
Regeneration and Local Services,Development and Housing,031576,B& B - Temp Accom,Supplies and Services,364320,Grants to Voluntary Organisations,06-Mar-2020,000009019966997,BUDGET EXPRESS HOTEL,7011,Accommodation assistance,700.00,0.00,700.00
Children and Young Peoples Services,Head of Education and Skills,070264,EDC Premises,Supplies and Services,324117,Provisions E324,06-Mar-2020,000009019966999,FREEMAN CATERING BUTCH,5422,Catering costs - provisions,34.38,0.00,34.38
Children and Young Peoples Services,Head of Education and Skills,070264,EDC Premises,Premises,145009,Cleaning and Domestic Supplies,06-Mar-2020,000009019967001,ALLIANCE DISPOSABLES L,2842,Other cleaning and domestic costs,39.60,6.60,33.00
Children and Young Peoples Services,Head of Childrens Social Care,085501,Child Care Cases Legal Expenses,Supplies and Services,304403,Equipment and Materials,06-Mar-2020,000009019967007,MY.NORFOLK.GOV.UK,9399,Other consumables,-11.00,0.00,-11.00
Children and Young Peoples Services,Head of Childrens Social Care,085501,Child Care Cases Legal Expenses,Supplies and Services,304403,Equipment and Materials,06-Mar-2020,000009019967009,MY.NORFOLK.GOV.UK,9399,Other consumables,-22.00,0.00,-22.00
Regeneration and Local Services,Development and Housing,030773,CLLD North,Supplies and Services,328041,Clothing uniforms and laundry E328,06-Mar-2020,000009019967011,SHOE ZONE,5661,Clothing uniforms and laundry,15.04,0.00,15.04
Regeneration and Local Services,Development and Housing,030773,CLLD North,Supplies and Services,304221,Equipment and Materials,06-Mar-2020,000009019967013,SCREWFIX DIRECT,5200,Direct materials,34.99,0.00,34.99
Regeneration and Local Services,Development and Housing,030773,CLLD North,Supplies and Services,328041,Clothing uniforms and laundry E328,06-Mar-2020,000009019967015,POUNDLAND LTD 1330,5310,Clothing uniforms and laundry,10.00,0.00,10.00
Children and Young Peoples Services,Head of Childrens Social Care,085333,Coxhoe Satelite Home,Supplies and Services,304259,Equipment and Materials,06-Mar-2020,000009019967039,M and M Direct Ltd,5941,Equipment-purchase and rental,45.97,0.00,45.97
Children and Young Peoples Services,Head of Childrens Social Care,085333,Coxhoe Satelite Home,Supplies and Services,328041,Clothing uniforms and laundry E328,06-Mar-2020,000009019967041,POUNDSTRETCHER 205,5331,Clothing uniforms and laundry,12.74,0.00,12.74
Children and Young Peoples Services,Head of Childrens Social Care,085333,Coxhoe Satelite Home,Supplies and Services,324117,Provisions E324,06-Mar-2020,000009019967043,B&M 010 - MACINTYRE,5399,Catering costs - provisions,44.38,0.00,44.38
Children and Young Peoples Services,Head of Childrens Social Care,085333,Coxhoe Satelite Home,Supplies and Services,324117,Provisions E324,06-Mar-2020,000009019967045,TESCO STORES 2371,5411,Catering costs - provisions,30.01,0.00,30.01
Children and Young Peoples Services,Head of Childrens Social Care,085333,Coxhoe Satelite Home,Supplies and Services,324117,Provisions E324,06-Mar-2020,000009019967047,TESCO STORES 2371,5411,Catering costs - provisions,11.18,0.00,11.18
Children and Young Peoples Services,Head of Childrens Social Care,085333,Coxhoe Satelite Home,Supplies and Services,328041,Clothing uniforms and laundry E328,06-Mar-2020,000009019967049,ARGOS LTD,5310,Clothing uniforms and laundry,8.00,0.00,8.00
Regeneration and Local Services,Environmental Services,010367,C&G - South Grounds Maintenance,Supplies and Services,304221,Equipment and Materials,06-Mar-2020,000009019967053,SCREWFIX PETERLEE,5211,Direct materials,38.72,6.45,32.27
Children and Young Peoples Services,Head of Childrens Social Care,085352,Tow Law CU,Supplies and Services,324117,Provisions E324,06-Mar-2020,000009019967059,NISA LOCAL,5411,Catering costs - provisions,2.18,0.00,2.18
Children and Young Peoples Services,Head of Childrens Social Care,085352,Tow Law CU,Supplies and Services,324117,Provisions E324,06-Mar-2020,000009019967061,CO-OP GROUP 010989,5411,Catering costs - provisions,10.55,0.00,10.55
Regeneration and Local Services,Corporate Property and Land,021242,Catering - County Hall,Supplies and Services,324117,Provisions E324,06-Mar-2020,000009019967069,FREEMAN CATERING BUTCH,5422,Catering costs - provisions,311.78,0.00,311.78
Regeneration and Local Services,Corporate Property and Land,021242,Catering - County Hall,Supplies and Services,324117,Provisions E324,06-Mar-2020,000009019967071,HOPWELLS LTD,5811,Catering costs - provisions,308.02,0.00,308.02
Regeneration and Local Services,Corporate Property and Land,021242,Catering - County Hall,Supplies and Services,324117,Provisions E324,06-Mar-2020,000009019967073,HOPWELLS LTD,5811,Catering costs - provisions,416.09,0.00,416.09
Regeneration and Local Services,Corporate Property and Land,021242,Catering - County Hall,Supplies and Services,324117,Provisions E324,06-Mar-2020,000009019967075,JR HOLLAND FOODSERVICE,5499,Catering costs - provisions,77.70,0.00,77.70
Regeneration and Local Services,Corporate Property and Land,021242,Catering - County Hall,Supplies and Services,324117,Provisions E324,06-Mar-2020,000009019967077,JR HOLLAND FOODSERVICE,5499,Catering costs - provisions,72.96,12.16,60.80
Regeneration and Local Services,Corporate Property and Land,021242,Catering - County Hall,Supplies and Services,324117,Provisions E324,06-Mar-2020,000009019967079,JR HOLLAND FOODSERVICE,5499,Catering costs - provisions,36.34,0.00,36.34
Regeneration and Local Services,Culture Sport and Tourism,054812,Gala Theatre - Catering etc,Supplies and Services,324117,Provisions E324,06-Mar-2020,000009019967097,FREEMAN CATERING BUTCH,5422,Catering costs - provisions,21.71,0.00,21.71
Regeneration and Local Services,Culture Sport and Tourism,054812,Gala Theatre - Catering etc,Supplies and Services,324117,Provisions E324,06-Mar-2020,000009019967099,HOPWELLS LTD,5811,Catering costs - provisions,68.70,0.00,68.70
Regeneration and Local Services,Development and Housing,030772,CLLD South,Supplies and Services,304259,Equipment and Materials,06-Mar-2020,000009019967119,DISCLOSURE & BARRING,9399,Equipment-purchase and rental,13.00,0.00,13.00
Regeneration and Local Services,Culture Sport and Tourism,054813,Gala Theatre - Technical,Supplies and Services,304403,Equipment and Materials,06-Mar-2020,000009019967157,AMZNMktplace,5999,Other consumables,259.99,0.00,259.99
Regeneration and Local Services,Environmental Services,010314,Nei.Prot - Bereavement Services,Supplies and Services,304259,Equipment and Materials,06-Mar-2020,000009019967163,Durham County CNCL,9399,Equipment-purchase and rental,11.00,0.00,11.00
Regeneration and Local Services,Development and Housing,030776,LINKCD Flexible Fund,Transport,235057,Public Transport,06-Mar-2020,000009019967219,ARRIVA NORTH EAST,4131,Staff travelling,26.20,0.00,26.20
Regeneration and Local Services,Environmental Services,011060,C&G - Hardwick Park Catering,Supplies and Services,324117,Provisions E324,06-Mar-2020,000009019967237,FREEMAN CATERING BUTCH,5422,Catering costs - provisions,42.15,0.00,42.15
Regeneration and Local Services,Environmental Services,011060,C&G - Hardwick Park Catering,Supplies and Services,324117,Provisions E324,06-Mar-2020,000009019967239,FREEMAN CATERING BUTCH,5422,Catering costs - provisions,24.03,0.00,24.03
Regeneration and Local Services,Environmental Services,011060,C&G - Hardwick Park Catering,Supplies and Services,324117,Provisions E324,06-Mar-2020,000009019967241,HOPWELLS LTD,5811,Catering costs - provisions,110.91,0.00,110.91
Regeneration and Local Services,Environmental Services,011060,C&G - Hardwick Park Catering,Supplies and Services,324117,Provisions E324,06-Mar-2020,000009019967243,JR HOLLAND FOODSERVICE,5499,Catering costs - provisions,8.69,0.00,8.69
Regeneration and Local Services,Culture Sport and Tourism,011200,Visual Arts 011200,Supplies and Services,304403,Equipment and Materials,06-Mar-2020,000009019967249,AMZNMktplace,5999,Other consumables,157.38,0.00,157.38
Regeneration and Local Services,Corporate Property and Land,021234,Catering - Locomotion,Supplies and Services,324117,Provisions E324,06-Mar-2020,000009019967255,FREEMAN CATERING BUTCH,5422,Catering costs - provisions,69.96,0.00,69.96
Regeneration and Local Services,Corporate Property and Land,021234,Catering - Locomotion,Supplies and Services,324117,Provisions E324,06-Mar-2020,000009019967257,HOPWELLS LTD,5811,Catering costs - provisions,323.50,0.00,323.50
Regeneration and Local Services,Corporate Property and Land,021234,Catering - Locomotion,Premises,145009,Cleaning and Domestic Supplies,06-Mar-2020,000009019967259,ALLIANCE DISPOSABLES L,2842,Other cleaning and domestic costs,55.37,9.23,46.14
Regeneration and Local Services,Corporate Property and Land,021234,Catering - Locomotion,Supplies and Services,324117,Provisions E324,06-Mar-2020,000009019967261,JR HOLLAND FOODSERVICE,5499,Catering costs - provisions,57.67,0.00,57.67
Children and Young Peoples Services,Head of Childrens Social Care,085331,New Lea Childrens Home,Supplies and Services,324117,Provisions E324,06-Mar-2020,000009019967263,ASDA GROCERIES ONLINE,5411,Catering costs - provisions,233.94,0.00,233.94
Children and Young Peoples Services,Head of Childrens Social Care,085331,New Lea Childrens Home,Supplies and Services,324117,Provisions E324,06-Mar-2020,000009019967265,ASDA GROCERIES ONLINE,5411,Catering costs - provisions,-7.82,0.00,-7.82
Regeneration and Local Services,Corporate Property and Land,010525,Catering - Green Lane,Supplies and Services,324117,Provisions E324,06-Mar-2020,000009019967269,FREEMAN CATERING BUTCH,5422,Catering costs - provisions,56.04,0.00,56.04
Regeneration and Local Services,Corporate Property and Land,010525,Catering - Green Lane,Supplies and Services,324117,Provisions E324,06-Mar-2020,000009019967271,HOPWELLS LTD,5811,Catering costs - provisions,80.93,0.00,80.93
Regeneration and Local Services,Corporate Property and Land,010525,Catering - Green Lane,Supplies and Services,324117,Provisions E324,06-Mar-2020,000009019967273,JR HOLLAND FOODSERVICE,5499,Catering costs - provisions,75.22,0.00,75.22
Regeneration and Local Services,Development and Housing,030554,International Relations 030554,Transport,235057,Public Transport,06-Mar-2020,000009019967285,3C_ NSL Durham WAP,7523,Staff travelling,1.50,0.00,1.50
Regeneration and Local Services,Development and Housing,030554,International Relations 030554,Supplies and Services,348037,Subsistence E348,06-Mar-2020,000009019967287,Palatine Cafe1,5812,Subsistence,5.40,0.00,5.40
Children and Young Peoples Services,Head of Early Help Inclusion & Vulnerable Children.,088108,Spennymoor & Shildon 0-19 Targeted Family Support,Supplies and Services,304259,Equipment and Materials,06-Mar-2020,000009019967289,AMZNMktplace,5999,Equipment-purchase and rental,2.60,0.43,2.17
Children and Young Peoples Services,Head of Early Help Inclusion & Vulnerable Children.,088108,Spennymoor & Shildon 0-19 Targeted Family Support,Supplies and Services,308011,Furniture,06-Mar-2020,000009019967291,WWW.IKEA.COM,5712,Furniture repair and replacement,437.00,0.00,437.00
Children and Young Peoples Services,Head of Early Help Inclusion & Vulnerable Children.,088108,Spennymoor & Shildon 0-19 Targeted Family Support,Supplies and Services,304259,Equipment and Materials,06-Mar-2020,000009019967293,TESCO STORES 6329,5411,Equipment-purchase and rental,51.40,0.00,51.40
Children and Young Peoples Services,Head of Early Help Inclusion & Vulnerable Children.,088108,Spennymoor & Shildon 0-19 Targeted Family Support,Supplies and Services,312009,Newspapers books and periodicals E312,06-Mar-2020,000009019967295,AMZNMktplace,5999,Newspapers books and periodicals,18.20,3.03,15.17
Children and Young Peoples Services,Head of Early Help Inclusion & Vulnerable Children.,088108,Spennymoor & Shildon 0-19 Targeted Family Support,Supplies and Services,304259,Equipment and Materials,06-Mar-2020,000009019967297,AMZNMktplace,5999,Equipment-purchase and rental,25.98,4.34,21.64
Children and Young Peoples Services,Head of Early Help Inclusion & Vulnerable Children.,088108,Spennymoor & Shildon 0-19 Targeted Family Support,Supplies and Services,304259,Equipment and Materials,06-Mar-2020,000009019967299,AMZNMktplace,5999,Equipment-purchase and rental,30.95,5.17,25.78
Children and Young Peoples Services,Head of Early Help Inclusion & Vulnerable Children.,088108,Spennymoor & Shildon 0-19 Targeted Family Support,Supplies and Services,304259,Equipment and Materials,06-Mar-2020,000009019967305,AMZNMKTPLACE AMAZON.CO,5999,Equipment-purchase and rental,14.99,2.50,12.49
Adult and Health Services,Head of Adults,055643,Hawthorn House LD Respite Unit,Supplies and Services,304403,Equipment and Materials,06-Mar-2020,000009019967359,AMZNMktplace,5999,Other consumables,124.85,0.00,124.85
Adult and Health Services,Head of Adults,055643,Hawthorn House LD Respite Unit,Supplies and Services,304403,Equipment and Materials,06-Mar-2020,000009019967361,AMZNMKTPLACE AMAZON.CO,5999,Other consumables,21.99,0.00,21.99
Regeneration and Local Services,Development and Housing,030771,Durham Advance Flexible Fund,Transport,235057,Public Transport,06-Mar-2020,000009019967373,B47597713 BLUELINE GRO,4121,Staff travelling,7.20,0.00,7.20
Regeneration and Local Services,Development and Housing,030771,Durham Advance Flexible Fund,Transport,235057,Public Transport,06-Mar-2020,000009019967375,B47597747 BLUELINE GRO,4121,Staff travelling,9.50,0.00,9.50
Regeneration and Local Services,Development and Housing,030771,Durham Advance Flexible Fund,Supplies and Services,304259,Equipment and Materials,06-Mar-2020,000009019967377,Durham County CNCL,9399,Equipment-purchase and rental,210.00,0.00,210.00
Children and Young Peoples Services,Head of Childrens Social Care,085342,9 Cedar Drive Aycliffe,Vehicles Equipment Furniture and Fittings,912701,Computer equipment,06-Mar-2020,000009019967395,PP 9324CODE,8999,Computer equipment,1.00,0.00,1.00
Children and Young Peoples Services,Head of Childrens Social Care,085342,9 Cedar Drive Aycliffe,Supplies and Services,324117,Provisions E324,06-Mar-2020,000009019967399,TESCO STORES 2916,5411,Catering costs - provisions,10.03,0.00,10.03
Children and Young Peoples Services,Head of Childrens Social Care,085342,9 Cedar Drive Aycliffe,Supplies and Services,324117,Provisions E324,06-Mar-2020,000009019967401,TESCO STORES 2916,5411,Catering costs - provisions,10.00,0.00,10.00
Children and Young Peoples Services,Head of Childrens Social Care,085342,9 Cedar Drive Aycliffe,Transport,235057,Public Transport,06-Mar-2020,000009019967403,ARRIVA NORTH EAST,4131,Staff travelling,100.00,0.00,100.00
Children and Young Peoples Services,Head of Childrens Social Care,085342,9 Cedar Drive Aycliffe,Supplies and Services,324117,Provisions E324,06-Mar-2020,000009019967405,ALDI 74 774,5411,Catering costs - provisions,5.23,0.00,5.23
Children and Young Peoples Services,Head of Early Help Inclusion & Vulnerable Children.,085957,Secure Management,Supplies and Services,328041,Clothing uniforms and laundry E328,06-Mar-2020,000009019967423,FOOTASYLUM PLC,5691,Clothing uniforms and laundry,64.98,0.00,64.98
Children and Young Peoples Services,Head of Early Help Inclusion & Vulnerable Children.,085957,Secure Management,Supplies and Services,328041,Clothing uniforms and laundry E328,06-Mar-2020,000009019967425,FOOTASYLUM PLC,5691,Clothing uniforms and laundry,69.99,0.00,69.99
Children and Young Peoples Services,Head of Early Help Inclusion & Vulnerable Children.,085957,Secure Management,Supplies and Services,304221,Equipment and Materials,06-Mar-2020,000009019967427,SCREWFIX DIRECT,5200,Direct materials,9.95,0.00,9.95
Children and Young Peoples Services,Head of Early Help Inclusion & Vulnerable Children.,085957,Secure Management,Supplies and Services,328041,Clothing uniforms and laundry E328,06-Mar-2020,000009019967429,ARGOS LTD,5310,Clothing uniforms and laundry,83.95,0.00,83.95
Children and Young Peoples Services,Head of Early Help Inclusion & Vulnerable Children.,085957,Secure Management,Supplies and Services,328041,Clothing uniforms and laundry E328,06-Mar-2020,000009019967431,ARGOS LTD,5310,Clothing uniforms and laundry,43.95,0.00,43.95
Regeneration and Local Services,Corporate Property and Land,030691,Catering - Durham Dales Centre,Supplies and Services,324117,Provisions E324,06-Mar-2020,000009019967435,FREEMAN CATERING BUTCH,5422,Catering costs - provisions,44.06,0.00,44.06
Regeneration and Local Services,Corporate Property and Land,030691,Catering - Durham Dales Centre,Supplies and Services,324117,Provisions E324,06-Mar-2020,000009019967437,FREEMAN CATERING BUTCH,5422,Catering costs - provisions,80.73,0.00,80.73
Regeneration and Local Services,Corporate Property and Land,030691,Catering - Durham Dales Centre,Supplies and Services,324117,Provisions E324,06-Mar-2020,000009019967439,HOPWELLS LTD,5811,Catering costs - provisions,2.70,0.45,2.25
Regeneration and Local Services,Corporate Property and Land,030691,Catering - Durham Dales Centre,Supplies and Services,324117,Provisions E324,06-Mar-2020,000009019967439 - 1,HOPWELLS LTD,5811,Catering costs - provisions,203.45,,203.45
Regeneration and Local Services,Corporate Property and Land,030691,Catering - Durham Dales Centre,Premises,145009,Cleaning and Domestic Supplies,06-Mar-2020,000009019967441,ALLIANCE DISPOSABLES L,2842,Other cleaning and domestic costs,37.14,6.19,30.95
Regeneration and Local Services,Corporate Property and Land,030691,Catering - Durham Dales Centre,Premises,145009,Cleaning and Domestic Supplies,06-Mar-2020,000009019967441 - 1,ALLIANCE DISPOSABLES L,2842,Other cleaning and domestic costs,25.46,,25.46
Regeneration and Local Services,Corporate Property and Land,030691,Catering - Durham Dales Centre,Supplies and Services,324117,Provisions E324,06-Mar-2020,000009019967443,HOPWELLS LTD,5811,Catering costs - provisions,-11.63,0.00,-11.63
Adult and Health Services,Head of Adults,055306,Spennymoor Pathways,Supplies and Services,324117,Provisions E324,06-Mar-2020,000009019967447,ASDA SUPERSTORE 4987,5411,Catering costs - provisions,11.00,0.00,11.00
Adult and Health Services,Head of Adults,055643,Hawthorn House LD Respite Unit,Supplies and Services,324117,Provisions E324,06-Mar-2020,000009019967453,FREEMAN CATERING BUTCH,5422,Catering costs - provisions,35.90,0.00,35.90
Adult and Health Services,Head of Adults,055643,Hawthorn House LD Respite Unit,Supplies and Services,324117,Provisions E324,06-Mar-2020,000009019967455,JR HOLLAND FOODSERVICE,5499,Catering costs - provisions,25.07,0.00,25.07
Regeneration and Local Services,Environmental Services,031235,North Pennines - INTERREG - Atlantic Geoparcs,Supplies and Services,352001,Conference Expenses,06-Mar-2020,000009019967457,THE OLD RECTORY COUNTR,7011,Conferencesseminars fees etc,"1,779.45",0.00,1779.45
Regeneration and Local Services,Environmental Services,010301,C&G - North Grounds Maintenance,Supplies and Services,304221,Equipment and Materials,06-Mar-2020,000009019967485,SCREWFIX DIR LTD,5211,Direct materials,49.99,0.00,49.99
Children and Young Peoples Services,Head of Early Help Inclusion & Vulnerable Children.,071693,Brandon Childrens Centre,Supplies and Services,324117,Provisions E324,06-Mar-2020,000009019967487,BESTWAY WHOLESALE,5451,Catering costs - provisions,35.95,0.00,35.95
Children and Young Peoples Services,Head of Early Help Inclusion & Vulnerable Children.,071593,Bullion Childrens Centre,Supplies and Services,324117,Provisions E324,06-Mar-2020,000009019967489,BESTWAY WHOLESALE,5451,Catering costs - provisions,124.41,0.00,124.41
Children and Young Peoples Services,Head of Childrens Social Care,085633,Families First Chester-Le-Street,Supplies and Services,384999,Miscellaneous Expenses,06-Mar-2020,000009019967491,GO NORTH EAST LIMITED,4131,Other expenses,20.00,0.00,20.00
Children and Young Peoples Services,Head of Early Help Inclusion & Vulnerable Children.,071445,Chester le Street One Point Hub,Supplies and Services,324117,Provisions E324,06-Mar-2020,000009019967493,BESTWAY WHOLESALE,5451,Catering costs - provisions,-39.48,0.00,-39.48
Resources BK0010,Digital and Customer Services,065335,School Services - Implementations,Supplies and Services,304303,Equipment and Materials,06-Mar-2020,000009019967495,WWW.TOOLSTATION.COM,5251,Network for resale,59.96,9.99,49.97
Resources BK0010,Digital and Customer Services,065335,School Services - Implementations,Supplies and Services,304639,Equipment and Materials,06-Mar-2020,000009019967497,WWW.AVPARTMASTER.NET,7622,Technicians-supplies,272.48,45.41,227.07
Resources BK0010,Digital and Customer Services,065335,School Services - Implementations,Supplies and Services,304639,Equipment and Materials,06-Mar-2020,000009019967499,WWW.AVPARTMASTER.NET,7622,Technicians-supplies,172.56,28.76,143.80
Resources BK0010,Digital and Customer Services,065335,School Services - Implementations,Supplies and Services,304303,Equipment and Materials,06-Mar-2020,000009019967501,CABLES DIRECT LTD,8999,Network for resale,100.32,16.72,83.60
Adult and Health Services,Head of Adults,056601,Substance Misuse,Supplies and Services,338048,Services,06-Mar-2020,000009019967509,HMCOURTS-SERVICE.G,9222,Court costs 338048,75.00,0.00,75.00
Transformation and Partnerships,Business Support,052986,CYPS - Locality and Operational Support,Supplies and Services,304259,Equipment and Materials,06-Mar-2020,000009019967513,DVLA DRIVER ONLINE,9399,Equipment-purchase and rental,34.00,0.00,34.00
Transformation and Partnerships,Business Support,052986,CYPS - Locality and Operational Support,Transport,235057,Public Transport,06-Mar-2020,000009019967515,ARRIVA NORTH EAST,4131,Staff travelling,29.70,0.00,29.70
Transformation and Partnerships,Business Support,052986,CYPS - Locality and Operational Support,Transport,235057,Public Transport,06-Mar-2020,000009019967517,ARRIVA NORTH EAST,4131,Staff travelling,29.70,0.00,29.70
Regeneration and Local Services,Corporate Property and Land,021324,Catering - Meadowfield,Supplies and Services,324117,Provisions E324,06-Mar-2020,000009019967521,FREEMAN CATERING BUTCH,5422,Catering costs - provisions,54.86,0.00,54.86
Regeneration and Local Services,Corporate Property and Land,021324,Catering - Meadowfield,Supplies and Services,324117,Provisions E324,06-Mar-2020,000009019967523,FREEMAN CATERING BUTCH,5422,Catering costs - provisions,68.73,0.00,68.73
Regeneration and Local Services,Corporate Property and Land,021324,Catering - Meadowfield,Supplies and Services,324117,Provisions E324,06-Mar-2020,000009019967525,HOPWELLS LTD,5811,Catering costs - provisions,83.98,0.00,83.98
Regeneration and Local Services,Corporate Property and Land,021324,Catering - Meadowfield,Supplies and Services,324117,Provisions E324,06-Mar-2020,000009019967527,JR HOLLAND FOODSERVICE,5499,Catering costs - provisions,15.72,0.00,15.72
Children and Young Peoples Services,Head of Childrens Social Care,085332,Middlestone Moor CU,Transport,235057,Public Transport,06-Mar-2020,000009019967529,Go North East,4111,Staff travelling,17.00,0.00,17.00
Children and Young Peoples Services,Head of Childrens Social Care,085332,Middlestone Moor CU,Employees,040149,Recruitment Instruction and Training,06-Mar-2020,000009019967531,SumUp The Computer S,8999,Training-all costs,40.00,0.00,40.00
Children and Young Peoples Services,Head of Childrens Social Care,085332,Middlestone Moor CU,Supplies and Services,324117,Provisions E324,06-Mar-2020,000009019967533,ASDA STORES,5411,Catering costs - provisions,3.70,0.00,3.70
Children and Young Peoples Services,Head of Childrens Social Care,085342,9 Cedar Drive Aycliffe,Supplies and Services,324117,Provisions E324,06-Mar-2020,000009019967547,TESCO STORES 2916,5411,Catering costs - provisions,67.51,0.00,67.51
Children and Young Peoples Services,Head of Childrens Social Care,085342,9 Cedar Drive Aycliffe,Supplies and Services,324117,Provisions E324,06-Mar-2020,000009019967549,TESCO STORES 2916,5411,Catering costs - provisions,16.00,0.00,16.00
Children and Young Peoples Services,Head of Childrens Social Care,085342,9 Cedar Drive Aycliffe,Supplies and Services,324117,Provisions E324,06-Mar-2020,000009019967551,WALKERS BUTCHERS & BAK,5499,Catering costs - provisions,12.15,0.00,12.15
Children and Young Peoples Services,Head of Education and Skills,071802,Louisa Cent Nursery,Supplies and Services,324117,Provisions E324,06-Mar-2020,000009019967553,ASDA SUPERSTORE,5411,Catering costs - provisions,7.43,0.00,7.43
Children and Young Peoples Services,Head of Early Help Inclusion & Vulnerable Children.,088107,Ferryhill & Newton Aycliffe 0-19 Community Family Hub,Supplies and Services,304403,Equipment and Materials,06-Mar-2020,000009019967565,AMZNMktplace,5999,Other consumables,11.99,2.00,9.99
Children and Young Peoples Services,Head of Early Help Inclusion & Vulnerable Children.,088107,Ferryhill & Newton Aycliffe 0-19 Community Family Hub,Supplies and Services,304403,Equipment and Materials,06-Mar-2020,000009019967567,AMZNMKTPLACE AMAZON.CO,5999,Other consumables,29.97,5.01,24.96
Children and Young Peoples Services,Head of Childrens Social Care,085341,High Etherley Satelite Home,Supplies and Services,324117,Provisions E324,06-Mar-2020,000009019967599,TESCO STORES 6329,5411,Catering costs - provisions,250.99,0.00,250.99
Adult and Health Services,Head of Adults,055309,Peterlee Pathways,Supplies and Services,324117,Provisions E324,06-Mar-2020,000009019967601,ASDA STORES LTD,5411,Catering costs - provisions,10.00,0.00,10.00
Regeneration and Local Services,Environmental Services,031200,North Pennines Core,Transport,235057,Public Transport,06-Mar-2020,000009019967619,LNER CAR PARK DHM,4112,Staff travelling,14.50,0.00,14.50
Children and Young Peoples Services,Head of Education and Skills,070264,EDC Premises,Supplies and Services,324117,Provisions E324,06-Mar-2020,000009031533099,BATLEYS PERTH,5300,Catering costs - provisions,89.44,0.00,89.44
Regeneration and Local Services,Corporate Property and Land,010525,Catering - Green Lane,Supplies and Services,324117,Provisions E324,06-Mar-2020,000009031533327,BATLEYS PERTH,5300,Catering costs - provisions,193.44,32.24,161.20
Regeneration and Local Services,Corporate Property and Land,010525,Catering - Green Lane,Supplies and Services,324117,Provisions E324,06-Mar-2020,000009031533327 - 1,BATLEYS PERTH,5300,Catering costs - provisions,84.45,,84.45
Regeneration and Local Services,Corporate Property and Land,010525,Catering - Green Lane,Supplies and Services,324117,Provisions E324,06-Mar-2020,000009031533329,BATLEYS PERTH,5300,Catering costs - provisions,12.12,0.00,12.12
Children and Young Peoples Services,Head of Childrens Social Care,085341,High Etherley Satelite Home,Supplies and Services,304403,Equipment and Materials,07-Mar-2020,000009019966943,CEX (TRINITY SQUARE),5065,Other consumables,6.00,0.00,6.00
Children and Young Peoples Services,Head of Childrens Social Care,085341,High Etherley Satelite Home,Supplies and Services,304245,Equipment and Materials,07-Mar-2020,000009019966963,HOMEBASE LTD 822,5200,Materials,3.50,0.00,3.50
Children and Young Peoples Services,Head of Childrens Social Care,085341,High Etherley Satelite Home,Supplies and Services,332047,Printing Stationery and Gen Off Exps,07-Mar-2020,000009019966965,TESCO STORES 6329,5411,Stationery,6.00,0.00,6.00
Children and Young Peoples Services,Head of Childrens Social Care,085341,High Etherley Satelite Home,Transport,215995,Running Costs of Vehicles,07-Mar-2020,000009019966967,TESCO STORES 6329,5411,Vehicle running expenses,2.50,0.00,2.50
Children and Young Peoples Services,Head of Childrens Social Care,085341,High Etherley Satelite Home,Supplies and Services,324117,Provisions E324,07-Mar-2020,000009019966969,TESCO STORES 6329,5411,Catering costs - provisions,1.00,0.00,1.00
Children and Young Peoples Services,Head of Childrens Social Care,085341,High Etherley Satelite Home,Supplies and Services,304403,Equipment and Materials,07-Mar-2020,000009019966971,TESCO STORES 6329,5411,Other consumables,1.00,0.00,1.00
Children and Young Peoples Services,Head of Childrens Social Care,085341,High Etherley Satelite Home,Supplies and Services,384999,Miscellaneous Expenses,07-Mar-2020,000009019966973,TESCO STORES 6329,5411,Other expenses,1.00,0.00,1.00
Resources BK0010,Digital and Customer Services,011104,Contact Centres,Supplies and Services,304403,Equipment and Materials,07-Mar-2020,000009019966987,AMZNMktplace,5999,Other consumables,19.98,0.00,19.98
Resources BK0010,Digital and Customer Services,070110,School Services - Man Info System (MIS) Support Team,Supplies and Services,342053,Computers and Communications,07-Mar-2020,000009019966989,WPMU DEV INCSUBFEE.COM,7372,Computer software,14.69,0.00,14.69
Children and Young Peoples Services,Head of Childrens Social Care,085342,9 Cedar Drive Aycliffe,Supplies and Services,324117,Provisions E324,07-Mar-2020,000009019967023,TESCO STORES 2916,5411,Catering costs - provisions,38.11,0.00,38.11
Children and Young Peoples Services,Head of Childrens Social Care,085511,Emergency Duty Team,Employees,040149,Recruitment Instruction and Training,07-Mar-2020,000009019967111,PREMIER INN,3811,Training-all costs,135.00,0.00,135.00
Children and Young Peoples Services,Head of Childrens Social Care,085352,Tow Law CU,Supplies and Services,328041,Clothing uniforms and laundry E328,07-Mar-2020,000009019967133,ARGOS LTD,5310,Clothing uniforms and laundry,78.93,0.00,78.93
Children and Young Peoples Services,Head of Childrens Social Care,085352,Tow Law CU,Supplies and Services,384999,Miscellaneous Expenses,07-Mar-2020,000009019967135,Amazon.co.uk WL11P6245,5969,Other expenses,4.99,2.59,2.40
Children and Young Peoples Services,Head of Childrens Social Care,085352,Tow Law CU,Supplies and Services,384999,Miscellaneous Expenses,07-Mar-2020,000009019967137,Amazon.co.uk 2I88H9T15,5969,Other expenses,10.55,2.59,7.96
Children and Young Peoples Services,Head of Childrens Social Care,085352,Tow Law CU,Supplies and Services,384999,Miscellaneous Expenses,07-Mar-2020,000009019967139,Amazon.co.uk 7J27N8QY5,5969,Other expenses,4.99,0.83,4.16
Children and Young Peoples Services,Head of Childrens Social Care,085334,West Rainton Satelite Home,Supplies and Services,304999,Equipment and Materials,07-Mar-2020,000009019967159,INFINITE AIR,7991,Misc equipment tools and materials,23.90,3.98,19.92
Regeneration and Local Services,Culture Sport and Tourism,054815,Gala Theatre Stage School,Supplies and Services,328041,Clothing uniforms and laundry E328,07-Mar-2020,000009019967251,THE WORKS,5310,Clothing uniforms and laundry,6.05,0.00,6.05
Children and Young Peoples Services,Head of Early Help Inclusion & Vulnerable Children.,088108,Spennymoor & Shildon 0-19 Targeted Family Support,Supplies and Services,304259,Equipment and Materials,07-Mar-2020,000009019967301,AMZNMktplace,5999,Equipment-purchase and rental,3.95,0.66,3.29
Children and Young Peoples Services,Head of Early Help Inclusion & Vulnerable Children.,088108,Spennymoor & Shildon 0-19 Targeted Family Support,Supplies and Services,304259,Equipment and Materials,07-Mar-2020,000009019967303,HOME BARGAINS,5251,Equipment-purchase and rental,3.96,0.00,3.96
Adult and Health Services,Head of Adults,055643,Hawthorn House LD Respite Unit,Supplies and Services,304403,Equipment and Materials,07-Mar-2020,000009019967363,AMZNMKTPLACE AMAZON.CO,5999,Other consumables,47.99,0.00,47.99
Children and Young Peoples Services,Head of Education and Skills,071802,Louisa Cent Nursery,Supplies and Services,324117,Provisions E324,07-Mar-2020,000009019967371,ASDA SUPERSTORE,5411,Catering costs - provisions,137.35,0.00,137.35
Children and Young Peoples Services,Head of Childrens Social Care,085333,Coxhoe Satelite Home,Supplies and Services,332047,Printing Stationery and Gen Off Exps,07-Mar-2020,000009019967379,ODEON/BOOKIT,7832,Stationery,25.50,0.00,25.50
Children and Young Peoples Services,Head of Childrens Social Care,085342,9 Cedar Drive Aycliffe,Supplies and Services,344033,Telephones,07-Mar-2020,000009019967407,giffgaff,4814,Telephones general-all costs,10.00,0.00,10.00
Children and Young Peoples Services,Head of Childrens Social Care,085342,9 Cedar Drive Aycliffe,Supplies and Services,304403,Equipment and Materials,07-Mar-2020,000009019967409,AMZNMktplace,5999,Other consumables,35.00,0.00,35.00
Children and Young Peoples Services,Head of Education and Skills,078100,Curric and Professional Development 078100,Supplies and Services,384999,Miscellaneous Expenses,07-Mar-2020,000009019967471,Amazon.co.uk E71LR2XC5,5969,Other expenses,27.90,0.00,27.90
Transformation and Partnerships,Business Support,052986,CYPS - Locality and Operational Support,Supplies and Services,384999,Miscellaneous Expenses,07-Mar-2020,000009019967519,Amazon.co.uk W76NT5GP5,5969,Other expenses,119.00,0.00,119.00
Children and Young Peoples Services,Head of Childrens Social Care,085332,Middlestone Moor CU,Supplies and Services,312009,Newspapers books and periodicals E312,07-Mar-2020,000009019967535,MIDDLESTONE MOOR NEWSA,5994,Newspapers books and periodicals,32.00,0.00,32.00
Children and Young Peoples Services,Head of Childrens Social Care,085332,Middlestone Moor CU,Supplies and Services,328041,Clothing uniforms and laundry E328,07-Mar-2020,000009019967621,ROF59,7996,Clothing uniforms and laundry,11.50,0.00,11.50
Children and Young Peoples Services,Head of Childrens Social Care,085332,Middlestone Moor CU,Supplies and Services,348037,Subsistence E348,07-Mar-2020,000009019967623,R.O.F. 59,5812,Subsistence,3.00,0.00,3.00
Regeneration and Local Services,Business Durham CL0850,030689,Inward Investment and Aftercare,Supplies and Services,342222,Computers and Communications,08-Mar-2020,000009019966947,FASTHOSTS INTERNET,4816,Comp hardware purch-network servers,13.19,2.20,10.99
Children and Young Peoples Services,Head of Education and Skills,071801,Selby Cottage Childcare Centre,Supplies and Services,304999,Equipment and Materials,08-Mar-2020,000009019966977,Amazon Prime LU22Y9AD5,5968,Misc equipment tools and materials,7.99,0.00,7.99
Children and Young Peoples Services,Head of Childrens Social Care,085333,Coxhoe Satelite Home,Supplies and Services,324117,Provisions E324,08-Mar-2020,000009019967051,TESCO STORES 2371,5411,Catering costs - provisions,10.35,0.00,10.35
Children and Young Peoples Services,Head of Childrens Social Care,085352,Tow Law CU,Supplies and Services,324117,Provisions E324,08-Mar-2020,000009019967063,LIDL GB CROOK,5411,Catering costs - provisions,2.08,0.00,2.08
Children and Young Peoples Services,Head of Childrens Social Care,085352,Tow Law CU,Supplies and Services,324117,Provisions E324,08-Mar-2020,000009019967065,774 026,5411,Catering costs - provisions,30.41,0.00,30.41
Children and Young Peoples Services,Head of Childrens Social Care,085332,Middlestone Moor CU,Supplies and Services,304403,Equipment and Materials,08-Mar-2020,000009019967083,ASDA SUPERSTORE 4987,5411,Other consumables,27.95,0.00,27.95
Children and Young Peoples Services,Head of Childrens Social Care,085332,Middlestone Moor CU,Supplies and Services,304403,Equipment and Materials,08-Mar-2020,000009019967085,ASDA SUPERSTORE 4987,5411,Other consumables,10.00,0.00,10.00
Children and Young Peoples Services,Head of Childrens Social Care,085332,Middlestone Moor CU,Supplies and Services,384302,Miscellaneous Expenses,08-Mar-2020,000009019967087,STARBUCKS THINFORD,5499,Activity expenses,4.15,0.00,4.15
Children and Young Peoples Services,Head of Childrens Social Care,085511,Emergency Duty Team,Employees,040149,Recruitment Instruction and Training,08-Mar-2020,000009019967113,PREMIER INN,3811,Training-all costs,62.00,0.00,62.00
Children and Young Peoples Services,Head of Childrens Social Care,085352,Tow Law CU,Supplies and Services,304403,Equipment and Materials,08-Mar-2020,000009019967141,AMZNMktplace,5999,Other consumables,55.98,9.34,46.64
Children and Young Peoples Services,Head of Education and Skills,071732,Dean Bank Childcare,Supplies and Services,324117,Provisions E324,08-Mar-2020,000009019967153,CO-OP GROUP 010503,5411,Catering costs - provisions,4.24,0.00,4.24
Children and Young Peoples Services,Head of Childrens Social Care,085334,West Rainton Satelite Home,Supplies and Services,384237,Miscellaneous Expenses,08-Mar-2020,000009019967221,FUN SHACK SEAHAM RECEP,7999,Recreational exps outings parties,28.97,4.83,24.14
Transformation and Partnerships,Business Support,052986,CYPS - Locality and Operational Support,Supplies and Services,304259,Equipment and Materials,08-Mar-2020,000009019967307,AMZNMktplace,5999,Equipment-purchase and rental,9.34,1.56,7.78
Regeneration and Local Services,Development and Housing,031500,Housing Solutions - Core Team,Supplies and Services,352001,Conference Expenses,08-Mar-2020,000009019967325,THE HONEST LAWYER,7011,Conferencesseminars fees etc,67.95,0.00,67.95
Children and Young Peoples Services,Head of Childrens Social Care,085341,High Etherley Satelite Home,Supplies and Services,324117,Provisions E324,08-Mar-2020,000009019967331,SHAKEAHOLIC,5499,Catering costs - provisions,8.18,0.00,8.18
Children and Young Peoples Services,Head of Childrens Social Care,085341,High Etherley Satelite Home,Supplies and Services,304259,Equipment and Materials,08-Mar-2020,000009019967333,JD SPORTS 193,5941,Equipment-purchase and rental,106.00,0.00,106.00
Adult and Health Services,Head of Adults,055643,Hawthorn House LD Respite Unit,Supplies and Services,304403,Equipment and Materials,08-Mar-2020,000009019967365,AMZNMktplace,5999,Other consumables,40.99,0.00,40.99
Adult and Health Services,Head of Adults,055643,Hawthorn House LD Respite Unit,Supplies and Services,304403,Equipment and Materials,08-Mar-2020,000009019967367,AMZNMktplace,5999,Other consumables,34.78,0.00,34.78
Adult and Health Services,Head of Adults,055643,Hawthorn House LD Respite Unit,Supplies and Services,324117,Provisions E324,08-Mar-2020,000009019967369,CO-OP GROUP 010465,5411,Catering costs - provisions,2.20,0.00,2.20
Children and Young Peoples Services,Head of Childrens Social Care,085333,Coxhoe Satelite Home,Supplies and Services,384999,Miscellaneous Expenses,08-Mar-2020,000009019967381,BODYCARE,5977,Other expenses,16.70,0.00,16.70
Children and Young Peoples Services,Head of Childrens Social Care,085333,Coxhoe Satelite Home,Supplies and Services,304403,Equipment and Materials,08-Mar-2020,000009019967383,FONEXTRAS,5999,Other consumables,10.00,0.00,10.00
Children and Young Peoples Services,Head of Childrens Social Care,085333,Coxhoe Satelite Home,Supplies and Services,328041,Clothing uniforms and laundry E328,08-Mar-2020,000009019967385,NEW LOOK 1744,5621,Clothing uniforms and laundry,17.05,0.00,17.05
Children and Young Peoples Services,Head of Childrens Social Care,085333,Coxhoe Satelite Home,Supplies and Services,304999,Equipment and Materials,08-Mar-2020,000009019967387,SUPERDRUG STORES PLC,5912,Misc equipment tools and materials,14.46,0.00,14.46
Children and Young Peoples Services,Head of Childrens Social Care,085333,Coxhoe Satelite Home,Supplies and Services,348037,Subsistence E348,08-Mar-2020,000009019967389,NANDOS METROCENTRE GA,5812,Subsistence,29.60,0.00,29.60
Children and Young Peoples Services,Head of Early Help Inclusion & Vulnerable Children.,085957,Secure Management,Supplies and Services,324117,Provisions E324,08-Mar-2020,000009019967433,TESCO STORES 6329,5411,Catering costs - provisions,121.95,0.00,121.95
Children and Young Peoples Services,Head of Childrens Social Care,085334,West Rainton Satelite Home,Supplies and Services,384237,Miscellaneous Expenses,08-Mar-2020,000009019967473,FUN SHACK SEAHAM SERVE,7999,Recreational exps outings parties,12.75,0.00,12.75
Children and Young Peoples Services,Head of Childrens Social Care,085334,West Rainton Satelite Home,Supplies and Services,304259,Equipment and Materials,08-Mar-2020,000009019967475,SPORTSDIRECT 264,5941,Equipment-purchase and rental,10.50,0.00,10.50
Children and Young Peoples Services,Head of Childrens Social Care,085334,West Rainton Satelite Home,Supplies and Services,304259,Equipment and Materials,08-Mar-2020,000009019967477,SPORTSDIRECT 264,5941,Equipment-purchase and rental,20.00,0.00,20.00
Children and Young Peoples Services,Head of Childrens Social Care,085332,Middlestone Moor CU,Supplies and Services,324117,Provisions E324,08-Mar-2020,000009019967537,ASDA SUPERSTORE 4987,5411,Catering costs - provisions,23.61,0.00,23.61
Transformation and Partnerships,Communications Management,060270,Communications and Marketing,Supplies and Services,336005,Advertising E336,08-Mar-2020,000009019967575,FACEBK XZW86Q65B2,7311,Advertising other than for staff,500.00,0.00,500.00
Children and Young Peoples Services,Head of Childrens Social Care,085333,Coxhoe Satelite Home,Supplies and Services,328041,Clothing uniforms and laundry E328,08-Mar-2020,000009027749353,PRIMARK 670 GATESHEAD,5651,Clothing uniforms and laundry,24.00,0.00,24.00
Regeneration and Local Services,Corporate Property and Land,021242,Catering - County Hall,Supplies and Services,324117,Provisions E324,08-Mar-2020,000009031533175,BATLEYS PERTH,5300,Catering costs - provisions,9.36,1.56,7.80
Regeneration and Local Services,Corporate Property and Land,021242,Catering - County Hall,Supplies and Services,324117,Provisions E324,08-Mar-2020,000009031533175 - 1,BATLEYS PERTH,5300,Catering costs - provisions,346.62,,346.62
Regeneration and Local Services,Environmental Services,011060,C&G - Hardwick Park Catering,Supplies and Services,324117,Provisions E324,08-Mar-2020,000009031533291,BATLEYS PERTH,5300,Catering costs - provisions,178.20,29.70,148.50
Regeneration and Local Services,Environmental Services,011060,C&G - Hardwick Park Catering,Supplies and Services,324117,Provisions E324,08-Mar-2020,000009031533291 - 1,BATLEYS PERTH,5300,Catering costs - provisions,240.06,,240.06
Children and Young Peoples Services,Head of Childrens Social Care,085342,9 Cedar Drive Aycliffe,Supplies and Services,344033,Telephones,08-Mar-2020,000009031533391,WWW.VOXI.CO.UK,4814,Telephones general-all costs,10.00,0.00,10.00
Adult and Health Services,Head of Adults,055643,Hawthorn House LD Respite Unit,Supplies and Services,324117,Provisions E324,08-Mar-2020,000009031533427,BATLEYS PERTH,5300,Catering costs - provisions,26.46,4.41,22.05
Adult and Health Services,Head of Adults,055643,Hawthorn House LD Respite Unit,Supplies and Services,324117,Provisions E324,08-Mar-2020,000009031533427 - 1,BATLEYS PERTH,5300,Catering costs - provisions,93.49,,93.49
Resources BK0010,Digital and Customer Services,070110,School Services - Man Info System (MIS) Support Team,Supplies and Services,342053,Computers and Communications,09-Mar-2020,000009019966991,WPMU DEV INCSUBFEE.COM,7372,Computer software,0.40,0.00,0.40
Regeneration and Local Services,Business Durham CL0850,030689,Inward Investment and Aftercare,Supplies and Services,304999,Equipment and Materials,09-Mar-2020,000009027748683,MAILCHIMP MONTHLY,5968,Misc equipment tools and materials,83.76,0.00,83.76
Children and Young Peoples Services,Head of Childrens Social Care,085341,High Etherley Satelite Home,Supplies and Services,304405,Equipment and Materials,09-Mar-2020,000009027748689,VAIB PHARMACY,5912,Medical supplies,9.00,0.00,9.00
Children and Young Peoples Services,Head of Childrens Social Care,085341,High Etherley Satelite Home,Supplies and Services,304405,Equipment and Materials,09-Mar-2020,000009027748691,VAIB PHARMACY,5912,Medical supplies,9.00,0.00,9.00
Children and Young Peoples Services,Head of Childrens Social Care,085341,High Etherley Satelite Home,Supplies and Services,328041,Clothing uniforms and laundry E328,09-Mar-2020,000009027748693,HALFORDS 0526,5940,Clothing uniforms and laundry,6.99,0.00,6.99
Children and Young Peoples Services,Head of Childrens Social Care,085341,High Etherley Satelite Home,Supplies and Services,384871,Miscellaneous Expenses,09-Mar-2020,000009027748695,IZ GAMERS LOUNGE,5999,Training-other activities,1.50,0.00,1.50
Children and Young Peoples Services,Head of Childrens Social Care,085341,High Etherley Satelite Home,Supplies and Services,328041,Clothing uniforms and laundry E328,09-Mar-2020,000009027748697,B&M RETAIL LTD,5310,Clothing uniforms and laundry,3.00,0.00,3.00
Regeneration and Local Services,Culture Sport and Tourism,011219,Office Services 011219,Supplies and Services,304403,Equipment and Materials,09-Mar-2020,000009027748731,AMZNMktplace,5999,Other consumables,13.74,0.00,13.74
Resources BK0010,Digital and Customer Services,065481,Technical Services 065481,Supplies and Services,342033,Computers and Communications,09-Mar-2020,000009027748737,AMZNMktplace,5999,Computer hardware,27.78,4.63,23.15
Resources BK0010,Digital and Customer Services,065481,Technical Services 065481,Supplies and Services,342033,Computers and Communications,09-Mar-2020,000009027748737 - 1,AMZNMktplace,5999,Computer hardware,34.00,,34.00
Resources BK0010,Digital and Customer Services,011104,Contact Centres,Supplies and Services,304403,Equipment and Materials,09-Mar-2020,000009027748747,AMZNMktplace,5999,Other consumables,12.00,2.00,10.00
Regeneration and Local Services,Development and Housing,030773,CLLD North,Supplies and Services,304259,Equipment and Materials,09-Mar-2020,000009027748783,GEN REGISTER OFFICE,9399,Equipment-purchase and rental,14.00,0.00,14.00
Children and Young Peoples Services,Head of Education and Skills,075021,Youth Employment Initiative,Supplies and Services,384199,Miscellaneous Expenses,09-Mar-2020,000009027748797,DVLA DRIVER ONLINE,9399,Other hired and contracted services,34.00,0.00,34.00
Regeneration and Local Services,Culture Sport and Tourism,030703,Partnership Services,Supplies and Services,336005,Advertising E336,09-Mar-2020,000009027748809,FACEBK 5SZY9RNUC2,7311,Advertising other than for staff,58.60,0.00,58.60
Children and Young Peoples Services,Head of Childrens Social Care,085342,9 Cedar Drive Aycliffe,Supplies and Services,324117,Provisions E324,09-Mar-2020,000009027748817,WILKO RETAIL LIMITED,5399,Catering costs - provisions,2.48,0.00,2.48
Children and Young Peoples Services,Head of Childrens Social Care,085342,9 Cedar Drive Aycliffe,Supplies and Services,348037,Subsistence E348,09-Mar-2020,000009027748819,COSTA COFFEE 43035195,5814,Subsistence,8.40,0.00,8.40
Children and Young Peoples Services,Head of Childrens Social Care,085342,9 Cedar Drive Aycliffe,Supplies and Services,324117,Provisions E324,09-Mar-2020,000009027748821,TESCO STORES 6329,5411,Catering costs - provisions,45.10,0.00,45.10
Regeneration and Local Services,Culture Sport and Tourism,011263,Louisa Centre 011263,Supplies and Services,324117,Provisions E324,09-Mar-2020,000009027748825,JR HOLLAND FOODSERVICE,5499,Catering costs - provisions,33.69,0.00,33.69
Regeneration and Local Services,Corporate Property and Land,021242,Catering - County Hall,Supplies and Services,324117,Provisions E324,09-Mar-2020,000009027748857,JR HOLLAND FOODSERVICE,5499,Catering costs - provisions,15.60,0.00,15.60
Regeneration and Local Services,Corporate Property and Land,021242,Catering - County Hall,Supplies and Services,324117,Provisions E324,09-Mar-2020,000009027748859,JR HOLLAND FOODSERVICE,5499,Catering costs - provisions,207.65,0.00,207.65
Regeneration and Local Services,Corporate Property and Land,021242,Catering - County Hall,Supplies and Services,324117,Provisions E324,09-Mar-2020,000009027748861,JR HOLLAND FOODSERVICE,5499,Catering costs - provisions,34.99,0.00,34.99
Resources BK0010,Digital and Customer Services,065481,Technical Services 065481,Supplies and Services,372009,Subscriptions E372,09-Mar-2020,000009027748887,NOMINET UK,7392,Subscriptions 372009,37.44,6.24,31.20
Resources BK0010,Digital and Customer Services,070204,School Services - Systems,Supplies and Services,372009,Subscriptions E372,09-Mar-2020,000009027748895,NOMINET UK,7392,Subscriptions 372009,46.80,7.80,39.00
Regeneration and Local Services,Culture Sport and Tourism,054812,Gala Theatre - Catering etc,Supplies and Services,324117,Provisions E324,09-Mar-2020,000009027748917,JR HOLLAND FOODSERVICE,5499,Catering costs - provisions,57.48,0.00,57.48
Regeneration and Local Services,Development and Housing,031576,B& B - Temp Accom,Supplies and Services,352001,Conference Expenses,09-Mar-2020,000009027748931,BUDGET EXPRESS HOTEL,7011,Conferencesseminars fees etc,50.00,0.00,50.00
Children and Young Peoples Services,Head of Childrens Social Care,085352,Tow Law CU,Supplies and Services,324117,Provisions E324,09-Mar-2020,000009027749037,ASDA GROCERIES ONLINE,5411,Catering costs - provisions,262.02,0.00,262.02
Regeneration and Local Services,Environmental Services,010900,Fleet - Meadowfield Fleet,Transport,215013,Running Costs of Vehicles,09-Mar-2020,000009027749045,DVLA VEHICLE TAX,9311,Vehicle Excise Duty (VED),167.50,0.00,167.50
Regeneration and Local Services,Environmental Services,010900,Fleet - Meadowfield Fleet,Transport,215013,Running Costs of Vehicles,09-Mar-2020,000009027749051,DVLA VEHICLE TAX,9311,Vehicle Excise Duty (VED),167.50,0.00,167.50
Regeneration and Local Services,Environmental Services,010864,Fleet - Hackworth Road Fleet,Transport,215013,Running Costs of Vehicles,09-Mar-2020,000009027749055,DVLA VEHICLE TAX,9311,Vehicle Excise Duty (VED),147.50,0.00,147.50
Regeneration and Local Services,Environmental Services,010900,Fleet - Meadowfield Fleet,Transport,215013,Running Costs of Vehicles,09-Mar-2020,000009027749061,DVLA VEHICLE TAX,9311,Vehicle Excise Duty (VED),167.50,0.00,167.50
Regeneration and Local Services,Environmental Services,010900,Fleet - Meadowfield Fleet,Transport,215013,Running Costs of Vehicles,09-Mar-2020,000009027749065,DVLA VEHICLE TAX,9311,Vehicle Excise Duty (VED),167.50,0.00,167.50
Regeneration and Local Services,Environmental Services,010900,Fleet - Meadowfield Fleet,Transport,215013,Running Costs of Vehicles,09-Mar-2020,000009027749069,DVLA VEHICLE TAX,9311,Vehicle Excise Duty (VED),167.50,0.00,167.50
Regeneration and Local Services,Environmental Services,010561,Fleet - Morrison Busty Fleet,Transport,215013,Running Costs of Vehicles,09-Mar-2020,000009027749071,DVLA VEHICLE TAX,9311,Vehicle Excise Duty (VED),167.50,0.00,167.50
Regeneration and Local Services,Environmental Services,010900,Fleet - Meadowfield Fleet,Transport,215013,Running Costs of Vehicles,09-Mar-2020,000009027749073,DVLA VEHICLE TAX,9311,Vehicle Excise Duty (VED),167.50,0.00,167.50
Children and Young Peoples Services,Head of Early Help Inclusion & Vulnerable Children.,088109,Spennymoor & Shildon 0-19 Community Family Hub,Supplies and Services,324117,Provisions E324,09-Mar-2020,000009027749103,ASDA SUPERSTORE 4987,5411,Catering costs - provisions,20.04,0.00,20.04
Children and Young Peoples Services,Head of Education and Skills,071732,Dean Bank Childcare,Supplies and Services,324117,Provisions E324,09-Mar-2020,000009027749123,ASDA GROCERIES ONLINE,5411,Catering costs - provisions,56.73,0.00,56.73
Children and Young Peoples Services,Head of Education and Skills,071732,Dean Bank Childcare,Supplies and Services,324117,Provisions E324,09-Mar-2020,000009027749127,ASDA GROCERIES ONLINE,5411,Catering costs - provisions,45.87,0.00,45.87
Children and Young Peoples Services,Head of Education and Skills,071732,Dean Bank Childcare,Supplies and Services,324117,Provisions E324,09-Mar-2020,000009027749133,CO-OP GROUP 010503,5411,Catering costs - provisions,8.16,0.00,8.16
Children and Young Peoples Services,Head of Education and Skills,071732,Dean Bank Childcare,Supplies and Services,324117,Provisions E324,09-Mar-2020,000009027749135,ASDA GROCERIES ONLINE,5411,Catering costs - provisions,-0.59,0.00,-0.59
Children and Young Peoples Services,Head of Childrens Social Care,085334,West Rainton Satelite Home,Supplies and Services,324117,Provisions E324,09-Mar-2020,000009027749145,LIDL GB HOUGHTON LE S,5411,Catering costs - provisions,114.19,0.00,114.19
Regeneration and Local Services,Development and Housing,030771,Durham Advance Flexible Fund,Supplies and Services,384700,Miscellaneous Expenses,09-Mar-2020,000009027749183,ARRIVA NORTH EAST,4131,Miscellaneous grants,4.50,0.00,4.50
Regeneration and Local Services,Environmental Services,010367,C&G - South Grounds Maintenance,Supplies and Services,384999,Miscellaneous Expenses,09-Mar-2020,000009027749197,GUSTHARTS.COM,5046,Other expenses,166.07,27.68,138.39
Regeneration and Local Services,Environmental Services,011058,C&G - Wharton Park,Supplies and Services,332047,Printing Stationery and Gen Off Exps,09-Mar-2020,000009027749201,AMZNMKTPLACE AMAZON.CO,5999,Stationery,22.99,3.83,19.16
Regeneration and Local Services,Environmental Services,011060,C&G - Hardwick Park Catering,Supplies and Services,304259,Equipment and Materials,09-Mar-2020,000009027749203,AO RETAIL LIMITED,5722,Equipment-purchase and rental,384.00,64.00,320.00
Regeneration and Local Services,Environmental Services,011060,C&G - Hardwick Park Catering,Supplies and Services,324117,Provisions E324,09-Mar-2020,000009027749211,JR HOLLAND FOODSERVICE,5499,Catering costs - provisions,20.82,0.00,20.82
Children and Young Peoples Services,Head of Childrens Social Care,085331,New Lea Childrens Home,Supplies and Services,324117,Provisions E324,09-Mar-2020,000009027749287,ASDA SUPERSTORE,5411,Catering costs - provisions,54.15,0.00,54.15
Children and Young Peoples Services,Head of Childrens Social Care,085331,New Lea Childrens Home,Supplies and Services,324117,Provisions E324,09-Mar-2020,000009027749289,ASDA SUPERSTORE,5411,Catering costs - provisions,53.66,0.00,53.66
Children and Young Peoples Services,Head of Childrens Social Care,085331,New Lea Childrens Home,Supplies and Services,324117,Provisions E324,09-Mar-2020,000009027749291,ASDA SUPERSTORE,5411,Catering costs - provisions,18.83,0.00,18.83
Children and Young Peoples Services,Head of Childrens Social Care,085331,New Lea Childrens Home,Supplies and Services,324117,Provisions E324,09-Mar-2020,000009027749293,ASDA SUPERSTORE,5411,Catering costs - provisions,14.70,0.00,14.70
Children and Young Peoples Services,Head of Childrens Social Care,085331,New Lea Childrens Home,Supplies and Services,324117,Provisions E324,09-Mar-2020,000009027749295,ASDA SUPERSTORE,5411,Catering costs - provisions,4.00,0.00,4.00
Resources BK0010,Legal & Democratic Services,067910,Democratic Representation 067910,Transport,235057,Public Transport,09-Mar-2020,000009027749317,WALKERGATE CAR PAR,7523,Staff travelling,1.80,0.00,1.80
Children and Young Peoples Services,Head of Early Help Inclusion & Vulnerable Children.,088108,Spennymoor & Shildon 0-19 Targeted Family Support,Supplies and Services,304259,Equipment and Materials,09-Mar-2020,000009027749319,AMZNMktplace,5999,Equipment-purchase and rental,19.99,3.33,16.66
Children and Young Peoples Services,Head of Early Help Inclusion & Vulnerable Children.,088108,Spennymoor & Shildon 0-19 Targeted Family Support,Supplies and Services,304259,Equipment and Materials,09-Mar-2020,000009027749321,AMZNMKTPLACE AMAZON.CO,5999,Equipment-purchase and rental,16.45,2.75,13.70
Children and Young Peoples Services,Head of Early Help Inclusion & Vulnerable Children.,088109,Spennymoor & Shildon 0-19 Community Family Hub,Supplies and Services,304259,Equipment and Materials,09-Mar-2020,000009027749323,Amazon.co.uk J53YM38L5,5969,Equipment-purchase and rental,9.99,0.00,9.99
Children and Young Peoples Services,Head of Early Help Inclusion & Vulnerable Children.,088116,South Area - Teenage Parent Programme,Supplies and Services,324117,Provisions E324,09-Mar-2020,000009027749325,SumUp The Hut Bishop,5814,Catering costs - provisions,73.50,0.00,73.50
Children and Young Peoples Services,Head of Early Help Inclusion & Vulnerable Children.,088108,Spennymoor & Shildon 0-19 Targeted Family Support,Supplies and Services,304259,Equipment and Materials,09-Mar-2020,000009027749327,FRANKS THE FLOORING ST,5713,Equipment-purchase and rental,850.00,0.00,850.00
Children and Young Peoples Services,Head of Early Help Inclusion & Vulnerable Children.,088108,Spennymoor & Shildon 0-19 Targeted Family Support,Supplies and Services,324117,Provisions E324,09-Mar-2020,000009027749329,ASDA STORES,5411,Catering costs - provisions,38.00,0.00,38.00
Children and Young Peoples Services,Head of Early Help Inclusion & Vulnerable Children.,071441,Bishop Auckland One Point Hub,Supplies and Services,304259,Equipment and Materials,09-Mar-2020,000009027749331,B & Q 1120,5200,Equipment-purchase and rental,20.00,0.00,20.00
Regeneration and Local Services,Development and Housing,031500,Housing Solutions - Core Team,Supplies and Services,352001,Conference Expenses,09-Mar-2020,000009027749335,BUDGET EXPRESS HOTEL,7011,Conferencesseminars fees etc,178.00,29.67,148.33
Children and Young Peoples Services,Head of Education and Skills,071802,Louisa Cent Nursery,Supplies and Services,324117,Provisions E324,09-Mar-2020,000009027749351,ALDI STORES,5411,Catering costs - provisions,16.83,0.00,16.83
Children and Young Peoples Services,Head of Childrens Social Care,085333,Coxhoe Satelite Home,Supplies and Services,324117,Provisions E324,09-Mar-2020,000009027749359,ASDA SUPERSTORE 4987,5411,Catering costs - provisions,57.59,0.00,57.59
Transformation and Partnerships,Business Support,010832,Business Support 010832,Supplies and Services,304221,Equipment and Materials,09-Mar-2020,000009027749387,HYDRAQUIP HOSE & HYDRA,5085,Direct materials,36.00,6.00,30.00
Children and Young Peoples Services,Head of Childrens Social Care,085352,Tow Law CU,Supplies and Services,324117,Provisions E324,09-Mar-2020,000009027749393,SAINSBURYS 0776,5411,Catering costs - provisions,154.10,0.00,154.10
Children and Young Peoples Services,Head of Early Help Inclusion & Vulnerable Children.,085957,Secure Management,Supplies and Services,328041,Clothing uniforms and laundry E328,09-Mar-2020,000009027749395,FOOTASYLUM PLC,5691,Clothing uniforms and laundry,49.99,0.00,49.99
Children and Young Peoples Services,Head of Early Help Inclusion & Vulnerable Children.,085957,Secure Management,Supplies and Services,328041,Clothing uniforms and laundry E328,09-Mar-2020,000009027749397,FOOTASYLUM PLC,5691,Clothing uniforms and laundry,49.99,0.00,49.99
Children and Young Peoples Services,Head of Early Help Inclusion & Vulnerable Children.,085957,Secure Management,Supplies and Services,384999,Miscellaneous Expenses,09-Mar-2020,000009027749399,Amazon.co.uk 876D50P55,5969,Other expenses,32.34,0.00,32.34
Children and Young Peoples Services,Head of Early Help Inclusion & Vulnerable Children.,085957,Secure Management,Supplies and Services,324117,Provisions E324,09-Mar-2020,000009027749401,TESCO STORES 6329,5411,Catering costs - provisions,211.63,0.00,211.63
Adult and Health Services,Head of Adults,055306,Spennymoor Pathways,Supplies and Services,340001,Postages E340,09-Mar-2020,000009027749407,POST OFFICE COUNTER,9402,Postages,4.20,0.00,4.20
Adult and Health Services,Head of Adults,055306,Spennymoor Pathways,Supplies and Services,304999,Equipment and Materials,09-Mar-2020,000009027749409,HOME BARGAINS SPENNYMO,5251,Misc equipment tools and materials,5.99,0.00,5.99
Regeneration and Local Services,Environmental Services,010301,C&G - North Grounds Maintenance,Supplies and Services,324117,Provisions E324,09-Mar-2020,000009027749417,J VAN VLIET GATESHEAD,5399,Catering costs - provisions,253.37,42.23,211.14
Children and Young Peoples Services,Head of Early Help Inclusion & Vulnerable Children.,071445,Chester le Street One Point Hub,Supplies and Services,384999,Miscellaneous Expenses,09-Mar-2020,000009027749423,COMMUNITYPLAYTHINGS UK,5945,Other expenses,390.00,65.00,325.00
Children and Young Peoples Services,Head of Childrens Social Care,085342,9 Cedar Drive Aycliffe,Supplies and Services,304403,Equipment and Materials,09-Mar-2020,000009027749431,AMZNMktplace,5999,Other consumables,12.52,0.00,12.52
Children and Young Peoples Services,Head of Childrens Social Care,085342,9 Cedar Drive Aycliffe,Supplies and Services,328041,Clothing uniforms and laundry E328,09-Mar-2020,000009027749433,ARGOS LTD,5310,Clothing uniforms and laundry,6.00,0.00,6.00
Regeneration and Local Services,Development and Housing,030771,Durham Advance Flexible Fund,Employees,040149,Recruitment Instruction and Training,09-Mar-2020,000009027749441,HEALTH & SAFETY TRAINI,8299,Training-all costs,210.00,0.00,210.00
Children and Young Peoples Services,Head of Early Help Inclusion & Vulnerable Children.,085957,Secure Management,Supplies and Services,304403,Equipment and Materials,09-Mar-2020,000009027749443,AMZNMKTPLACE AMAZON.CO,5999,Other consumables,5.99,1.00,4.99
Children and Young Peoples Services,Head of Early Help Inclusion & Vulnerable Children.,085957,Secure Management,Supplies and Services,304403,Equipment and Materials,09-Mar-2020,000009027749445,BARRINGTON,5734,Other consumables,14.40,2.40,12.00
Children and Young Peoples Services,Head of Early Help Inclusion & Vulnerable Children.,085957,Secure Management,Supplies and Services,384999,Miscellaneous Expenses,09-Mar-2020,000009027749447,Amazon.co.uk NF6250VL5,5969,Other expenses,23.98,4.00,19.98
Children and Young Peoples Services,Head of Early Help Inclusion & Vulnerable Children.,085957,Secure Management,Supplies and Services,384999,Miscellaneous Expenses,09-Mar-2020,000009027749449,Amazon.co.uk VX2GR43X5,5969,Other expenses,4.99,0.83,4.16
Children and Young Peoples Services,Head of Early Help Inclusion & Vulnerable Children.,085965,Barnard,Supplies and Services,304403,Equipment and Materials,09-Mar-2020,000009027749451,AMZNMktplace,5999,Other consumables,12.99,0.00,12.99
Regeneration and Local Services,Technical Services CM0300,011036,Highway Capitalised Maint - Carriageway A Class Roads,Fees,901004,Capital - Detailed Design,09-Mar-2020,000009027749455,NEWSQUEST MEDIA,2741,Capital - Detailed Design,229.87,38.31,191.56
Transformation and Partnerships,Business Support,052986,CYPS - Locality and Operational Support,Supplies and Services,304403,Equipment and Materials,09-Mar-2020,000009027749457,AMZNMktplace,5999,Other consumables,11.49,1.92,9.57
Children and Young Peoples Services,Head of Childrens Social Care,085332,Middlestone Moor CU,Supplies and Services,348037,Subsistence E348,09-Mar-2020,000009027749493,R.O.F. 59,5812,Subsistence,3.50,0.00,3.50
Children and Young Peoples Services,Head of Childrens Social Care,085332,Middlestone Moor CU,Supplies and Services,348037,Subsistence E348,09-Mar-2020,000009027749495,R.O.F. 59,5812,Subsistence,5.00,0.83,4.17
Regeneration and Local Services,Culture Sport and Tourism,011263,Louisa Centre 011263,Supplies and Services,324117,Provisions E324,09-Mar-2020,000009027749497,ASDA SUPERSTORE,5411,Catering costs - provisions,6.00,0.00,6.00
Regeneration and Local Services,Development and Housing,031500,Housing Solutions - Core Team,Supplies and Services,352001,Conference Expenses,09-Mar-2020,000009027749503,Park Head Hotel,7011,Conferencesseminars fees etc,308.00,0.00,308.00
Children and Young Peoples Services,Head of Childrens Social Care,085650,Pre Birth Team,Supplies and Services,304259,Equipment and Materials,09-Mar-2020,000009027749523,ESSEX COUNTY COUNCI EC,9399,Equipment-purchase and rental,11.00,0.00,11.00
Regeneration and Local Services,Development and Housing,030770,Durham Advance,Supplies and Services,384999,Miscellaneous Expenses,09-Mar-2020,000009027749559,NEXT DIRECTORY,5965,Other expenses,38.99,0.00,38.99
Resources BK0010,Legal & Democratic Services,067910,Democratic Representation 067910,Transport,235057,Public Transport,09-Mar-2020,000009027749561,WALKERGATE CAR PAR,7523,Staff travelling,1.80,0.00,1.80
Resources BK0010,Finance & Transactional Services,065180,Collections,Supplies and Services,338064,Services,09-Mar-2020,000009027749563,DISCLOSURE SCOTLAND,9399,Disclosure & Barring (DBS) Fees,25.00,0.00,25.00
Regeneration and Local Services,Culture Sport and Tourism,054812,Gala Theatre - Catering etc,Supplies and Services,324117,Provisions E324,09-Mar-2020,000009031533181,BATLEYS PERTH,5300,Catering costs - provisions,126.30,21.05,105.25
Regeneration and Local Services,Culture Sport and Tourism,054812,Gala Theatre - Catering etc,Supplies and Services,324117,Provisions E324,09-Mar-2020,000009031533181 - 1,BATLEYS PERTH,5300,Catering costs - provisions,46.28,,46.28
Regeneration and Local Services,Culture Sport and Tourism,054812,Gala Theatre - Catering etc,Supplies and Services,324117,Provisions E324,09-Mar-2020,000009031533183,BATLEYS PERTH,5300,Catering costs - provisions,79.08,13.18,65.90
Regeneration and Local Services,Environmental Services,011060,C&G - Hardwick Park Catering,Supplies and Services,324117,Provisions E324,09-Mar-2020,000009031533295,BATLEYS PERTH,5300,Catering costs - provisions,-16.14,0.00,-16.14
Regeneration and Local Services,Corporate Property and Land,030691,Catering - Durham Dales Centre,Supplies and Services,324117,Provisions E324,09-Mar-2020,000009031533419,BATLEYS PERTH,5300,Catering costs - provisions,84.72,14.12,70.60
Regeneration and Local Services,Corporate Property and Land,030691,Catering - Durham Dales Centre,Supplies and Services,324117,Provisions E324,09-Mar-2020,000009031533419 - 1,BATLEYS PERTH,5300,Catering costs - provisions,168.10,,168.10
Regeneration and Local Services,Corporate Property and Land,030691,Catering - Durham Dales Centre,Supplies and Services,324117,Provisions E324,09-Mar-2020,000009031533421,BATLEYS PERTH,5300,Catering costs - provisions,11.29,1.88,9.41
Regeneration and Local Services,Environmental Services,031071,Sustainability and Climate Change,Supplies and Services,352001,Conference Expenses,09-Mar-2020,000009031533529,CHESFORD GRANGE HOTEL,7011,Conferencesseminars fees etc,26.00,4.33,21.67
Regeneration and Local Services,Environmental Services,031071,Sustainability and Climate Change,Supplies and Services,352001,Conference Expenses,09-Mar-2020,000009031533531,CHESFORD GRANGE HOTEL,7011,Conferencesseminars fees etc,12.45,2.08,10.37
Resources BK0010,Legal & Democratic Services,067910,Democratic Representation 067910,Supplies and Services,384926,Miscellaneous Expenses,09-Mar-2020,000009031533565,PREMIER INN,3811,International visits,470.88,0.00,470.88
Regeneration and Local Services,Business Durham CL0850,030689,Inward Investment and Aftercare,Supplies and Services,304999,Equipment and Materials,10-Mar-2020,000009027748685,MAILCHIMP MONTHLY,5968,Misc equipment tools and materials,2.30,0.00,2.30
Children and Young Peoples Services,Head of Education and Skills,071801,Selby Cottage Childcare Centre,Supplies and Services,324117,Provisions E324,10-Mar-2020,000009031533083,TESCO STORES 2278,5411,Catering costs - provisions,19.78,0.00,19.78
Resources BK0010,Digital and Customer Services,011104,Contact Centres,Supplies and Services,304403,Equipment and Materials,10-Mar-2020,000009031533093,SP BOUNCEPAD HQ,5734,Other consumables,294.00,49.00,245.00
Resources BK0010,Digital and Customer Services,011104,Contact Centres,Supplies and Services,304403,Equipment and Materials,10-Mar-2020,000009031533095,SP BOUNCEPAD HQ,5734,Other consumables,294.00,49.00,245.00
Regeneration and Local Services,Culture Sport and Tourism,054819,Gala Theatre - Received Productions,Supplies and Services,304403,Equipment and Materials,10-Mar-2020,000009031533097,AMZNMktplace,5999,Other consumables,8.49,1.42,7.07
Children and Young Peoples Services,Head of Education and Skills,075021,Youth Employment Initiative,Supplies and Services,384199,Miscellaneous Expenses,10-Mar-2020,000009031533109,MY.NORFOLK.GOV.UK,9399,Other hired and contracted services,11.00,0.00,11.00
Children and Young Peoples Services,Head of Education and Skills,075021,Youth Employment Initiative,Supplies and Services,384199,Miscellaneous Expenses,10-Mar-2020,000009031533111,WWW.DURHAM.GOV.UK,9399,Other hired and contracted services,11.00,0.00,11.00
Regeneration and Local Services,Environmental Services,031239,North Pennines - Carbon Connect,Supplies and Services,304259,Equipment and Materials,10-Mar-2020,000009031533115,WWW.HANNAINSTRUMENTS.C,5065,Equipment-purchase and rental,90.77,15.13,75.64
Regeneration and Local Services,Culture Sport and Tourism,011263,Louisa Centre 011263,Supplies and Services,324117,Provisions E324,10-Mar-2020,000009031533135,JR HOLLAND FOODSERVICE,5499,Catering costs - provisions,30.03,0.00,30.03
Transformation and Partnerships,Business Support,052986,CYPS - Locality and Operational Support,Supplies and Services,328041,Clothing uniforms and laundry E328,10-Mar-2020,000009031533159,ARGOS LTD,5310,Clothing uniforms and laundry,188.91,0.00,188.91
Children and Young Peoples Services,Head of Early Help Inclusion & Vulnerable Children.,071670,Willington Childrens Centre,Supplies and Services,332047,Printing Stationery and Gen Off Exps,10-Mar-2020,000009031533163,Amazon.co.uk NL6YY3EA5,5969,Stationery,6.90,1.16,5.74
Children and Young Peoples Services,Head of Early Help Inclusion & Vulnerable Children.,071670,Willington Childrens Centre,Supplies and Services,304259,Equipment and Materials,10-Mar-2020,000009031533165,AMZNMktplace,5999,Equipment-purchase and rental,12.37,2.06,10.31
Children and Young Peoples Services,Head of Early Help Inclusion & Vulnerable Children.,088105,BA/BC/Crook 0-19 Community Family Hub,Supplies and Services,304259,Equipment and Materials,10-Mar-2020,000009031533167,AMZNMktplace,5999,Equipment-purchase and rental,14.76,2.46,12.30
Children and Young Peoples Services,Head of Early Help Inclusion & Vulnerable Children.,088105,BA/BC/Crook 0-19 Community Family Hub,Supplies and Services,304259,Equipment and Materials,10-Mar-2020,000009031533169,AMZNMKTPLACE AMAZON.CO,5999,Equipment-purchase and rental,8.86,1.48,7.38
Children and Young Peoples Services,Head of Early Help Inclusion & Vulnerable Children.,088105,BA/BC/Crook 0-19 Community Family Hub,Supplies and Services,304259,Equipment and Materials,10-Mar-2020,000009031533171,AMZNMKTPLACE AMAZON.CO,5999,Equipment-purchase and rental,55.56,9.26,46.30
Children and Young Peoples Services,Head of Early Help Inclusion & Vulnerable Children.,088105,BA/BC/Crook 0-19 Community Family Hub,Supplies and Services,304259,Equipment and Materials,10-Mar-2020,000009031533173,AMZNMKTPLACE AMAZON.CO,5999,Equipment-purchase and rental,14.76,2.46,12.30
Regeneration and Local Services,Corporate Property and Land,021242,Catering - County Hall,Supplies and Services,324117,Provisions E324,10-Mar-2020,000009031533177,JR HOLLAND FOODSERVICE,5499,Catering costs - provisions,135.66,0.00,135.66
Regeneration and Local Services,Corporate Property and Land,021242,Catering - County Hall,Supplies and Services,324117,Provisions E324,10-Mar-2020,000009031533179,JR HOLLAND FOODSERVICE,5499,Catering costs - provisions,95.55,0.00,95.55
Regeneration and Local Services,Culture Sport and Tourism,054812,Gala Theatre - Catering etc,Premises,145009,Cleaning and Domestic Supplies,10-Mar-2020,000009031533185,ALLIANCE DISPOSABLES L,2842,Other cleaning and domestic costs,402.06,67.01,335.05
Regeneration and Local Services,Culture Sport and Tourism,054812,Gala Theatre - Catering etc,Premises,145009,Cleaning and Domestic Supplies,10-Mar-2020,000009031533185 - 1,ALLIANCE DISPOSABLES L,2842,Other cleaning and domestic costs,0.06,,0.06
Children and Young Peoples Services,Head of Early Help Inclusion & Vulnerable Children.,085965,Barnard,Supplies and Services,328041,Clothing uniforms and laundry E328,10-Mar-2020,000009031533195,FOOTASYLUM PLC,5691,Clothing uniforms and laundry,221.95,0.00,221.95
Children and Young Peoples Services,Head of Early Help Inclusion & Vulnerable Children.,085956,Lumley,Supplies and Services,304259,Equipment and Materials,10-Mar-2020,000009031533197,JD SPORTS INTERNET,5941,Equipment-purchase and rental,78.00,0.00,78.00
Children and Young Peoples Services,Head of Childrens Social Care,085362,LAC & Permanence Team 2,Supplies and Services,384999,Miscellaneous Expenses,10-Mar-2020,000009031533205,NATIONAL EXPRESS LIMIT,4131,Other expenses,26.80,0.00,26.80
Children and Young Peoples Services,Head of Childrens Social Care,085361,LAC & Permanence Team 1,Supplies and Services,384871,Miscellaneous Expenses,10-Mar-2020,000009031533207,AMFBOWLING.CO.UK,7997,Training-other activities,20.39,0.00,20.39
Children and Young Peoples Services,Head of Childrens Social Care,085362,LAC & Permanence Team 2,Supplies and Services,304403,Equipment and Materials,10-Mar-2020,000009031533209,WWW.DURHAM.GOV.UK,9399,Other consumables,11.00,0.00,11.00
Children and Young Peoples Services,Head of Childrens Social Care,085341,High Etherley Satelite Home,Supplies and Services,324117,Provisions E324,10-Mar-2020,000009031533211,TESCO STORES 6329,5411,Catering costs - provisions,6.40,0.00,6.40
Regeneration and Local Services,Development and Housing,031576,B& B - Temp Accom,Supplies and Services,364320,Grants to Voluntary Organisations,10-Mar-2020,000009031533213,HOTEL 52,7011,Accommodation assistance,78.98,0.00,78.98
Regeneration and Local Services,Environmental Services,010900,Fleet - Meadowfield Fleet,Transport,215013,Running Costs of Vehicles,10-Mar-2020,000009031533217,DVLA VEHICLE TAX,9311,Vehicle Excise Duty (VED),167.50,0.00,167.50
Regeneration and Local Services,Environmental Services,010900,Fleet - Meadowfield Fleet,Transport,215013,Running Costs of Vehicles,10-Mar-2020,000009031533219,DVLA VEHICLE TAX,9311,Vehicle Excise Duty (VED),262.50,0.00,262.50
Regeneration and Local Services,Environmental Services,010900,Fleet - Meadowfield Fleet,Transport,215013,Running Costs of Vehicles,10-Mar-2020,000009031533221,DVLA VEHICLE TAX,9311,Vehicle Excise Duty (VED),262.50,0.00,262.50
Regeneration and Local Services,Environmental Services,010900,Fleet - Meadowfield Fleet,Transport,215013,Running Costs of Vehicles,10-Mar-2020,000009031533223,DVLA VEHICLE TAX,9311,Vehicle Excise Duty (VED),262.50,0.00,262.50
Regeneration and Local Services,Environmental Services,010561,Fleet - Morrison Busty Fleet,Transport,215013,Running Costs of Vehicles,10-Mar-2020,000009031533225,DVLA VEHICLE TAX,9311,Vehicle Excise Duty (VED),167.50,0.00,167.50
Regeneration and Local Services,Environmental Services,010900,Fleet - Meadowfield Fleet,Transport,215013,Running Costs of Vehicles,10-Mar-2020,000009031533227,DVLA VEHICLE TAX,9311,Vehicle Excise Duty (VED),167.50,0.00,167.50
Regeneration and Local Services,Environmental Services,010900,Fleet - Meadowfield Fleet,Transport,215013,Running Costs of Vehicles,10-Mar-2020,000009031533229,DVLA VEHICLE TAX,9311,Vehicle Excise Duty (VED),262.50,0.00,262.50
Regeneration and Local Services,Environmental Services,010900,Fleet - Meadowfield Fleet,Transport,215013,Running Costs of Vehicles,10-Mar-2020,000009031533231,DVLA VEHICLE TAX,9311,Vehicle Excise Duty (VED),262.50,0.00,262.50
Regeneration and Local Services,Environmental Services,010900,Fleet - Meadowfield Fleet,Transport,215013,Running Costs of Vehicles,10-Mar-2020,000009031533233,DVLA VEHICLE TAX,9311,Vehicle Excise Duty (VED),262.50,0.00,262.50
Regeneration and Local Services,Environmental Services,010864,Fleet - Hackworth Road Fleet,Transport,215013,Running Costs of Vehicles,10-Mar-2020,000009031533235,DVLA VEHICLE TAX,9311,Vehicle Excise Duty (VED),167.50,0.00,167.50
Regeneration and Local Services,Environmental Services,010900,Fleet - Meadowfield Fleet,Transport,215013,Running Costs of Vehicles,10-Mar-2020,000009031533237,DVLA VEHICLE TAX,9311,Vehicle Excise Duty (VED),262.50,0.00,262.50
Regeneration and Local Services,Environmental Services,010900,Fleet - Meadowfield Fleet,Transport,215013,Running Costs of Vehicles,10-Mar-2020,000009031533239,DVLA VEHICLE TAX,9311,Vehicle Excise Duty (VED),262.50,0.00,262.50
Regeneration and Local Services,Environmental Services,010561,Fleet - Morrison Busty Fleet,Transport,215013,Running Costs of Vehicles,10-Mar-2020,000009031533241,DVLA VEHICLE TAX,9311,Vehicle Excise Duty (VED),167.50,0.00,167.50
Regeneration and Local Services,Environmental Services,010561,Fleet - Morrison Busty Fleet,Transport,215013,Running Costs of Vehicles,10-Mar-2020,000009031533243,DVLA VEHICLE TAX,9311,Vehicle Excise Duty (VED),167.50,0.00,167.50
Regeneration and Local Services,Environmental Services,010551,Fleet - Chilton Fleet,Transport,215013,Running Costs of Vehicles,10-Mar-2020,000009031533245,DVLA VEHICLE TAX,9311,Vehicle Excise Duty (VED),262.50,0.00,262.50
Regeneration and Local Services,Environmental Services,010864,Fleet - Hackworth Road Fleet,Transport,215013,Running Costs of Vehicles,10-Mar-2020,000009031533247,DVLA VEHICLE TAX,9311,Vehicle Excise Duty (VED),167.50,0.00,167.50
Children and Young Peoples Services,Head of Early Help Inclusion & Vulnerable Children.,088109,Spennymoor & Shildon 0-19 Community Family Hub,Supplies and Services,328041,Clothing uniforms and laundry E328,10-Mar-2020,000009031533257,POUNDSTRETCHER 692,5331,Clothing uniforms and laundry,57.85,0.00,57.85
Children and Young Peoples Services,Head of Early Help Inclusion & Vulnerable Children.,088109,Spennymoor & Shildon 0-19 Community Family Hub,Supplies and Services,324117,Provisions E324,10-Mar-2020,000009031533259,ASDA STORES,5411,Catering costs - provisions,4.85,0.00,4.85
Regeneration and Local Services,Development and Housing,030771,Durham Advance Flexible Fund,Supplies and Services,304259,Equipment and Materials,10-Mar-2020,000009031533269,GEN REGISTER OFFICE,9399,Equipment-purchase and rental,38.00,0.00,38.00
Regeneration and Local Services,Environmental Services,010301,C&G - North Grounds Maintenance,Supplies and Services,304221,Equipment and Materials,10-Mar-2020,000009031533277,ARCO LTD,5085,Direct materials,65.93,0.00,65.93
Regeneration and Local Services,Development and Housing,030771,Durham Advance Flexible Fund,Supplies and Services,324117,Provisions E324,10-Mar-2020,000009031533279,COSTA COFFEE 43038640,5814,Catering costs - provisions,5.00,0.00,5.00
Children and Young Peoples Services,Head of Early Help Inclusion & Vulnerable Children.,071445,Chester le Street One Point Hub,Supplies and Services,304259,Equipment and Materials,10-Mar-2020,000009031533281,HM PASSPORT OFFICE,9399,Equipment-purchase and rental,49.00,0.00,49.00
Transformation and Partnerships,Business Support,052986,CYPS - Locality and Operational Support,Supplies and Services,324117,Provisions E324,10-Mar-2020,000009031533289,ASDA GROCERIES ONLINE,5411,Catering costs - provisions,51.60,0.00,51.60
Regeneration and Local Services,Environmental Services,011060,C&G - Hardwick Park Catering,Supplies and Services,324117,Provisions E324,10-Mar-2020,000009031533293,JR HOLLAND FOODSERVICE,5499,Catering costs - provisions,41.17,0.00,41.17
Regeneration and Local Services,Corporate Property and Land,010525,Catering - Green Lane,Supplies and Services,324117,Provisions E324,10-Mar-2020,000009031533331,JR HOLLAND FOODSERVICE,5499,Catering costs - provisions,64.19,0.00,64.19
Children and Young Peoples Services,Head of Childrens Social Care,085352,Tow Law CU,Supplies and Services,304403,Equipment and Materials,10-Mar-2020,000009031533337,AMZNMktplace,5999,Other consumables,120.05,0.00,120.05
Resources BK0010,Legal & Democratic Services,067910,Democratic Representation 067910,Supplies and Services,348037,Subsistence E348,10-Mar-2020,000009031533345,ASK DURHAM,5812,Subsistence,286.96,0.00,286.96
Resources BK0010,Legal & Democratic Services,067910,Democratic Representation 067910,Transport,235057,Public Transport,10-Mar-2020,000009031533347,WALKERGATE CAR PAR,7523,Staff travelling,1.80,0.00,1.80
Resources BK0010,Legal & Democratic Services,067910,Democratic Representation 067910,Transport,235057,Public Transport,10-Mar-2020,000009031533349,WALKERGATE CAR PAR,7523,Staff travelling,1.50,0.00,1.50
Children and Young Peoples Services,Head of Early Help Inclusion & Vulnerable Children.,088108,Spennymoor & Shildon 0-19 Targeted Family Support,Supplies and Services,304259,Equipment and Materials,10-Mar-2020,000009031533351,AMZNMktplace,5999,Equipment-purchase and rental,7.95,1.33,6.62
Children and Young Peoples Services,Head of Early Help Inclusion & Vulnerable Children.,088108,Spennymoor & Shildon 0-19 Targeted Family Support,Supplies and Services,304259,Equipment and Materials,10-Mar-2020,000009031533353,AMZNMktplace,5999,Equipment-purchase and rental,12.77,2.13,10.64
Adult and Health Services,Head of Adults,055643,Hawthorn House LD Respite Unit,Supplies and Services,340001,Postages E340,10-Mar-2020,000009031533377,THE POST OFFICE,9402,Postages,46.20,0.00,46.20
Children and Young Peoples Services,Head of Education and Skills,071802,Louisa Cent Nursery,Supplies and Services,304999,Equipment and Materials,10-Mar-2020,000009031533381,Amazon Prime,5968,Misc equipment tools and materials,-7.99,0.00,-7.99
Children and Young Peoples Services,Head of Education and Skills,071802,Louisa Cent Nursery,Supplies and Services,304999,Equipment and Materials,10-Mar-2020,000009031533383,Amazon Prime,5968,Misc equipment tools and materials,-7.99,0.00,-7.99
Children and Young Peoples Services,Head of Education and Skills,071802,Louisa Cent Nursery,Supplies and Services,304999,Equipment and Materials,10-Mar-2020,000009031533385,Amazon Prime,5968,Misc equipment tools and materials,-7.99,0.00,-7.99
Children and Young Peoples Services,Head of Early Help Inclusion & Vulnerable Children.,085957,Secure Management,Supplies and Services,328041,Clothing uniforms and laundry E328,10-Mar-2020,000009031533401,FOOTASYLUM PLC,5691,Clothing uniforms and laundry,69.99,0.00,69.99
Children and Young Peoples Services,Head of Early Help Inclusion & Vulnerable Children.,085957,Secure Management,Supplies and Services,328041,Clothing uniforms and laundry E328,10-Mar-2020,000009031533403,FOOTASYLUM PLC,5691,Clothing uniforms and laundry,27.94,0.00,27.94
Children and Young Peoples Services,Head of Early Help Inclusion & Vulnerable Children.,085957,Secure Management,Supplies and Services,328041,Clothing uniforms and laundry E328,10-Mar-2020,000009031533405,FOOTASYLUM PLC,5691,Clothing uniforms and laundry,229.96,0.00,229.96
Regeneration and Local Services,Corporate Property and Land,030691,Catering - Durham Dales Centre,Supplies and Services,324117,Provisions E324,10-Mar-2020,000009031533423,JR HOLLAND FOODSERVICE,5499,Catering costs - provisions,155.80,0.00,155.80
Adult and Health Services,Head of Adults,055643,Hawthorn House LD Respite Unit,Supplies and Services,324117,Provisions E324,10-Mar-2020,000009031533429,JR HOLLAND FOODSERVICE,5499,Catering costs - provisions,14.65,0.00,14.65
Adult and Health Services,Head of Adults,055643,Hawthorn House LD Respite Unit,Supplies and Services,324117,Provisions E324,10-Mar-2020,000009031533431,JR HOLLAND FOODSERVICE,5499,Catering costs - provisions,21.22,0.00,21.22
Regeneration and Local Services,Environmental Services,031200,North Pennines Core,Supplies and Services,304259,Equipment and Materials,10-Mar-2020,000009031533433,CIVIL AVIATION AUTHORI,9399,Equipment-purchase and rental,9.00,0.00,9.00
Children and Young Peoples Services,Head of Early Help Inclusion & Vulnerable Children.,088101,CLS 0-19 Community Family Hub,Supplies and Services,304403,Equipment and Materials,10-Mar-2020,000009031533441,AMZNMktplace,5999,Other consumables,12.99,2.17,10.82
Children and Young Peoples Services,Head of Early Help Inclusion & Vulnerable Children.,088103,Consett & Stanley 0-19 Community Family Hub,Supplies and Services,304403,Equipment and Materials,10-Mar-2020,000009031533443,AMZNMktplace,5999,Other consumables,15.19,2.54,12.65
Children and Young Peoples Services,Head of Early Help Inclusion & Vulnerable Children.,071445,Chester le Street One Point Hub,Supplies and Services,324117,Provisions E324,10-Mar-2020,000009031533447,ASDA GROCERIES ONLINE,5411,Catering costs - provisions,200.74,0.00,200.74
Children and Young Peoples Services,Head of Early Help Inclusion & Vulnerable Children.,071445,Chester le Street One Point Hub,Supplies and Services,328041,Clothing uniforms and laundry E328,10-Mar-2020,000009031533449,PRICE-BUCKLAND.CO.,5699,Clothing uniforms and laundry,35.95,0.00,35.95
Children and Young Peoples Services,Head of Early Help Inclusion & Vulnerable Children.,071445,Chester le Street One Point Hub,Supplies and Services,324117,Provisions E324,10-Mar-2020,000009031533451,ASDA GROCERIES ONLINE,5411,Catering costs - provisions,-29.35,0.00,-29.35
Regeneration and Local Services,Development and Housing,030771,Durham Advance Flexible Fund,Supplies and Services,348037,Subsistence E348,10-Mar-2020,000009031533461,COSTA COFFEE,5814,Subsistence,4.00,0.00,4.00
Children and Young Peoples Services,Head of Early Help Inclusion & Vulnerable Children.,085957,Secure Management,Supplies and Services,338057,Services,10-Mar-2020,000009031533463,WWW.MEDSCOPE.CO.UK,5047,Medical fees 338057,33.48,0.00,33.48
Transformation and Partnerships,Business Support,052986,CYPS - Locality and Operational Support,Transport,235057,Public Transport,10-Mar-2020,000009031533465,GO NORTH EAST LIMITED,4131,Staff travelling,25.00,0.00,25.00
Children and Young Peoples Services,Head of Education and Skills,071903,Early Years Sustainability,Employees,040149,Recruitment Instruction and Training,10-Mar-2020,000009031533469,KATHY BRODIE,8999,Training-all costs,80.00,0.00,80.00
Regeneration and Local Services,Corporate Property and Land,021324,Catering - Meadowfield,Supplies and Services,324117,Provisions E324,10-Mar-2020,000009031533471,JR HOLLAND FOODSERVICE,5499,Catering costs - provisions,11.70,0.00,11.70
Regeneration and Local Services,Corporate Property and Land,021324,Catering - Meadowfield,Supplies and Services,324117,Provisions E324,10-Mar-2020,000009031533473,JR HOLLAND FOODSERVICE,5499,Catering costs - provisions,33.13,0.00,33.13
Children and Young Peoples Services,Head of Childrens Social Care,085332,Middlestone Moor CU,Supplies and Services,324117,Provisions E324,10-Mar-2020,000009031533475,ASDA SUPERSTORE 4987,5411,Catering costs - provisions,25.41,0.00,25.41
Regeneration and Local Services,Environmental Services,010301,C&G - North Grounds Maintenance,Third Party Payments,430100,Rendered by Private Contractors,10-Mar-2020,000009031533479,JOHN WARREN (ANIMAL BY,7399,Payments to sub-contractors,12.00,0.00,12.00
